Workbook

Sheet Main
B10: 2024-02-28
B12: Sheet No. | C12: Template Name | D12: Summary
B13: 1 | C13: Future Intra | D13: For Intraday trading in F&O segment
B14: 2 | C14: Cash Intra | D14: For Intraday trading in cash market segment
B15: 3 | C15: Mid-cap Intra | D15: For Intraday trading in Mid-cap stocks
B16: 4 | C16: Bulk Deals | D16: Reveals Bulk Deals carried on NSE & BSE
B17: 5 | C17: Call Tracker
K27: `

Sheet Future Intra
M5: Back to Main Page
A6: FOR INTRA DAY TRADING | L6: =Main!B10 -> 2024-02-28
A9: Sr.no | B9: Sector | C9: Scrip | D9: Expiry Date | E9: CLOSE RATE | F9: Pivot Point | G9: Supports | J9: Resistances
E10: Point | F10: Point | G10: S1 | H10: S2 | I10: S3 | J10: R1 | K10: R2 | L10: R3 | M10: HIGH | N10: LOW | O10: OI | P10: % Change in OI
A11: 1 | B11: Index | C11: NIFTY | D11: 2024-02-29 | E11: 22203.05 | F11: 22175.82 | G11: 22122.33 | H11: 22041.62 | I11: 21988.13 | J11: 22256.53 | K11: 22310.02 | L11: 22390.73 | M11: 22229.3 | N11: 22095.1 | O11: 15224650 | P11: 2.59%
A12: 2 | B12: Index | C12: BANKNIFTY | D12: 2024-02-29 | E12: 46587.20 | F12: 46547.50 | G12: 46350.00 | H12: 46112.80 | I12: 45915.30 | J12: 46784.70 | K12: 46982.20 | L12: 47219.40 | M12: 46745 | N12: 46310.3 | O12: 3241995 | P12: 3.23%
A13: 3 | B13: Index | C13: FINNIFTY | D13: 2024-03-26 | E13: 20682.00 | F13: 20700.35 | G13: 20641.65 | H13: 20601.30 | I13: 20542.60 | J13: 20740.70 | K13: 20799.40 | L13: 20839.75 | M13: 20759.05 | N13: 20660 | O13: 46240 | P13: -63.50%
A14: 4 | B14: Index | C14: MIDCPNIFTY | D14: 2024-03-22 | E14: 11049.90 | F14: 11037.70 | G14: 10980.40 | H14: 10910.90 | I14: 10853.60 | J14: 11107.20 | K14: 11164.50 | L14: 11234.00 | M14: 11095 | N14: 10968.2 | O14: 747225 | P14: -44.47%
A15: 5 | B15: Chemical | C15: AARTIIND | D15: 2024-02-29 | E15: 670.15 | F15: 672.13 | G15: 665.47 | H15: 660.78 | I15: 654.12 | J15: 676.82 | K15: 683.48 | L15: 688.17 | M15: 678.8 | N15: 667.45 | O15: 13885000 | P15: -1.36%
A16: 6 | B16: Capital_Goods | C16: ABB | D16: 2024-02-29 | E16: 5445.50 | F16: 5392.73 | G16: 5319.37 | H16: 5193.23 | I16: 5119.87 | J16: 5518.87 | K16: 5592.23 | L16: 5718.37 | M16: 5466.1 | N16: 5266.6 | O16: 1711250 | P16: -0.44%
A17: 7 | B17: Pharma | C17: ABBOTINDIA | D17: 2024-02-29 | E17: 28701.30 | F17: 28423.47 | G17: 28078.03 | H17: 27454.77 | I17: 27109.33 | J17: 29046.73 | K17: 29392.17 | L17: 30015.43 | M17: 28768.9 | N17: 27800.2 | O17: 198160 | P17: 1.60%
A18: 8 | B18: Others | C18: ABCAPITAL | D18: 2024-02-29 | E18: 188.00 | F18: 189.48 | G18: 185.52 | H18: 183.03 | I18: 179.07 | J18: 191.97 | K18: 195.93 | L18: 198.42 | M18: 193.45 | N18: 187 | O18: 66673800 | P18: -5.27%
A19: 9 | B19: Textile | C19: ABFRL | D19: 2024-02-29 | E19: 230.20 | F19: 228.53 | G19: 225.72 | H19: 221.23 | I19: 218.42 | J19: 233.02 | K19: 235.83 | L19: 240.32 | M19: 231.35 | N19: 224.05 | O19: 45370000 | P19: -5.99%
A20: 10 | B20: Cement | C20: ACC | D20: 2024-02-29 | E20: 2670.15 | F20: 2677.03 | G20: 2651.52 | H20: 2632.88 | I20: 2607.37 | J20: 2695.67 | K20: 2721.18 | L20: 2739.82 | M20: 2702.55 | N20: 2658.4 | O20: 4997700 | P20: -2.61%
A21: 11 | B21: Others | C21: ADANIENT | D21: 2024-02-29 | E21: 3301.35 | F21: 3303.95 | G21: 3267.95 | H21: 3234.55 | I21: 3198.55 | J21: 3337.35 | K21: 3373.35 | L21: 3406.75 | M21: 3339.95 | N21: 3270.55 | O21: 15654900 | P21: -1.98%
A22: 12 | B22: Others | C22: ADANIPORTS | D22: 2024-02-29 | E22: 1326.75 | F22: 1326.05 | G22: 1312.20 | H22: 1297.65 | I22: 1283.80 | J22: 1340.60 | K22: 1354.45 | L22: 1369.00 | M22: 1339.9 | N22: 1311.5 | O22: 39099200 | P22: -1.05%
A23: 13 | B23: Pharma | C23: ALKEM | D23: 2024-02-29 | E23: 5038.40 | F23: 5026.50 | G23: 4958.30 | H23: 4878.20 | I23: 4810.00 | J23: 5106.60 | K23: 5174.80 | L23: 5254.90 | M23: 5094.7 | N23: 4946.4 | O23: 1470000 | P23: -0.66%
A24: 14 | B24: Cement | C24: AMBUJACEM | D24: 2024-02-29 | E24: 603.25 | F24: 604.42 | G24: 597.18 | H24: 591.12 | I24: 583.88 | J24: 610.48 | K24: 617.72 | L24: 623.78 | M24: 611.65 | N24: 598.35 | O24: 52369200 | P24: -4.44%
A25: 15 | B25: Others | C25: APOLLOHOSP | D25: 2024-02-29 | E25: 6630.00 | F25: 6627.38 | G25: 6584.77 | H25: 6539.53 | I25: 6496.92 | J25: 6672.62 | K25: 6715.23 | L25: 6760.47 | M25: 6670 | N25: 6582.15 | O25: 1824250 | P25: -2.86%
A26: 16 | B26: Automobile | C26: APOLLOTYRE | D26: 2024-02-29 | E26: 517.30 | F26: 519.95 | G26: 512.05 | H26: 506.80 | I26: 498.90 | J26: 525.20 | K26: 533.10 | L26: 538.35 | M26: 527.85 | N26: 514.7 | O26: 10706600 | P26: 3.60%
A27: 17 | B27: Automobile | C27: ASHOKLEY | D27: 2024-02-29 | E27: 174.50 | F27: 174.20 | G27: 173.10 | H27: 171.70 | I27: 170.60 | J27: 175.60 | K27: 176.70 | L27: 178.10 | M27: 175.3 | N27: 172.8 | O27: 108535000 | P27: 1.25%
A28: 18 | B28: FMCG | C28: ASIANPAINT | D28: 2024-02-29 | E28: 2861.65 | F28: 2859.70 | G28: 2846.95 | H28: 2832.25 | I28: 2819.50 | J28: 2874.40 | K28: 2887.15 | L28: 2901.85 | M28: 2872.45 | N28: 2845 | O28: 8914800 | P28: -5.73%
A29: 19 | B29: Others | C29: ASTRAL | D29: 2024-02-29 | E29: 2098.05 | F29: 2092.27 | G29: 2053.83 | H29: 2009.62 | I29: 1971.18 | J29: 2136.48 | K29: 2174.92 | L29: 2219.13 | M29: 2130.7 | N29: 2048.05 | O29: 3726151 | P29: -6.16%
A30: 20 | B30: Others | C30: ATUL | D30: 2024-02-29 | E30: 6233.15 | F30: 6252.72 | G30: 6205.48 | H30: 6177.82 | I30: 6130.58 | J30: 6280.38 | K30: 6327.62 | L30: 6355.28 | M30: 6299.95 | N30: 6225.05 | O30: 414825 | P30: 6.71%
A31: 21 | B31: Banking | C31: AUBANK | D31: 2024-02-29 | E31: 592.00 | F31: 592.20 | G31: 587.50 | H31: 583.00 | I31: 578.30 | J31: 596.70 | K31: 601.40 | L31: 605.90 | M31: 596.9 | N31: 587.7 | O31: 24801000 | P31: -6.16%
A32: 22 | B32: Pharma | C32: AUROPHARMA | D32: 2024-02-29 | E32: 1044.35 | F32: 1043.12 | G32: 1033.23 | H32: 1022.12 | I32: 1012.23 | J32: 1054.23 | K32: 1064.12 | L32: 1075.23 | M32: 1053 | N32: 1032 | O32: 21483000 | P32: -1.44%
A33: 23 | B33: Banking | C33: AXISBANK | D33: 2024-02-29 | E33: 1080.30 | F33: 1080.98 | G33: 1072.22 | H33: 1064.13 | I33: 1055.37 | J33: 1089.07 | K33: 1097.83 | L33: 1105.92 | M33: 1089.75 | N33: 1072.9 | O33: 48682500 | P33: 4.52%
A34: 24 | B34: Automobile | C34: BAJAJ-AUTO | D34: 2024-02-29 | E34: 8383.50 | F34: 8357.10 | G34: 8310.40 | H34: 8237.30 | I34: 8190.60 | J34: 8430.20 | K34: 8476.90 | L34: 8550.00 | M34: 8403.8 | N34: 8284 | O34: 2183750 | P34: -2.40%
A35: 25 | B35: Finance | C35: BAJAJFINSV | D35: 2024-02-29 | E35: 1597.40 | F35: 1604.72 | G35: 1586.68 | H35: 1575.97 | I35: 1557.93 | J35: 1615.43 | K35: 1633.47 | L35: 1644.18 | M35: 1622.75 | N35: 1594 | O35: 9658000 | P35: 1.88%
A36: 26 | B36: Finance | C36: BAJFINANCE | D36: 2024-02-29 | E36: 6549.50 | F36: 6557.72 | G36: 6473.83 | H36: 6398.17 | I36: 6314.28 | J36: 6633.38 | K36: 6717.27 | L36: 6792.93 | M36: 6641.6 | N36: 6482.05 | O36: 9545375 | P36: 5.20%
A37: 27 | B37: Automobile | C37: BALKRISIND | D37: 2024-02-29 | E37: 2290.70 | F37: 2297.22 | G37: 2270.63 | H37: 2250.57 | I37: 2223.98 | J37: 2317.28 | K37: 2343.87 | L37: 2363.93 | M37: 2323.8 | N37: 2277.15 | O37: 2617800 | P37: -0.07%
A38: 28 | B38: Others | C38: BALRAMCHIN | D38: 2024-02-29 | E38: 384.60 | F38: 383.38 | G38: 378.77 | H38: 372.93 | I38: 368.32 | J38: 389.22 | K38: 393.83 | L38: 399.67 | M38: 388 | N38: 377.55 | O38: 11331200 | P38: -6.74%
A39: 29 | B39: Banking | C39: BANDHANBNK | D39: 2024-02-29 | E39: 201.45 | F39: 202.23 | G39: 200.22 | H39: 198.98 | I39: 196.97 | J39: 203.47 | K39: 205.48 | L39: 206.72 | M39: 204.25 | N39: 201 | O39: 106652500 | P39: -0.34%
A40: 30 | B40: Banking | C40: BANKBARODA | D40: 2024-02-29 | E40: 269.75 | F40: 269.82 | G40: 266.88 | H40: 264.02 | I40: 261.08 | J40: 272.68 | K40: 275.62 | L40: 278.48 | M40: 272.75 | N40: 266.95 | O40: 142435800 | P40: -1.95%
A41: 31 | B41: FMCG | C41: BATAINDIA | D41: 2024-02-29 | E41: 1438.80 | F41: 1434.07 | G41: 1423.13 | H41: 1407.47 | I41: 1396.53 | J41: 1449.73 | K41: 1460.67 | L41: 1476.33 | M41: 1445 | N41: 1418.4 | O41: 2954250 | P41: -17.01%
A42: 32 | B42: Capital_Goods | C42: BEL | D42: 2024-02-29 | E42: 205.25 | F42: 205.82 | G42: 202.73 | H42: 200.22 | I42: 197.13 | J42: 208.33 | K42: 211.42 | L42: 213.93 | M42: 208.9 | N42: 203.3 | O42: 126135300 | P42: -3.91%
A43: 33 | B43: FMCG | C43: BERGEPAINT | D43: 2024-02-29 | E43: 555.75 | F43: 558.47 | G43: 549.83 | H43: 543.92 | I43: 535.28 | J43: 564.38 | K43: 573.02 | L43: 578.93 | M43: 567.1 | N43: 552.55 | O43: 15671040 | P43: -2.57%
A44: 34 | B44: Automobile | C44: BHARATFORG | D44: 2024-02-29 | E44: 1179.60 | F44: 1181.92 | G44: 1168.43 | H44: 1157.27 | I44: 1143.78 | J44: 1193.08 | K44: 1206.57 | L44: 1217.73 | M44: 1195.4 | N44: 1170.75 | O44: 8505000 | P44: -3.72%
A45: 35 | B45: Telecom | C45: BHARTIARTL | D45: 2024-02-29 | E45: 1127.75 | F45: 1121.02 | G45: 1110.53 | H45: 1093.32 | I45: 1082.83 | J45: 1138.23 | K45: 1148.72 | L45: 1165.93 | M45: 1131.5 | N45: 1103.8 | O45: 36473350 | P45: 3.34%
A46: 36 | B46: Capital_Goods | C46: BHEL | D46: 2024-02-29 | E46: 223.40 | F46: 224.48 | G46: 220.92 | H46: 218.43 | I46: 214.87 | J46: 226.97 | K46: 230.53 | L46: 233.02 | M46: 228.05 | N46: 222 | O46: 103687500 | P46: 4.06%
A47: 37 | B47: Pharma | C47: BIOCON | D47: 2024-02-29 | E47: 276.50 | F47: 277.53 | G47: 272.87 | H47: 269.23 | I47: 264.57 | J47: 281.17 | K47: 285.83 | L47: 289.47 | M47: 282.2 | N47: 273.9 | O47: 42390000 | P47: 6.75%
A48: 38 | B48: Automobile | C48: BOSCHLTD | D48: 2024-02-29 | E48: 28889.60 | F48: 28947.47 | G48: 28592.13 | H48: 28294.67 | I48: 27939.33 | J48: 29244.93 | K48: 29600.27 | L48: 29897.73 | M48: 29302.8 | N48: 28650 | O48: 266600 | P48: 3.82%
A49: 39 | B49: Oil_Gas | C49: BPCL | D49: 2024-02-29 | E49: 624.20 | F49: 624.22 | G49: 615.73 | H49: 607.27 | I49: 598.78 | J49: 632.68 | K49: 641.17 | L49: 649.63 | M49: 632.7 | N49: 615.75 | O49: 37461600 | P49: -3.01%
A50: 40 | B50: FMCG | C50: BRITANNIA | D50: 2024-02-29 | E50: 4916.40 | F50: 4915.70 | G50: 4896.40 | H50: 4876.40 | I50: 4857.10 | J50: 4935.70 | K50: 4955.00 | L50: 4975.00 | M50: 4935 | N50: 4895.7 | O50: 2485600 | P50: -0.58%
A51: 41 | B51: Technology | C51: BSOFT | D51: 2024-02-29 | E51: 797.25 | F51: 792.22 | G51: 785.73 | H51: 774.22 | I51: 767.73 | J51: 803.73 | K51: 810.22 | L51: 821.73 | M51: 798.7 | N51: 780.7 | O51: 8010000 | P51: -3.53%
A52: 42 | B52: Banking | C52: CANBK | D52: 2024-02-29 | E52: 570.90 | F52: 573.12 | G52: 563.83 | H52: 556.77 | I52: 547.48 | J52: 580.18 | K52: 589.47 | L52: 596.53 | M52: 582.4 | N52: 566.05 | O52: 47306700 | P52: -6.65%
A53: 43 | B53: Finance | C53: CANFINHOME | D53: 2024-02-29 | E53: 790.25 | F53: 793.33 | G53: 781.97 | H53: 773.68 | I53: 762.32 | J53: 801.62 | K53: 812.98 | L53: 821.27 | M53: 804.7 | N53: 785.05 | O53: 4293900 | P53: -5.70%
A54: 44 | B54: Others | C54: CHAMBLFERT | D54: 2024-02-29 | E54: 354.65 | F54: 356.13 | G54: 352.27 | H54: 349.88 | I54: 346.02 | J54: 358.52 | K54: 362.38 | L54: 364.77 | M54: 360 | N54: 353.75 | O54: 9310000 | P54: 1.05%
A55: 45 | B55: Finance | C55: CHOLAFIN | D55: 2024-02-29 | E55: 1097.40 | F55: 1101.80 | G55: 1078.65 | H55: 1059.90 | I55: 1036.75 | J55: 1120.55 | K55: 1143.70 | L55: 1162.45 | M55: 1124.95 | N55: 1083.05 | O55: 15340000 | P55: -5.78%
A56: 46 | B56: Pharma | C56: CIPLA | D56: 2024-02-29 | E56: 1484.35 | F56: 1480.28 | G56: 1471.67 | H56: 1458.98 | I56: 1450.37 | J56: 1492.97 | K56: 1501.58 | L56: 1514.27 | M56: 1488.9 | N56: 1467.6 | O56: 9958650 | P56: 0.07%
A57: 47 | B57: Others | C57: COALINDIA | D57: 2024-02-29 | E57: 440.75 | F57: 440.13 | G57: 434.97 | H57: 429.18 | I57: 424.02 | J57: 445.92 | K57: 451.08 | L57: 456.87 | M57: 445.3 | N57: 434.35 | O57: 65473800 | P57: -1.15%
A58: 48 | B58: Technology | C58: COFORGE | D58: 2024-02-29 | E58: 6568.95 | F58: 6584.40 | G58: 6516.25 | H58: 6463.55 | I58: 6395.40 | J58: 6637.10 | K58: 6705.25 | L58: 6757.95 | M58: 6652.55 | N58: 6531.7 | O58: 1434150 | P58: 1.62%
A59: 49 | B59: FMCG | C59: COLPAL | D59: 2024-02-29 | E59: 2539.05 | F59: 2540.72 | G59: 2519.43 | H59: 2499.82 | I59: 2478.53 | J59: 2560.33 | K59: 2581.62 | L59: 2601.23 | M59: 2562 | N59: 2521.1 | O59: 3715250 | P59: 4.51%
A60: 50 | B60: Others | C60: CONCOR | D60: 2024-02-29 | E60: 973.30 | F60: 979.27 | G60: 960.03 | H60: 946.77 | I60: 927.53 | J60: 992.53 | K60: 1011.77 | L60: 1025.03 | M60: 998.5 | N60: 966 | O60: 17904000 | P60: -0.95%
A61: 51 | B61: Others | C61: COROMANDEL | D61: 2024-02-29 | E61: 1040.90 | F61: 1043.60 | G61: 1024.90 | H61: 1008.90 | I61: 990.20 | J61: 1059.60 | K61: 1078.30 | L61: 1094.30 | M61: 1062.3 | N61: 1027.6 | O61: 1816500 | P61: 4.59%
A62: 52 | B62: Capital_Goods | C62: CROMPTON | D62: 2024-02-29 | E62: 291.05 | F62: 292.53 | G62: 288.32 | H62: 285.58 | I62: 281.37 | J62: 295.27 | K62: 299.48 | L62: 302.22 | M62: 296.75 | N62: 289.8 | O62: 18468000 | P62: 4.03%
A63: 53 | B63: Banking | C63: CUB | D63: 2024-02-29 | E63: 136.05 | F63: 135.63 | G63: 134.77 | H63: 133.48 | I63: 132.62 | J63: 136.92 | K63: 137.78 | L63: 139.07 | M63: 136.5 | N63: 134.35 | O63: 42500000 | P63: -3.46%
A64: 54 | B64: Capital_Goods | C64: CUMMINSIND | D64: 2024-02-29 | E64: 2758.00 | F64: 2762.02 | G64: 2723.08 | H64: 2688.17 | I64: 2649.23 | J64: 2796.93 | K64: 2835.87 | L64: 2870.78 | M64: 2800.95 | N64: 2727.1 | O64: 4188900 | P64: -3.77%
A65: 55 | B65: FMCG | C65: DABUR | D65: 2024-02-29 | E65: 534.70 | F65: 533.40 | G65: 528.30 | H65: 521.90 | I65: 516.80 | J65: 539.80 | K65: 544.90 | L65: 551.30 | M65: 538.5 | N65: 527 | O65: 22966250 | P65: -1.06%
A66: 56 | B66: Cement | C66: DALBHARAT | D66: 2024-02-29 | E66: 2068.40 | F66: 2080.95 | G66: 2050.20 | H66: 2032.00 | I66: 2001.25 | J66: 2099.15 | K66: 2129.90 | L66: 2148.10 | M66: 2111.7 | N66: 2062.75 | O66: 3171250 | P66: -3.71%
A67: 57 | B67: Chemical | C67: DEEPAKNTR | D67: 2024-02-29 | E67: 2260.15 | F67: 2273.87 | G67: 2238.73 | H67: 2217.32 | I67: 2182.18 | J67: 2295.28 | K67: 2330.42 | L67: 2351.83 | M67: 2309 | N67: 2252.45 | O67: 2984100 | P67: -1.14%
A68: 58 | B68: Others | C68: DELTACORP | D68: 2024-02-29 | E68: 146.50 | F68: 148.10 | G68: 144.45 | H68: 142.40 | I68: 138.75 | J68: 150.15 | K68: 153.80 | L68: 155.85 | M68: 151.75 | N68: 146.05 | O68: 10356000 | P68: -15.02%
A69: 59 | B69: Pharma | C69: DIVISLAB | D69: 2024-02-29 | E69: 3538.30 | F69: 3549.13 | G69: 3503.82 | H69: 3469.33 | I69: 3424.02 | J69: 3583.62 | K69: 3628.93 | L69: 3663.42 | M69: 3594.45 | N69: 3514.65 | O69: 4234600 | P69: 3.36%
A70: 60 | B70: Others | C70: DIXON | D70: 2024-02-29 | E70: 6775.50 | F70: 6752.68 | G70: 6610.47 | H70: 6445.43 | I70: 6303.22 | J70: 6917.72 | K70: 7059.93 | L70: 7224.97 | M70: 6894.9 | N70: 6587.65 | O70: 1505900 | P70: -3.32%
A71: 61 | B71: Realty | C71: DLF | D71: 2024-02-29 | E71: 914.65 | F71: 909.77 | G71: 902.83 | H71: 891.02 | I71: 884.08 | J71: 921.58 | K71: 928.52 | L71: 940.33 | M71: 916.7 | N71: 897.95 | O71: 35262150 | P71: -1.27%
A72: 62 | B72: Pharma | C72: DRREDDY | D72: 2024-02-29 | E72: 6428.20 | F72: 6411.37 | G72: 6383.48 | H72: 6338.77 | I72: 6310.88 | J72: 6456.08 | K72: 6483.97 | L72: 6528.68 | M72: 6439.25 | N72: 6366.65 | O72: 2246375 | P72: 3.32%
A73: 63 | B73: Automobile | C73: EICHERMOT | D73: 2024-02-29 | E73: 3998.45 | F73: 3986.33 | G73: 3964.42 | H73: 3930.38 | I73: 3908.47 | J73: 4020.37 | K73: 4042.28 | L73: 4076.32 | M73: 4008.25 | N73: 3952.3 | O73: 3884650 | P73: 0.19%
A74: 64 | B74: Automobile | C74: ESCORTS | D74: 2024-02-29 | E74: 2856.05 | F74: 2872.43 | G74: 2834.92 | H74: 2813.78 | I74: 2776.27 | J74: 2893.57 | K74: 2931.08 | L74: 2952.22 | M74: 2909.95 | N74: 2851.3 | O74: 2489025 | P74: -1.37%
A75: 65 | B75: Automobile | C75: EXIDEIND | D75: 2024-02-29 | E75: 326.75 | F75: 327.20 | G75: 324.70 | H75: 322.65 | I75: 320.15 | J75: 329.25 | K75: 331.75 | L75: 333.80 | M75: 329.7 | N75: 325.15 | O75: 19411200 | P75: -2.99%
A76: 66 | B76: Banking | C76: FEDERALBNK | D76: 2024-02-29 | E76: 154.30 | F76: 153.37 | G76: 152.03 | H76: 149.77 | I76: 148.43 | J76: 155.63 | K76: 156.97 | L76: 159.23 | M76: 154.7 | N76: 151.1 | O76: 98065000 | P76: -1.85%
A77: 67 | B77: Oil_Gas | C77: GAIL | D77: 2024-02-29 | E77: 180.85 | F77: 180.80 | G77: 178.60 | H77: 176.35 | I77: 174.15 | J77: 183.05 | K77: 185.25 | L77: 187.50 | M77: 183 | N77: 178.55 | O77: 137771550 | P77: -0.85%
A78: 68 | B78: Pharma | C78: GLENMARK | D78: 2024-02-29 | E78: 925.40 | F78: 926.72 | G78: 916.43 | H78: 907.47 | I78: 897.18 | J78: 935.68 | K78: 945.97 | L78: 954.93 | M78: 937 | N78: 917.75 | O78: 16245800 | P78: -2.76%
A79: 69 | B79: Infrastructure | C79: GMRINFRA | D79: 2024-02-29 | E79: 85.75 | F79: 86.62 | G79: 84.63 | H79: 83.52 | I79: 81.53 | J79: 87.73 | K79: 89.72 | L79: 90.83 | M79: 88.6 | N79: 85.5 | O79: 247815000 | P79: 13.69%
A80: 70 | B80: Others | C80: GNFC | D80: 2024-02-29 | E80: 666.05 | F80: 672.50 | G80: 657.55 | H80: 649.05 | I80: 634.10 | J80: 681.00 | K80: 695.95 | L80: 704.45 | M80: 687.45 | N80: 664 | O80: 7853300 | P80: -1.15%
A81: 71 | B81: FMCG | C81: GODREJCP | D81: 2024-02-29 | E81: 1263.80 | F81: 1258.25 | G81: 1248.70 | H81: 1233.60 | I81: 1224.05 | J81: 1273.35 | K81: 1282.90 | L81: 1298.00 | M81: 1267.8 | N81: 1243.15 | O81: 6354000 | P81: 0.94%
A82: 72 | B82: Realty | C82: GODREJPROP | D82: 2024-02-29 | E82: 2498.85 | F82: 2496.38 | G82: 2474.27 | H82: 2449.68 | I82: 2427.57 | J82: 2520.97 | K82: 2543.08 | L82: 2567.67 | M82: 2518.5 | N82: 2471.8 | O82: 4898200 | P82: -0.81%
A83: 73 | B83: Pharma | C83: GRANULES | D83: 2024-02-29 | E83: 467.10 | F83: 468.20 | G83: 461.95 | H83: 456.80 | I83: 450.55 | J83: 473.35 | K83: 479.60 | L83: 484.75 | M83: 474.45 | N83: 463.05 | O83: 10842000 | P83: -8.55%
A84: 74 | B84: Cement | C84: GRASIM | D84: 2024-02-29 | E84: 2199.70 | F84: 2198.87 | G84: 2187.78 | H84: 2175.87 | I84: 2164.78 | J84: 2210.78 | K84: 2221.87 | L84: 2233.78 | M84: 2209.95 | N84: 2186.95 | O84: 8457210 | P84: -3.04%
A85: 75 | B85: Oil_Gas | C85: GUJGASLTD | D85: 2024-02-29 | E85: 559.90 | F85: 563.83 | G85: 554.27 | H85: 548.63 | I85: 539.07 | J85: 569.47 | K85: 579.03 | L85: 584.67 | M85: 573.4 | N85: 558.2 | O85: 9278750 | P85: 18.56%
A86: 76 | B86: Others | C86: HAL | D86: 2024-02-29 | E86: 3097.30 | F86: 3087.42 | G86: 3045.08 | H86: 2992.87 | I86: 2950.53 | J86: 3139.63 | K86: 3181.97 | L86: 3234.18 | M86: 3129.75 | N86: 3035.2 | O86: 9186600 | P86: 3.31%
A87: 77 | B87: Capital_Goods | C87: HAVELLS | D87: 2024-02-29 | E87: 1464.90 | F87: 1460.45 | G87: 1440.65 | H87: 1416.40 | I87: 1396.60 | J87: 1484.70 | K87: 1504.50 | L87: 1528.75 | M87: 1480.25 | N87: 1436.2 | O87: 4720000 | P87: 6.85%
A88: 78 | B88: Technology | C88: HCLTECH | D88: 2024-02-29 | E88: 1660.30 | F88: 1660.88 | G88: 1651.82 | H88: 1643.33 | I88: 1634.27 | J88: 1669.37 | K88: 1678.43 | L88: 1686.92 | M88: 1669.95 | N88: 1652.4 | O88: 13656300 | P88: -0.48%
A89: 79 | B89: Finance | C89: HDFCAMC | D89: 2024-02-29 | E89: 3908.85 | F89: 3945.33 | G89: 3830.02 | H89: 3751.18 | I89: 3635.87 | J89: 4024.17 | K89: 4139.48 | L89: 4218.32 | M89: 4060.65 | N89: 3866.5 | O89: 3390900 | P89: 2.56%
A90: 80 | B90: Banking | C90: HDFCBANK | D90: 2024-02-29 | E90: 1419.25 | F90: 1419.73 | G90: 1413.47 | H90: 1407.68 | I90: 1401.42 | J90: 1425.52 | K90: 1431.78 | L90: 1437.57 | M90: 1426 | N90: 1413.95 | O90: 233297900 | P90: 2.23%
A91: 81 | B91: Finance | C91: HDFCLIFE | D91: 2024-02-29 | E91: 580.65 | F91: 582.20 | G91: 572.40 | H91: 564.15 | I91: 554.35 | J91: 590.45 | K91: 600.25 | L91: 608.50 | M91: 592 | N91: 573.95 | O91: 34871100 | P91: -0.59%
A92: 82 | B92: Automobile | C92: HEROMOTOCO | D92: 2024-02-29 | E92: 4434.10 | F92: 4457.13 | G92: 4390.97 | H92: 4347.83 | I92: 4281.67 | J92: 4500.27 | K92: 4566.43 | L92: 4609.57 | M92: 4523.3 | N92: 4414 | O92: 4185300 | P92: 2.80%
A93: 83 | B93: Metals | C93: HINDALCO | D93: 2024-02-29 | E93: 509.20 | F93: 508.07 | G93: 505.88 | H93: 502.57 | I93: 500.38 | J93: 511.38 | K93: 513.57 | L93: 516.88 | M93: 510.25 | N93: 504.75 | O93: 51118200 | P93: -0.08%
A94: 84 | B94: Metals | C94: HINDCOPPER | D94: 2024-02-29 | E94: 253.05 | F94: 256.47 | G94: 248.13 | H94: 243.22 | I94: 234.88 | J94: 261.38 | K94: 269.72 | L94: 274.63 | M94: 264.8 | N94: 251.55 | O94: 32451900 | P94: 2.05%
A95: 85 | B95: Oil_Gas | C95: HINDPETRO | D95: 2024-02-29 | E95: 530.45 | F95: 533.58 | G95: 520.42 | H95: 510.38 | I95: 497.22 | J95: 543.62 | K95: 556.78 | L95: 566.82 | M95: 546.75 | N95: 523.55 | O95: 38391300 | P95: 0.84%
A96: 86 | B96: FMCG | C96: HINDUNILVR | D96: 2024-02-29 | E96: 2405.85 | F96: 2401.32 | G96: 2393.78 | H96: 2381.72 | I96: 2374.18 | J96: 2413.38 | K96: 2420.92 | L96: 2432.98 | M96: 2408.85 | N96: 2389.25 | O96: 12358800 | P96: -2.61%
A97: 87 | B97: Banking | C97: ICICIBANK | D97: 2024-02-29 | E97: 1057.15 | F97: 1055.70 | G97: 1048.80 | H97: 1040.45 | I97: 1033.55 | J97: 1064.05 | K97: 1070.95 | L97: 1079.30 | M97: 1062.6 | N97: 1047.35 | O97: 82048400 | P97: 7.48%
A98: 88 | B98: Finance | C98: ICICIGI | D98: 2024-02-29 | E98: 1723.80 | F98: 1705.60 | G98: 1679.40 | H98: 1635.00 | I98: 1608.80 | J98: 1750.00 | K98: 1776.20 | L98: 1820.60 | M98: 1731.8 | N98: 1661.2 | O98: 3552500 | P98: 10.51%
A99: 89 | B99: Finance | C99: ICICIPRULI | D99: 2024-02-29 | E99: 519.55 | F99: 525.43 | G99: 511.02 | H99: 502.48 | I99: 488.07 | J99: 533.97 | K99: 548.38 | L99: 556.92 | M99: 539.85 | N99: 516.9 | O99: 12604500 | P99: 0.42%
A100: 90 | B100: Telecom | C100: IDEA | D100: 2024-02-29 | E100: 15.90 | F100: 16.22 | G100: 15.38 | H100: 14.87 | I100: 14.03 | J100: 16.73 | K100: 17.57 | L100: 18.08 | M100: 17.05 | N100: 15.7 | O100: 2340640000 | P100: 6.83%
A101: 91 | B101: Finance | C101: IDFC | D101: 2024-02-29 | E101: 118.70 | F101: 119.10 | G101: 117.95 | H101: 117.20 | I101: 116.05 | J101: 119.85 | K101: 121.00 | L101: 121.75 | M101: 120.25 | N101: 118.35 | O101: 70420000 | P101: -0.73%
A102: 92 | B102: Banking | C102: IDFCFIRSTB | D102: 2024-02-29 | E102: 83.60 | F102: 83.82 | G102: 83.03 | H102: 82.47 | I102: 81.68 | J102: 84.38 | K102: 85.17 | L102: 85.73 | M102: 84.6 | N102: 83.25 | O102: 352282500 | P102: -1.37%
A103: 93 | B103: Others | C103: IEX | D103: 2024-02-29 | E103: 145.00 | F103: 146.27 | G103: 143.13 | H103: 141.27 | I103: 138.13 | J103: 148.13 | K103: 151.27 | L103: 153.13 | M103: 149.4 | N103: 144.4 | O103: 65793750 | P103: -0.57%
A104: 94 | B104: Oil_Gas | C104: IGL | D104: 2024-02-29 | E104: 422.50 | F104: 426.58 | G104: 417.37 | H104: 412.23 | I104: 403.02 | J104: 431.72 | K104: 440.93 | L104: 446.07 | M104: 435.8 | N104: 421.45 | O104: 14092375 | P104: -2.53%
A105: 95 | B105: Infrastructure | C105: INDHOTEL | D105: 2024-02-29 | E105: 590.55 | F105: 586.87 | G105: 579.43 | H105: 568.32 | I105: 560.88 | J105: 597.98 | K105: 605.42 | L105: 616.53 | M105: 594.3 | N105: 575.75 | O105: 18410000 | P105: -2.26%
A106: 96 | B106: Cement | C106: INDIACEM | D106: 2024-02-29 | E106: 234.15 | F106: 236.18 | G106: 231.47 | H106: 228.78 | I106: 224.07 | J106: 238.87 | K106: 243.58 | L106: 246.27 | M106: 240.9 | N106: 233.5 | O106: 20917700 | P106: -2.22%
A107: 97 | B107: Others | C107: INDIAMART | D107: 2024-02-29 | E107: 2709.25 | F107: 2696.15 | G107: 2679.35 | H107: 2649.45 | I107: 2632.65 | J107: 2726.05 | K107: 2742.85 | L107: 2772.75 | M107: 2712.95 | N107: 2666.25 | O107: 919800 | P107: -8.42%
A108: 98 | B108: Others | C108: INDIGO | D108: 2024-02-29 | E108: 3172.60 | F108: 3171.90 | G108: 3148.80 | H108: 3125.00 | I108: 3101.90 | J108: 3195.70 | K108: 3218.80 | L108: 3242.60 | M108: 3195 | N108: 3148.1 | O108: 5628600 | P108: -5.33%
A109: 99 | B109: Banking | C109: INDUSINDBK | D109: 2024-02-29 | E109: 1491.20 | F109: 1482.48 | G109: 1469.47 | H109: 1447.73 | I109: 1434.72 | J109: 1504.22 | K109: 1517.23 | L109: 1538.97 | M109: 1495.5 | N109: 1460.75 | O109: 29046500 | P109: 3.89%
A110: 100 | B110: Telecom | C110: INDUSTOWER | D110: 2024-02-29 | E110: 240.15 | F110: 243.30 | G110: 235.75 | H110: 231.35 | I110: 223.80 | J110: 247.70 | K110: 255.25 | L110: 259.65 | M110: 250.85 | N110: 238.9 | O110: 107508000 | P110: 2.84%
A111: 101 | B111: Technology | C111: INFY | D111: 2024-02-29 | E111: 1665.05 | F111: 1664.32 | G111: 1655.73 | H111: 1646.42 | I111: 1637.83 | J111: 1673.63 | K111: 1682.22 | L111: 1691.53 | M111: 1672.9 | N111: 1655 | O111: 25394800 | P111: -0.27%
A112: 102 | B112: Oil_Gas | C112: IOC | D112: 2024-02-29 | E112: 173.55 | F112: 174.78 | G112: 170.97 | H112: 168.38 | I112: 164.57 | J112: 177.37 | K112: 181.18 | L112: 183.77 | M112: 178.6 | N112: 172.2 | O112: 183134250 | P112: 0.56%
A113: 103 | B113: Pharma | C113: IPCALAB | D113: 2024-02-29 | E113: 1196.55 | F113: 1204.62 | G113: 1183.28 | H113: 1170.02 | I113: 1148.68 | J113: 1217.88 | K113: 1239.22 | L113: 1252.48 | M113: 1225.95 | N113: 1191.35 | O113: 3745950 | P113: 9.19%
A114: 104 | B114: Others | C114: IRCTC | D114: 2024-02-29 | E114: 952.80 | F114: 957.63 | G114: 942.07 | H114: 931.33 | I114: 915.77 | J114: 968.37 | K114: 983.93 | L114: 994.67 | M114: 973.2 | N114: 946.9 | O114: 17296125 | P114: -4.45%
A115: 105 | B115: FMCG | C115: ITC | D115: 2024-02-29 | E115: 410.55 | F115: 410.37 | G115: 408.33 | H115: 406.12 | I115: 404.08 | J115: 412.58 | K115: 414.62 | L115: 416.83 | M115: 412.4 | N115: 408.15 | O115: 119924800 | P115: 0.04%
A116: 106 | B116: Metals | C116: JINDALSTEL | D116: 2024-02-29 | E116: 776.35 | F116: 776.07 | G116: 767.83 | H116: 759.32 | I116: 751.08 | J116: 784.58 | K116: 792.82 | L116: 801.33 | M116: 784.3 | N116: 767.55 | O116: 24127500 | P116: -3.41%
A117: 107 | B117: Cement | C117: JKCEMENT | D117: 2024-02-29 | E117: 4496.40 | F117: 4480.38 | G117: 4413.52 | H117: 4330.63 | I117: 4263.77 | J117: 4563.27 | K117: 4630.13 | L117: 4713.02 | M117: 4547.25 | N117: 4397.5 | O117: 809250 | P117: 3.88%
A118: 108 | B118: Metals | C118: JSWSTEEL | D118: 2024-02-29 | E118: 817.40 | F118: 813.82 | G118: 808.68 | H118: 799.97 | I118: 794.83 | J118: 822.53 | K118: 827.67 | L118: 836.38 | M118: 818.95 | N118: 805.1 | O118: 17591175 | P118: -1.34%
A119: 109 | B119: Others | C119: JUBLFOOD | D119: 2024-02-29 | E119: 484.55 | F119: 486.07 | G119: 479.93 | H119: 475.32 | I119: 469.18 | J119: 490.68 | K119: 496.82 | L119: 501.43 | M119: 492.2 | N119: 481.45 | O119: 18243750 | P119: -10.98%
A120: 110 | B120: Banking | C120: KOTAKBANK | D120: 2024-02-29 | E120: 1702.75 | F120: 1703.75 | G120: 1695.35 | H120: 1687.95 | I120: 1679.55 | J120: 1711.15 | K120: 1719.55 | L120: 1726.95 | M120: 1712.15 | N120: 1696.35 | O120: 38983200 | P120: 3.73%
A121: 111 | B121: Finance | C121: L&TFH | D121: 2024-02-29 | E121: 169.35 | F121: 170.00 | G121: 168.00 | H121: 166.65 | I121: 164.65 | J121: 171.35 | K121: 173.35 | L121: 174.70 | M121: 172 | N121: 168.65 | O121: 40871920 | P121: -5.03%
A122: 112 | B122: Others | C122: LALPATHLAB | D122: 2024-02-29 | E122: 2366.80 | F122: 2388.05 | G122: 2341.75 | H122: 2316.70 | I122: 2270.40 | J122: 2413.10 | K122: 2459.40 | L122: 2484.45 | M122: 2434.35 | N122: 2363 | O122: 1287600 | P122: -2.10%
A123: 113 | B123: Pharma | C123: LAURUSLABS | D123: 2024-02-29 | E123: 399.50 | F123: 399.38 | G123: 395.07 | H123: 390.63 | I123: 386.32 | J123: 403.82 | K123: 408.13 | L123: 412.57 | M123: 403.7 | N123: 394.95 | O123: 13404500 | P123: -4.78%
A124: 114 | B124: Finance | C124: LICHSGFIN | D124: 2024-02-29 | E124: 650.55 | F124: 653.55 | G124: 642.40 | H124: 634.25 | I124: 623.10 | J124: 661.70 | K124: 672.85 | L124: 681.00 | M124: 664.7 | N124: 645.4 | O124: 17290000 | P124: 7.10%
A125: 115 | B125: Capital_Goods | C125: LT | D125: 2024-02-29 | E125: 3501.45 | F125: 3487.03 | G125: 3468.42 | H125: 3435.38 | I125: 3416.77 | J125: 3520.07 | K125: 3538.68 | L125: 3571.72 | M125: 3505.65 | N125: 3454 | O125: 16100700 | P125: 1.56%
A126: 116 | B126: Technology | C126: LTIM | D126: 2024-02-29 | E126: 5451.65 | F126: 5450.32 | G126: 5402.33 | H126: 5353.02 | I126: 5305.03 | J126: 5499.63 | K126: 5547.62 | L126: 5596.93 | M126: 5498.3 | N126: 5401 | O126: 2401050 | P126: 7.36%
A127: 117 | B127: Technology | C127: LTTS | D127: 2024-02-29 | E127: 5397.80 | F127: 5423.78 | G127: 5362.57 | H127: 5327.33 | I127: 5266.12 | J127: 5459.02 | K127: 5520.23 | L127: 5555.47 | M127: 5485 | N127: 5388.55 | O127: 791800 | P127: 0.84%
A128: 118 | B128: Pharma | C128: LUPIN | D128: 2024-02-29 | E128: 1618.65 | F128: 1612.82 | G128: 1592.73 | H128: 1566.82 | I128: 1546.73 | J128: 1638.73 | K128: 1658.82 | L128: 1684.73 | M128: 1632.9 | N128: 1586.9 | O128: 7627900 | P128: -2.71%
A129: 119 | B129: Automobile | C129: M&M | D129: 2024-02-29 | E129: 1952.30 | F129: 1942.57 | G129: 1927.23 | H129: 1902.17 | I129: 1886.83 | J129: 1967.63 | K129: 1982.97 | L129: 2008.03 | M129: 1957.9 | N129: 1917.5 | O129: 12278700 | P129: 0.04%
A130: 120 | B130: Finance | C130: M&MFIN | D130: 2024-02-29 | E130: 288.00 | F130: 288.57 | G130: 284.28 | H130: 280.57 | I130: 276.28 | J130: 292.28 | K130: 296.57 | L130: 300.28 | M130: 292.85 | N130: 284.85 | O130: 29378000 | P130: -1.02%
A131: 121 | B131: Finance | C131: MANAPPURAM | D131: 2024-02-29 | E131: 179.30 | F131: 180.07 | G131: 177.48 | H131: 175.67 | I131: 173.08 | J131: 181.88 | K131: 184.47 | L131: 186.28 | M131: 182.65 | N131: 178.25 | O131: 58812000 | P131: -0.94%
A132: 122 | B132: FMCG | C132: MARICO | D132: 2024-02-29 | E132: 523.75 | F132: 523.93 | G132: 520.47 | H132: 517.18 | I132: 513.72 | J132: 527.22 | K132: 530.68 | L132: 533.97 | M132: 527.4 | N132: 520.65 | O132: 12696000 | P132: 7.68%
A133: 123 | B133: Automobile | C133: MARUTI | D133: 2024-02-29 | E133: 11494.90 | F133: 11486.92 | G133: 11408.33 | H133: 11321.77 | I133: 11243.18 | J133: 11573.48 | K133: 11652.07 | L133: 11738.63 | M133: 11565.5 | N133: 11400.35 | O133: 2509600 | P133: 2.08%
A134: 124 | B134: FMCG | C134: MCDOWELL-N | D134: 2024-02-29 | E134: 1154.05 | F134: 1149.45 | G134: 1142.65 | H134: 1131.25 | I134: 1124.45 | J134: 1160.85 | K134: 1167.65 | L134: 1179.05 | M134: 1156.25 | N134: 1138.05 | O134: 6839000 | P134: -0.70%
A135: 125 | B135: Others | C135: MCX | D135: 2024-02-29 | E135: 3712.70 | F135: 3705.22 | G135: 3658.48 | H135: 3604.27 | I135: 3557.53 | J135: 3759.43 | K135: 3806.17 | L135: 3860.38 | M135: 3751.95 | N135: 3651 | O135: 2457200 | P135: -0.31%
A136: 126 | B136: Pharma | C136: METROPOLIS | D136: 2024-02-29 | E136: 1633.65 | F136: 1655.50 | G136: 1607.30 | H136: 1580.95 | I136: 1532.75 | J136: 1681.85 | K136: 1730.05 | L136: 1756.40 | M136: 1703.7 | N136: 1629.15 | O136: 1282400 | P136: 6.16%
A137: 127 | B137: Finance | C137: MFSL | D137: 2024-02-29 | E137: 933.80 | F137: 928.53 | G137: 917.07 | H137: 900.33 | I137: 888.87 | J137: 945.27 | K137: 956.73 | L137: 973.47 | M137: 940 | N137: 911.8 | O137: 10383200 | P137: 0.93%
A138: 128 | B138: Oil_Gas | C138: MGL | D138: 2024-02-29 | E138: 1512.30 | F138: 1510.77 | G138: 1501.53 | H138: 1490.77 | I138: 1481.53 | J138: 1521.53 | K138: 1530.77 | L138: 1541.53 | M138: 1520 | N138: 1500 | O138: 2324800 | P138: -2.09%
A139: 129 | B139: Automobile | C139: MOTHERSON | D139: 2024-02-29 | E139: 115.05 | F139: 115.03 | G139: 114.12 | H139: 113.18 | I139: 112.27 | J139: 115.97 | K139: 116.88 | L139: 117.82 | M139: 115.95 | N139: 114.1 | O139: 108480900 | P139: -0.03%
A140: 130 | B140: Technology | C140: MPHASIS | D140: 2024-02-29 | E140: 2690.35 | F140: 2681.53 | G140: 2661.07 | H140: 2631.78 | I140: 2611.32 | J140: 2710.82 | K140: 2731.28 | L140: 2760.57 | M140: 2702 | N140: 2652.25 | O140: 3539525 | P140: -5.66%
A141: 131 | B141: Automobile | C141: MRF | D141: 2024-02-29 | E141: 147228.30 | F141: 147776.12 | G141: 145845.78 | H141: 144463.27 | I141: 142532.93 | J141: 149158.63 | K141: 151088.97 | L141: 152471.48 | M141: 149706.45 | N141: 146393.6 | O141: 38950 | P141: -0.57%
A142: 132 | B142: Finance | C142: MUTHOOTFIN | D142: 2024-02-29 | E142: 1297.25 | F142: 1298.28 | G142: 1276.57 | H142: 1255.88 | I142: 1234.17 | J142: 1318.97 | K142: 1340.68 | L142: 1361.37 | M142: 1320 | N142: 1277.6 | O142: 7191250 | P142: 9.63%
A143: 133 | B143: Metals | C143: NATIONALUM | D143: 2024-02-29 | E143: 155.60 | F143: 156.27 | G143: 153.68 | H143: 151.77 | I143: 149.18 | J143: 158.18 | K143: 160.77 | L143: 162.68 | M143: 158.85 | N143: 154.35 | O143: 73087500 | P143: -1.93%
A144: 134 | B144: Others | C144: NAUKRI | D144: 2024-02-29 | E144: 5356.80 | F144: 5333.58 | G144: 5247.02 | H144: 5137.23 | I144: 5050.67 | J144: 5443.37 | K144: 5529.93 | L144: 5639.72 | M144: 5420.15 | N144: 5223.8 | O144: 1113900 | P144: -1.54%
A145: 135 | B145: Chemical | C145: NAVINFLUOR | D145: 2024-02-29 | E145: 3115.40 | F145: 3108.42 | G145: 3084.98 | H145: 3054.57 | I145: 3031.13 | J145: 3138.83 | K145: 3162.27 | L145: 3192.68 | M145: 3131.85 | N145: 3078 | O145: 1833150 | P145: -4.31%
A146: 136 | B146: FMCG | C146: NESTLEIND | D146: 2024-02-29 | E146: 2594.00 | F146: 2581.75 | G146: 2565.50 | H146: 2537.00 | I146: 2520.75 | J146: 2610.25 | K146: 2626.50 | L146: 2655.00 | M146: 2598 | N146: 2553.25 | O146: 5117200 | P146: -2.73%
A147: 137 | B147: Metals | C147: NMDC | D147: 2024-02-29 | E147: 225.50 | F147: 226.35 | G147: 222.05 | H147: 218.60 | I147: 214.30 | J147: 229.80 | K147: 234.10 | L147: 237.55 | M147: 230.65 | N147: 222.9 | O147: 97870500 | P147: 3.71%
A148: 138 | B148: Power | C148: NTPC | D148: 2024-02-29 | E148: 335.05 | F148: 335.28 | G148: 333.07 | H148: 331.08 | I148: 328.87 | J148: 337.27 | K148: 339.48 | L148: 341.47 | M148: 337.5 | N148: 333.3 | O148: 95838000 | P148: 2.19%
A149: 139 | B149: Realty | C149: OBEROIRLTY | D149: 2024-02-29 | E149: 1382.80 | F149: 1385.30 | G149: 1372.80 | H149: 1362.80 | I149: 1350.30 | J149: 1395.30 | K149: 1407.80 | L149: 1417.80 | M149: 1397.8 | N149: 1375.3 | O149: 7208600 | P149: -4.28%
A150: 140 | B150: Technology | C150: OFSS | D150: 2024-02-29 | E150: 7862.75 | F150: 7900.20 | G150: 7774.25 | H150: 7685.75 | I150: 7559.80 | J150: 7988.70 | K150: 8114.65 | L150: 8203.15 | M150: 8026.15 | N150: 7811.7 | O150: 1015800 | P150: -2.12%
A151: 141 | B151: Oil_Gas | C151: ONGC | D151: 2024-02-29 | E151: 268.50 | F151: 267.50 | G151: 265.55 | H151: 262.60 | I151: 260.65 | J151: 270.45 | K151: 272.40 | L151: 275.35 | M151: 269.45 | N151: 264.55 | O151: 111911800 | P151: 6.99%
A152: 142 | B152: Textile | C152: PAGEIND | D152: 2024-02-29 | E152: 35671.25 | F152: 35796.18 | G152: 35381.17 | H152: 35091.08 | I152: 34676.07 | J152: 36086.27 | K152: 36501.28 | L152: 36791.37 | M152: 36211.2 | N152: 35506.1 | O152: 169245 | P152: 5.71%
A153: 143 | B153: Pharma | C153: PEL | D153: 2024-02-29 | E153: 914.80 | F153: 916.27 | G153: 903.53 | H153: 892.27 | I153: 879.53 | J153: 927.53 | K153: 940.27 | L153: 951.53 | M153: 929 | N153: 905 | O153: 11418000 | P153: -0.33%
A154: 144 | B154: Technology | C154: PERSISTENT | D154: 2024-02-29 | E154: 8532.00 | F154: 8500.67 | G154: 8456.33 | H154: 8380.67 | I154: 8336.33 | J154: 8576.33 | K154: 8620.67 | L154: 8696.33 | M154: 8545 | N154: 8425 | O154: 1725800 | P154: -3.53%
A155: 145 | B155: Oil_Gas | C155: PETRONET | D155: 2024-02-29 | E155: 281.60 | F155: 282.57 | G155: 277.48 | H155: 273.37 | I155: 268.28 | J155: 286.68 | K155: 291.77 | L155: 295.88 | M155: 287.65 | N155: 278.45 | O155: 39729000 | P155: 1.35%
A156: 146 | B156: Finance | C156: PFC | D156: 2024-02-29 | E156: 401.70 | F156: 402.63 | G156: 393.47 | H156: 385.23 | I156: 376.07 | J156: 410.87 | K156: 420.03 | L156: 428.27 | M156: 411.8 | N156: 394.4 | O156: 80898375 | P156: 1.61%
A157: 147 | B157: FMCG | C157: PIDILITIND | D157: 2024-02-29 | E157: 2729.00 | F157: 2724.62 | G157: 2710.08 | H157: 2691.17 | I157: 2676.63 | J157: 2743.53 | K157: 2758.07 | L157: 2776.98 | M157: 2739.15 | N157: 2705.7 | O157: 2978500 | P157: -0.91%
A158: 148 | B158: Chemical | C158: PIIND | D158: 2024-02-29 | E158: 3667.95 | F158: 3671.68 | G158: 3638.37 | H158: 3608.78 | I158: 3575.47 | J158: 3701.27 | K158: 3734.58 | L158: 3764.17 | M158: 3705 | N158: 3642.1 | O158: 2303000 | P158: -3.21%
A159: 149 | B159: Banking | C159: PNB | D159: 2024-02-29 | E159: 123.55 | F159: 123.85 | G159: 122.20 | H159: 120.85 | I159: 119.20 | J159: 125.20 | K159: 126.85 | L159: 128.20 | M159: 125.5 | N159: 122.5 | O159: 256272000 | P159: -0.30%
A160: 150 | B160: Others | C160: POLYCAB | D160: 2024-02-29 | E160: 4769.55 | F160: 4765.68 | G160: 4735.07 | H160: 4700.58 | I160: 4669.97 | J160: 4800.17 | K160: 4830.78 | L160: 4865.27 | M160: 4796.3 | N160: 4731.2 | O160: 2489100 | P160: 3.67%
A161: 151 | B161: Power | C161: POWERGRID | D161: 2024-02-29 | E161: 291.85 | F161: 289.83 | G161: 286.92 | H161: 281.98 | I161: 279.07 | J161: 294.77 | K161: 297.68 | L161: 302.62 | M161: 292.75 | N161: 284.9 | O161: 62424000 | P161: 2.03%
A162: 152 | B162: Media | C162: PVRINOX | D162: 2024-02-29 | E162: 1401.40 | F162: 1401.25 | G162: 1386.35 | H162: 1371.30 | I162: 1356.40 | J162: 1416.30 | K162: 1431.20 | L162: 1446.25 | M162: 1416.15 | N162: 1386.2 | O162: 6637356 | P162: 2.65%
A163: 153 | B163: Cement | C163: RAMCOCEM | D163: 2024-02-29 | E163: 869.40 | F163: 870.70 | G163: 864.95 | H163: 860.50 | I163: 854.75 | J163: 875.15 | K163: 880.90 | L163: 885.35 | M163: 876.45 | N163: 866.25 | O163: 3530900 | P163: 2.85%
A164: 154 | B164: Banking | C164: RBLBANK | D164: 2024-02-29 | E164: 266.25 | F164: 268.23 | G164: 260.77 | H164: 255.28 | I164: 247.82 | J164: 273.72 | K164: 281.18 | L164: 286.67 | M164: 275.7 | N164: 262.75 | O164: 62817500 | P164: -0.82%
A165: 155 | B165: Power | C165: RECLTD | D165: 2024-02-29 | E165: 444.50 | F165: 447.77 | G165: 434.53 | H165: 424.57 | I165: 411.33 | J165: 457.73 | K165: 470.97 | L165: 480.93 | M165: 461 | N165: 437.8 | O165: 43456000 | P165: 1.10%
A166: 156 | B166: Oil_Gas | C166: RELIANCE | D166: 2024-02-29 | E166: 2975.95 | F166: 2979.17 | G166: 2953.93 | H166: 2931.92 | I166: 2906.68 | J166: 3001.18 | K166: 3026.42 | L166: 3048.43 | M166: 3004.4 | N166: 2957.15 | O166: 39158000 | P166: 1.54%
A167: 157 | B167: Metals | C167: SAIL | D167: 2024-02-29 | E167: 125.85 | F167: 125.53 | G167: 124.32 | H167: 122.78 | I167: 121.57 | J167: 127.07 | K167: 128.28 | L167: 129.82 | M167: 126.75 | N167: 124 | O167: 147248000 | P167: -3.86%
A168: 158 | B168: Banking | C168: SBICARD | D168: 2024-02-29 | E168: 732.90 | F168: 731.18 | G168: 726.17 | H168: 719.43 | I168: 714.42 | J168: 737.92 | K168: 742.93 | L168: 749.67 | M168: 736.2 | N168: 724.45 | O168: 22733600 | P168: -7.77%
A169: 159 | B169: Finance | C169: SBILIFE | D169: 2024-02-29 | E169: 1543.75 | F169: 1549.62 | G169: 1529.48 | H169: 1515.22 | I169: 1495.08 | J169: 1563.88 | K169: 1584.02 | L169: 1598.28 | M169: 1569.75 | N169: 1535.35 | O169: 7590750 | P169: 1.97%
A170: 160 | B170: Banking | C170: SBIN | D170: 2024-02-29 | E170: 749.45 | F170: 751.22 | G170: 739.93 | H170: 730.42 | I170: 719.13 | J170: 760.73 | K170: 772.02 | L170: 781.53 | M170: 762.5 | N170: 741.7 | O170: 105975000 | P170: 1.93%
A171: 161 | B171: Cement | C171: SHREECEM | D171: 2024-02-29 | E171: 26165.15 | F171: 26191.72 | G171: 25884.43 | H171: 25603.72 | I171: 25296.43 | J171: 26472.43 | K171: 26779.72 | L171: 27060.43 | M171: 26499 | N171: 25911 | O171: 250575 | P171: -3.02%
A172: 162 | B172: Capital_Goods | C172: SIEMENS | D172: 2024-02-29 | E172: 4586.95 | F172: 4596.10 | G172: 4552.20 | H172: 4517.45 | I172: 4473.55 | J172: 4630.85 | K172: 4674.75 | L172: 4709.50 | M172: 4640 | N172: 4561.35 | O172: 1156800 | P172: -1.44%
A173: 163 | B173: Textile | C173: SRF | D173: 2024-02-29 | E173: 2388.90 | F173: 2392.45 | G173: 2357.30 | H173: 2325.70 | I173: 2290.55 | J173: 2424.05 | K173: 2459.20 | L173: 2490.80 | M173: 2427.6 | N173: 2360.85 | O173: 4150875 | P173: -1.65%
A174: 164 | B174: Finance | C174: SHRIRAMFIN | D174: 2024-02-29 | E174: 2368.65 | F174: 2378.97 | G174: 2248.18 | H174: 2127.72 | I174: 1996.93 | J174: 2499.43 | K174: 2630.22 | L174: 2750.68 | M174: 2509.75 | N174: 2258.5 | O174: 7655400 | P174: 9.37%
A175: 165 | B175: Pharma | C175: SUNPHARMA | D175: 2024-02-29 | E175: 1579.00 | F175: 1570.50 | G175: 1560.80 | H175: 1542.60 | I175: 1532.90 | J175: 1588.70 | K175: 1598.40 | L175: 1616.60 | M175: 1580.2 | N175: 1552.3 | O175: 20413400 | P175: 2.65%
A176: 166 | B176: Media | C176: SUNTV | D176: 2024-02-29 | E176: 621.35 | F176: 626.08 | G176: 615.27 | H176: 609.18 | I176: 598.37 | J176: 632.17 | K176: 642.98 | L176: 649.07 | M176: 636.9 | N176: 620 | O176: 6787500 | P176: -0.98%
A177: 167 | B177: Pharma | C177: SYNGENE | D177: 2024-02-29 | E177: 728.25 | F177: 729.87 | G177: 722.38 | H177: 716.52 | I177: 709.03 | J177: 735.73 | K177: 743.22 | L177: 749.08 | M177: 737.35 | N177: 724 | O177: 5514000 | P177: 3.63%
A178: 168 | B178: Chemical | C178: TATACHEM | D178: 2024-02-29 | E178: 960.80 | F178: 965.75 | G178: 953.55 | H178: 946.30 | I178: 934.10 | J178: 973.00 | K178: 985.20 | L178: 992.45 | M178: 977.95 | N178: 958.5 | O178: 15073850 | P178: 8.65%
A179: 169 | B179: Telecom | C179: TATACOMM | D179: 2024-02-29 | E179: 1911.55 | F179: 1899.27 | G179: 1880.23 | H179: 1848.92 | I179: 1829.88 | J179: 1930.58 | K179: 1949.62 | L179: 1980.93 | M179: 1918.3 | N179: 1867.95 | O179: 7200500 | P179: 1.06%
A180: 170 | B180: FMCG | C180: TATACONSUM | D180: 2024-02-29 | E180: 1182.50 | F180: 1181.67 | G180: 1175.38 | H180: 1168.27 | I180: 1161.98 | J180: 1188.78 | K180: 1195.07 | L180: 1202.18 | M180: 1187.95 | N180: 1174.55 | O180: 12641400 | P180: 2.01%
A181: 171 | B181: Automobile | C181: TATAMOTORS | D181: 2024-02-29 | E181: 963.50 | F181: 954.83 | G181: 943.92 | H181: 924.33 | I181: 913.42 | J181: 974.42 | K181: 985.33 | L181: 1004.92 | M181: 965.75 | N181: 935.25 | O181: 72545325 | P181: 6.08%
A182: 172 | B182: Power | C182: TATAPOWER | D182: 2024-02-29 | E182: 376.15 | F182: 376.70 | G182: 373.60 | H182: 371.05 | I182: 367.95 | J182: 379.25 | K182: 382.35 | L182: 384.90 | M182: 379.8 | N182: 374.15 | O182: 92471625 | P182: -0.33%
A183: 173 | B183: Metals | C183: TATASTEEL | D183: 2024-02-29 | E183: 144.10 | F183: 143.45 | G183: 142.50 | H183: 140.90 | I183: 139.95 | J183: 145.05 | K183: 146.00 | L183: 147.60 | M183: 144.4 | N183: 141.85 | O183: 207520500 | P183: -2.75%
A184: 174 | B184: Technology | C184: TCS | D184: 2024-02-29 | E184: 4108.95 | F184: 4078.78 | G184: 4027.72 | H184: 3946.48 | I184: 3895.42 | J184: 4160.02 | K184: 4211.08 | L184: 4292.32 | M184: 4129.85 | N184: 3997.55 | O184: 13146875 | P184: 3.57%
A185: 175 | B185: Technology | C185: TECHM | D185: 2024-02-29 | E185: 1294.15 | F185: 1292.95 | G185: 1282.70 | H185: 1271.25 | I185: 1261.00 | J185: 1304.40 | K185: 1314.65 | L185: 1326.10 | M185: 1303.2 | N185: 1281.5 | O185: 13726200 | P185: -1.16%
A186: 176 | B186: FMCG | C186: TITAN | D186: 2024-02-29 | E186: 3655.95 | F186: 3649.17 | G186: 3626.33 | H186: 3596.72 | I186: 3573.88 | J186: 3678.78 | K186: 3701.62 | L186: 3731.23 | M186: 3672 | N186: 3619.55 | O186: 5112450 | P186: 0.29%
A187: 177 | B187: Pharma | C187: TORNTPHARM | D187: 2024-02-29 | E187: 2623.50 | F187: 2625.42 | G187: 2606.73 | H187: 2589.97 | I187: 2571.28 | J187: 2642.18 | K187: 2660.87 | L187: 2677.63 | M187: 2644.1 | N187: 2608.65 | O187: 1590000 | P187: 0.25%
A188: 178 | B188: Others | C188: TRENT | D188: 2024-02-29 | E188: 3929.85 | F188: 3915.47 | G188: 3841.08 | H188: 3752.32 | I188: 3677.93 | J188: 4004.23 | K188: 4078.62 | L188: 4167.38 | M188: 3989.85 | N188: 3826.7 | O188: 2840400 | P188: -0.70%
A189: 179 | B189: Automobile | C189: TVSMOTOR | D189: 2024-02-29 | E189: 2136.00 | F189: 2143.80 | G189: 2120.35 | H189: 2104.70 | I189: 2081.25 | J189: 2159.45 | K189: 2182.90 | L189: 2198.55 | M189: 2167.25 | N189: 2128.15 | O189: 5056800 | P189: -0.74%
A190: 180 | B190: FMCG | C190: UBL | D190: 2024-02-29 | E190: 1685.50 | F190: 1692.17 | G190: 1675.18 | H190: 1664.87 | I190: 1647.88 | J190: 1702.48 | K190: 1719.47 | L190: 1729.78 | M190: 1709.15 | N190: 1681.85 | O190: 2527600 | P190: 3.00%
A191: 181 | B191: Cement | C191: ULTRACEMCO | D191: 2024-02-29 | E191: 9937.00 | F191: 9975.13 | G191: 9850.97 | H191: 9764.93 | I191: 9640.77 | J191: 10061.17 | K191: 10185.33 | L191: 10271.37 | M191: 10099.3 | N191: 9889.1 | O191: 1987400 | P191: 2.11%
A192: 182 | B192: Chemical | C192: UPL | D192: 2024-02-29 | E192: 485.70 | F192: 487.07 | G192: 481.33 | H192: 476.97 | I192: 471.23 | J192: 491.43 | K192: 497.17 | L192: 501.53 | M192: 492.8 | N192: 482.7 | O192: 38071800 | P192: -1.76%
A193: 183 | B193: Metals | C193: VEDL | D193: 2024-02-29 | E193: 263.75 | F193: 264.65 | G193: 261.50 | H193: 259.25 | I193: 256.10 | J193: 266.90 | K193: 270.05 | L193: 272.30 | M193: 267.8 | N193: 262.4 | O193: 133666800 | P193: -0.64%
A194: 184 | B194: Capital_Goods | C194: VOLTAS | D194: 2024-02-29 | E194: 1117.25 | F194: 1110.17 | G194: 1095.08 | H194: 1072.92 | I194: 1057.83 | J194: 1132.33 | K194: 1147.42 | L194: 1169.58 | M194: 1125.25 | N194: 1088 | O194: 8616000 | P194: 8.99%
A195: 185 | B195: Technology | C195: WIPRO | D195: 2024-02-29 | E195: 531.15 | F195: 532.22 | G195: 527.43 | H195: 523.72 | I195: 518.93 | J195: 535.93 | K195: 540.72 | L195: 544.43 | M195: 537 | N195: 528.5 | O195: 53680500 | P195: 0.19%
A196: 186 | B196: Media | C196: ZEEL | D196: 2024-02-29 | E196: 174.55 | F196: 175.17 | G196: 171.88 | H196: 169.22 | I196: 165.93 | J196: 177.83 | K196: 181.12 | L196: 183.78 | M196: 178.45 | N196: 172.5 | O196: 103389000 | P196: -2.04%
A197: 187 | B197: Pharma | C197: ZYDUSLIFE | D197: 2024-02-29 | E197: 942.70 | F197: 944.22 | G197: 936.03 | H197: 929.37 | I197: 921.18 | J197: 950.88 | K197: 959.07 | L197: 965.73 | M197: 952.4 | N197: 937.55 | O197: 8110800 | P197: 3.69%
A221: Pivot Point: This is trigger point for intra day buy/sell based on the price range of the previous day
A222: As per the tool,the trader should take BUY position just above Pivot and keep the stop loss of pivot point and the first target would be Resistance 1(R1)
A223: If R1 is crossed then R2 becomes the next target with stop loss of at R1
A224: Similarly if price goes below pivot point then the trader should sell and keep a stop loss of pivot point and the first target would be S1
A225: If S1 is crossed then S2 becomes the next target with stop loss of at S1
A227: Disclaimer:
A228: This document has been prepared by the Retail Research Desk of Asit C Mehta
A229: Investment Intermediates Ltd. and is meant for use of the recipient only
A230: and is not for circulation. This document is not to be reported or
... 6 more rows

Sheet Cash Intra
M5: Back to Main Page
A6: FOR INTRA DAY TRADING | K6: =Main!B10 -> 2024-02-28
A8: Sr.no | C8: CLOSE RATE | D8: Pivot Point | E8: Supports | H8: Resistances
E9: S1 | F9: S2 | G9: S3 | H9: R1 | I9: R2 | J9: R3 | K9: HIGH | L9: LOW | M9: Total Trade Quanity in Lakhs
A10: 1 | B10: Nifty 50 | C10: 22198.35 | D10: 22167.42 | E10: 22116.58 | F10: 22034.82 | G10: 21983.98 | H10: 22249.18 | I10: 22300.02 | J10: 22381.78 | K10: 22218.25 | L10: 22085.65
A11: 2 | B11: Nifty Bank | C11: 46588.05 | D11: 46545.07 | E11: 46367.88 | F11: 46147.72 | G11: 45970.53 | H11: 46765.23 | I11: 46942.42 | J11: 47162.58 | K11: 46722.25 | L11: 46324.90
A12: 3 | B12: Nifty CPSE | C12: 5868.45 | D12: 5859.83 | E12: 5833.37 | F12: 5798.28 | G12: 5771.82 | H12: 5894.92 | I12: 5921.38 | J12: 5956.47 | K12: 5886.30 | L12: 5824.75
A13: 4 | B13: Nifty Infra | C13: 8200.90 | D13: 8191.38 | E13: 8167.32 | F13: 8133.73 | G13: 8109.67 | H13: 8224.97 | I13: 8249.03 | J13: 8282.62 | K13: 8215.45 | L13: 8157.80
A14: 5 | B14: Nifty IT | C14: 37870.25 | D14: 37802.08 | E14: 37674.87 | F14: 37479.48 | G14: 37352.27 | H14: 37997.47 | I14: 38124.68 | J14: 38320.07 | K14: 37929.30 | L14: 37606.70
A15: 6 | B15: Nifty PSE | C15: 9270.25 | D15: 9277.53 | E15: 9198.32 | F15: 9126.38 | G15: 9047.17 | H15: 9349.47 | I15: 9428.68 | J15: 9500.62 | K15: 9356.75 | L15: 9205.60
A16: 7 | B16: Nifty Midcap 50 | C16: 13931.95 | D16: 13953.97 | E16: 13844.18 | F16: 13756.42 | G16: 13646.63 | H16: 14041.73 | I16: 14151.52 | J16: 14239.28 | K16: 14063.75 | L16: 13866.20
A17: 8 | B17: ABB | C17: 5450.5 | D17: 5390.25 | E17: 5305.75 | F17: 5161.00 | G17: 5076.50 | H17: 5535.00 | I17: 5619.50 | J17: 5764.25 | K17: 5474.75 | L17: 5245.5 | M17: 6.56105
A18: 9 | B18: ACC | C18: 2669.4 | D18: 2672.63 | E18: 2657.27 | F18: 2645.13 | G18: 2629.77 | H18: 2684.77 | I18: 2700.13 | J18: 2712.27 | K18: 2688 | L18: 2660.5 | M18: 1.89689
A19: 10 | B19: APLAPOLLO | C19: 1474.25 | D19: 1472.68 | E19: 1452.37 | F19: 1430.48 | G19: 1410.17 | H19: 1494.57 | I19: 1514.88 | J19: 1536.77 | K19: 1493 | L19: 1450.8 | M19: 8.23615
A20: 11 | B20: AUBANK | C20: 590.4 | D20: 590.80 | E20: 585.90 | F20: 581.40 | G20: 576.50 | H20: 595.30 | I20: 600.20 | J20: 604.70 | K20: 595.7 | L20: 586.3 | M20: 16.83135
A21: 12 | B21: ADANIENSOL | C21: 1122.7 | D21: 1142.20 | E21: 1097.70 | F21: 1072.70 | G21: 1028.20 | H21: 1167.20 | I21: 1211.70 | J21: 1236.70 | K21: 1186.7 | L21: 1117.2 | M21: 32.35084
A22: 13 | B22: ADANIENT | C22: 3302.3 | D22: 3305.10 | E22: 3270.20 | F22: 3238.10 | G22: 3203.20 | H22: 3337.20 | I22: 3372.10 | J22: 3404.20 | K22: 3340 | L22: 3273 | M22: 11.2557
A23: 14 | B23: ADANIGREEN | C23: 1979.5 | D23: 1982.13 | E23: 1945.32 | F23: 1911.13 | G23: 1874.32 | H23: 2016.32 | I23: 2053.13 | J23: 2087.32 | K23: 2018.95 | L23: 1947.95 | M23: 10.02672
A24: 15 | B24: ADANIPORTS | C24: 1329.45 | D24: 1327.63 | E24: 1316.07 | F24: 1302.68 | G24: 1291.12 | H24: 1341.02 | I24: 1352.58 | J24: 1365.97 | K24: 1339.2 | L24: 1314.25 | M24: 21.97456
A25: 16 | B25: ADANIPOWER | C25: 566.7 | D25: 567.52 | E25: 560.23 | F25: 553.77 | G25: 546.48 | H25: 573.98 | I25: 581.27 | J25: 587.73 | K25: 574.8 | L25: 561.05 | M25: 9.19411
A26: 17 | B26: ATGL | C26: 1048.3 | D26: 1062.17 | E26: 1028.33 | F26: 1008.37 | G26: 974.53 | H26: 1082.13 | I26: 1115.97 | J26: 1135.93 | K26: 1096 | L26: 1042.2 | M26: 54.79415
A27: 18 | B27: AWL | C27: 387.85 | D27: 392.52 | E27: 381.33 | F27: 374.82 | G27: 363.63 | H27: 399.03 | I27: 410.22 | J27: 416.73 | K27: 403.7 | L27: 386 | M27: 59.44017
A28: 19 | B28: ABCAPITAL | C28: 187.85 | D28: 189.22 | E28: 185.23 | F28: 182.62 | G28: 178.63 | H28: 191.83 | I28: 195.82 | J28: 198.43 | K28: 193.2 | L28: 186.6 | M28: 65.90921
A29: 20 | B29: ABFRL | C29: 228.9 | D29: 227.95 | E29: 225.30 | F29: 221.70 | G29: 219.05 | H29: 231.55 | I29: 234.20 | J29: 237.80 | K29: 230.6 | L29: 224.35 | M29: 34.85905
A30: 21 | B30: ALKEM | C30: 5044.05 | D30: 5025.02 | E30: 4953.68 | F30: 4863.32 | G30: 4791.98 | H30: 5115.38 | I30: 5186.72 | J30: 5277.08 | K30: 5096.35 | L30: 4934.65 | M30: 6.78534
A31: 22 | B31: AMBUJACEM | C31: 603.35 | D31: 604.95 | E31: 597.40 | F31: 591.45 | G31: 583.90 | H31: 610.90 | I31: 618.45 | J31: 624.40 | K31: 612.5 | L31: 599 | M31: 36.04237
A32: 23 | B32: APOLLOHOSP | C32: 6620.6 | D32: 6619.68 | E32: 6570.92 | F32: 6521.23 | G32: 6472.47 | H32: 6669.37 | I32: 6718.13 | J32: 6767.82 | K32: 6668.45 | L32: 6570 | M32: 3.1376
A33: 24 | B33: APOLLOTYRE | C33: 518.05 | D33: 520.65 | E33: 512.95 | F33: 507.85 | G33: 500.15 | H33: 525.75 | I33: 533.45 | J33: 538.55 | K33: 528.35 | L33: 515.55 | M33: 8.73528
A34: 25 | B34: ASHOKLEY | C34: 174 | D34: 173.87 | E34: 172.33 | F34: 170.67 | G34: 169.13 | H34: 175.53 | I34: 177.07 | J34: 178.73 | K34: 175.4 | L34: 172.2 | M34: 99.7348
A35: 26 | B35: ASIANPAINT | C35: 2859.55 | D35: 2859.88 | E35: 2849.77 | F35: 2839.98 | G35: 2829.87 | H35: 2869.67 | I35: 2879.78 | J35: 2889.57 | K35: 2870 | L35: 2850.1 | M35: 12.9618
A36: 27 | B36: ASTRAL | C36: 2095.25 | D36: 2101.60 | E36: 2068.65 | F36: 2042.05 | G36: 2009.10 | H36: 2128.20 | I36: 2161.15 | J36: 2187.75 | K36: 2134.55 | L36: 2075 | M36: 10.57268
A37: 28 | B37: AUROPHARMA | C37: 1045.6 | D37: 1044.07 | E37: 1035.13 | F37: 1024.67 | G37: 1015.73 | H37: 1054.53 | I37: 1063.47 | J37: 1073.93 | K37: 1053 | L37: 1033.6 | M37: 9.12097
A38: 29 | B38: DMART | C38: 3852.2 | D38: 3851.75 | E38: 3818.50 | F38: 3784.80 | G38: 3751.55 | H38: 3885.45 | I38: 3918.70 | J38: 3952.40 | K38: 3885 | L38: 3818.05 | M38: 2.56237
A39: 30 | B39: AXISBANK | C39: 1079.05 | D39: 1079.88 | E39: 1071.22 | F39: 1063.38 | G39: 1054.72 | H39: 1087.72 | I39: 1096.38 | J39: 1104.22 | K39: 1088.55 | L39: 1072.05 | M39: 65.46815
A40: 31 | B40: BAJAJ-AUTO | C40: 8463.5 | D40: 8445.67 | E40: 8401.33 | F40: 8339.17 | G40: 8294.83 | H40: 8507.83 | I40: 8552.17 | J40: 8614.33 | K40: 8490 | L40: 8383.5 | M40: 3.92445
A41: 32 | B41: BAJFINANCE | C41: 6556.25 | D41: 6563.12 | E41: 6484.23 | F41: 6412.22 | G41: 6333.33 | H41: 6635.13 | I41: 6714.02 | J41: 6786.03 | K41: 6642 | L41: 6491.1 | M41: 11.50306
A42: 33 | B42: BAJAJFINSV | C42: 1600.6 | D42: 1606.35 | E42: 1589.25 | F42: 1577.90 | G42: 1560.80 | H42: 1617.70 | I42: 1634.80 | J42: 1646.15 | K42: 1623.45 | L42: 1595 | M42: 9.31236
A43: 34 | B43: BAJAJHLDNG | C43: 8703 | D43: 8824.72 | E43: 8509.43 | F43: 8315.87 | G43: 8000.58 | H43: 9018.28 | I43: 9333.57 | J43: 9527.13 | K43: 9140 | L43: 8631.15 | M43: 0.70693
A44: 35 | B44: BALKRISIND | C44: 2289.25 | D44: 2293.90 | E44: 2272.60 | F44: 2255.95 | G44: 2234.65 | H44: 2310.55 | I44: 2331.85 | J44: 2348.50 | K44: 2315.2 | L44: 2277.25 | M44: 1.77543
A45: 36 | B45: BANDHANBNK | C45: 201.15 | D45: 202.08 | E45: 199.82 | F45: 198.48 | G45: 196.22 | H45: 203.42 | I45: 205.68 | J45: 207.02 | K45: 204.35 | L45: 200.75 | M45: 83.41347
A46: 37 | B46: BANKBARODA | C46: 270.35 | D46: 270.28 | E46: 267.47 | F46: 264.58 | G46: 261.77 | H46: 273.17 | I46: 275.98 | J46: 278.87 | K46: 273.1 | L46: 267.4 | M46: 155.72873
A47: 38 | B47: BANKINDIA | C47: 135.8 | D47: 135.83 | E47: 133.97 | F47: 132.13 | G47: 130.27 | H47: 137.67 | I47: 139.53 | J47: 141.37 | K47: 137.7 | L47: 134 | M47: 101.23884
A48: 39 | B48: BATAINDIA | C48: 1437.75 | D48: 1435.82 | E48: 1424.93 | F48: 1412.12 | G48: 1401.23 | H48: 1448.63 | I48: 1459.52 | J48: 1472.33 | K48: 1446.7 | L48: 1423 | M48: 2.66131
A49: 40 | B49: BERGEPAINT | C49: 562.9 | D49: 562.62 | E49: 556.53 | F49: 550.17 | G49: 544.08 | H49: 568.98 | I49: 575.07 | J49: 581.43 | K49: 568.7 | L49: 556.25 | M49: 10.46795
A50: 41 | B50: BDL | C50: 1888.05 | D50: 1914.93 | E50: 1845.07 | F50: 1802.08 | G50: 1732.22 | H50: 1957.92 | I50: 2027.78 | J50: 2070.77 | K50: 1984.8 | L50: 1871.95 | M50: 26.20826
A51: 42 | B51: BEL | C51: 205.35 | D51: 205.82 | E51: 202.63 | F51: 199.92 | G51: 196.73 | H51: 208.53 | I51: 211.72 | J51: 214.43 | K51: 209 | L51: 203.1 | M51: 288.77205
A52: 43 | B52: BHARATFORG | C52: 1177.95 | D52: 1180.98 | E52: 1166.77 | F52: 1155.58 | G52: 1141.37 | H52: 1192.17 | I52: 1206.38 | J52: 1217.57 | K52: 1195.2 | L52: 1169.8 | M52: 11.78342
A53: 44 | B53: BHEL | C53: 222.6 | D53: 224.25 | E53: 220.10 | F53: 217.60 | G53: 213.45 | H53: 226.75 | I53: 230.90 | J53: 233.40 | K53: 228.4 | L53: 221.75 | M53: 224.97412
A54: 45 | B54: BPCL | C54: 625.05 | D54: 624.68 | E54: 616.67 | F54: 608.28 | G54: 600.27 | H54: 633.07 | I54: 641.08 | J54: 649.47 | K54: 632.7 | L54: 616.3 | M54: 74.40601
A55: 46 | B55: BHARTIARTL | C55: 1127.5 | D55: 1119.93 | E55: 1108.87 | F55: 1090.23 | G55: 1079.17 | H55: 1138.57 | I55: 1149.63 | J55: 1168.27 | K55: 1131 | L55: 1101.3 | M55: 71.49094
A56: 47 | B56: BIOCON | C56: 275.7 | D56: 277.00 | E56: 272.00 | F56: 268.30 | G56: 263.30 | H56: 280.70 | I56: 285.70 | J56: 289.40 | K56: 282 | L56: 273.3 | M56: 88.10926
A57: 48 | B57: BOSCHLTD | C57: 28865.45 | D57: 28938.53 | E57: 28577.07 | F57: 28288.68 | G57: 27927.22 | H57: 29226.92 | I57: 29588.38 | J57: 29876.77 | K57: 29300 | L57: 28650.15 | M57: 0.32611
A58: 49 | B58: BRITANNIA | C58: 4904.35 | D58: 4907.63 | E58: 4875.72 | F58: 4847.08 | G58: 4815.17 | H58: 4936.27 | I58: 4968.18 | J58: 4996.82 | K58: 4939.55 | L58: 4879 | M58: 4.34014
A59: 50 | B59: CGPOWER | C59: 439.1 | D59: 435.18 | E59: 429.42 | F59: 419.73 | G59: 413.97 | H59: 444.87 | I59: 450.63 | J59: 460.32 | K59: 440.95 | L59: 425.5 | M59: 23.52699
A60: 51 | B60: CANBK | C60: 571.9 | D60: 574.50 | E60: 564.70 | F60: 557.50 | G60: 547.70 | H60: 581.70 | I60: 591.50 | J60: 598.70 | K60: 584.3 | L60: 567.3 | M60: 107.02657
A61: 52 | B61: CHOLAFIN | C61: 1098.65 | D61: 1103.73 | E61: 1080.42 | F61: 1062.18 | G61: 1038.87 | H61: 1121.97 | I61: 1145.28 | J61: 1163.52 | K61: 1127.05 | L61: 1085.5 | M61: 19.77469
A62: 53 | B62: CIPLA | C62: 1487.45 | D62: 1482.72 | E62: 1474.43 | F62: 1461.42 | G62: 1453.13 | H62: 1495.73 | I62: 1504.02 | J62: 1517.03 | K62: 1491 | L62: 1469.7 | M62: 12.31196
A63: 54 | B63: COALINDIA | C63: 441.4 | D63: 440.58 | E63: 435.87 | F63: 430.33 | G63: 425.62 | H63: 446.12 | I63: 450.83 | J63: 456.37 | K63: 445.3 | L63: 435.05 | M63: 83.43526
A64: 55 | B64: COFORGE | C64: 6561.55 | D64: 6578.38 | E64: 6508.17 | F64: 6454.78 | G64: 6384.57 | H64: 6631.77 | I64: 6701.98 | J64: 6755.37 | K64: 6648.6 | L64: 6525 | M64: 1.1286
A65: 56 | B65: COLPAL | C65: 2531.75 | D65: 2533.48 | E65: 2510.02 | F65: 2488.28 | G65: 2464.82 | H65: 2555.22 | I65: 2578.68 | J65: 2600.42 | K65: 2556.95 | L65: 2511.75 | M65: 1.65839
A66: 57 | B66: CONCOR | C66: 972.05 | D66: 978.55 | E66: 958.70 | F66: 945.35 | G66: 925.50 | H66: 991.90 | I66: 1011.75 | J66: 1025.10 | K66: 998.4 | L66: 965.2 | M66: 15.4009
A67: 58 | B67: COROMANDEL | C67: 1039.5 | D67: 1042.63 | E67: 1021.47 | F67: 1003.43 | G67: 982.27 | H67: 1060.67 | I67: 1081.83 | J67: 1099.87 | K67: 1063.8 | L67: 1024.6 | M67: 7.78424
A68: 59 | B68: CROMPTON | C68: 290.8 | D68: 292.50 | E68: 288.05 | F68: 285.30 | G68: 280.85 | H68: 295.25 | I68: 299.70 | J68: 302.45 | K68: 296.95 | L68: 289.75 | M68: 29.71531
A69: 60 | B69: CUMMINSIND | C69: 2754.1 | D69: 2756.07 | E69: 2714.23 | F69: 2674.37 | G69: 2632.53 | H69: 2795.93 | I69: 2837.77 | J69: 2877.63 | K69: 2797.9 | L69: 2716.2 | M69: 4.39505
A70: 61 | B70: DLF | C70: 916.4 | D70: 912.50 | E70: 906.80 | F70: 897.20 | G70: 891.50 | H70: 922.10 | I70: 927.80 | J70: 937.40 | K70: 918.2 | L70: 902.9 | M70: 36.14155
A71: 62 | B71: DABUR | C71: 535.6 | D71: 533.27 | E71: 528.33 | F71: 521.07 | G71: 516.13 | H71: 540.53 | I71: 545.47 | J71: 552.73 | K71: 538.2 | L71: 526 | M71: 29.54271
A72: 63 | B72: DALBHARAT | C72: 2072.65 | D72: 2084.13 | E72: 2054.12 | F72: 2035.58 | G72: 2005.57 | H72: 2102.67 | I72: 2132.68 | J72: 2151.22 | K72: 2114.15 | L72: 2065.6 | M72: 3.62622
A73: 64 | B73: DEEPAKNTR | C73: 2263.1 | D73: 2274.62 | E73: 2244.53 | F73: 2225.97 | G73: 2195.88 | H73: 2293.18 | I73: 2323.27 | J73: 2341.83 | K73: 2304.7 | L73: 2256.05 | M73: 1.45591
A74: 65 | B74: DELHIVERY | C74: 470.7 | D74: 471.23 | E74: 457.47 | F74: 444.23 | G74: 430.47 | H74: 484.47 | I74: 498.23 | J74: 511.47 | K74: 485 | L74: 458 | M74: 63.38421
A75: 66 | B75: DEVYANI | C75: 157.3 | D75: 157.28 | E75: 152.72 | F75: 148.13 | G75: 143.57 | H75: 161.87 | I75: 166.43 | J75: 171.02 | K75: 161.85 | L75: 152.7 | M75: 161.67611
A76: 67 | B76: DIVISLAB | C76: 3539.8 | D76: 3549.23 | E76: 3500.47 | F76: 3461.13 | G76: 3412.37 | H76: 3588.57 | I76: 3637.33 | J76: 3676.67 | K76: 3598 | L76: 3509.9 | M76: 5.24599
A77: 68 | B77: DIXON | C77: 6761.25 | D77: 6756.40 | E77: 6624.85 | F77: 6488.45 | G77: 6356.90 | H77: 6892.80 | I77: 7024.35 | J77: 7160.75 | K77: 6887.95 | L77: 6620 | M77: 8.63651
A78: 69 | B78: LALPATHLAB | C78: 2370.1 | D78: 2390.68 | E78: 2343.42 | F78: 2316.73 | G78: 2269.47 | H78: 2417.37 | I78: 2464.63 | J78: 2491.32 | K78: 2437.95 | L78: 2364 | M78: 1.37895
A79: 70 | B79: DRREDDY | C79: 6449.6 | D79: 6431.48 | E79: 6403.37 | F79: 6357.13 | G79: 6329.02 | H79: 6477.72 | I79: 6505.83 | J79: 6552.07 | K79: 6459.6 | L79: 6385.25 | M79: 1.93295
A80: 71 | B80: EICHERMOT | C80: 4002.75 | D80: 3985.10 | E80: 3957.65 | F80: 3912.55 | G80: 3885.10 | H80: 4030.20 | I80: 4057.65 | J80: 4102.75 | K80: 4012.55 | L80: 3940 | M80: 5.794
A81: 72 | B81: ESCORTS | C81: 2855.55 | D81: 2875.60 | E81: 2826.20 | F81: 2796.85 | G81: 2747.45 | H81: 2904.95 | I81: 2954.35 | J81: 2983.70 | K81: 2925 | L81: 2846.25 | M81: 0.88135
A82: 73 | B82: NYKAA | C82: 153.1 | D82: 153.03 | E82: 152.07 | F82: 151.03 | G82: 150.07 | H82: 154.07 | I82: 155.03 | J82: 156.07 | K82: 154 | L82: 152 | M82: 18.72216
A83: 74 | B83: FEDERALBNK | C83: 154.2 | D83: 153.33 | E83: 151.92 | F83: 149.63 | G83: 148.22 | H83: 155.62 | I83: 157.03 | J83: 159.32 | K83: 154.75 | L83: 151.05 | M83: 155.04425
A84: 75 | B84: FACT | C84: 772.25 | D84: 775.23 | E84: 764.02 | F84: 755.78 | G84: 744.57 | H84: 783.47 | I84: 794.68 | J84: 802.92 | K84: 786.45 | L84: 767 | M84: 2.71659
A85: 76 | B85: FORTIS | C85: 429.05 | D85: 430.52 | E85: 423.48 | F85: 417.92 | G85: 410.88 | H85: 436.08 | I85: 443.12 | J85: 448.68 | K85: 437.55 | L85: 424.95 | M85: 14.10739
A86: 77 | B86: GAIL | C86: 180.5 | D86: 180.87 | E86: 178.48 | F86: 176.47 | G86: 174.08 | H86: 182.88 | I86: 185.27 | J86: 187.28 | K86: 183.25 | L86: 178.85 | M86: 94.86385
A87: 78 | B87: GLAND | C87: 1821.95 | D87: 1827.53 | E87: 1792.42 | F87: 1762.88 | G87: 1727.77 | H87: 1857.07 | I87: 1892.18 | J87: 1921.72 | K87: 1862.65 | L87: 1798 | M87: 2.69905
A88: 79 | B88: GODREJCP | C88: 1266.05 | D88: 1259.18 | E88: 1248.37 | F88: 1230.68 | G88: 1219.87 | H88: 1276.87 | I88: 1287.68 | J88: 1305.37 | K88: 1270 | L88: 1241.5 | M88: 8.71412
A89: 80 | B89: GODREJPROP | C89: 2493.05 | D89: 2489.22 | E89: 2464.58 | F89: 2436.12 | G89: 2411.48 | H89: 2517.68 | I89: 2542.32 | J89: 2570.78 | K89: 2513.85 | L89: 2460.75 | M89: 7.77249
A90: 81 | B90: GRASIM | C90: 2204.8 | D90: 2203.00 | E90: 2192.00 | F90: 2179.20 | G90: 2168.20 | H90: 2215.80 | I90: 2226.80 | J90: 2239.60 | K90: 2214 | L90: 2190.2 | M90: 6.74507
A91: 82 | B91: FLUOROCHEM | C91: 3683.85 | D91: 3698.95 | E91: 3646.90 | F91: 3609.95 | G91: 3557.90 | H91: 3735.90 | I91: 3787.95 | J91: 3824.90 | K91: 3751 | L91: 3662 | M91: 0.94634
A92: 83 | B92: GUJGASLTD | C92: 558.3 | D92: 562.72 | E92: 552.58 | F92: 546.87 | G92: 536.73 | H92: 568.43 | I92: 578.57 | J92: 584.28 | K92: 572.85 | L92: 557 | M92: 5.90652
A93: 84 | B93: HCLTECH | C93: 1658.8 | D93: 1660.07 | E93: 1646.73 | F93: 1634.67 | G93: 1621.33 | H93: 1672.13 | I93: 1685.47 | J93: 1697.53 | K93: 1673.4 | L93: 1648 | M93: 20.4942
A94: 85 | B94: HDFCAMC | C94: 3903.85 | D94: 3943.82 | E94: 3821.13 | F94: 3738.42 | G94: 3615.73 | H94: 4026.53 | I94: 4149.22 | J94: 4231.93 | K94: 4066.5 | L94: 3861.1 | M94: 14.3951
A95: 86 | B95: HDFCBANK | C95: 1420.15 | D95: 1419.97 | E95: 1413.23 | F95: 1406.32 | G95: 1399.58 | H95: 1426.88 | I95: 1433.62 | J95: 1440.53 | K95: 1426.7 | L95: 1413.05 | M95: 160.43575
A96: 87 | B96: HDFCLIFE | C96: 581.6 | D96: 582.15 | E96: 572.30 | F96: 563.00 | G96: 553.15 | H96: 591.45 | I96: 601.30 | J96: 610.60 | K96: 592 | L96: 572.85 | M96: 63.21068
A97: 88 | B97: HAVELLS | C97: 1469.15 | D97: 1461.38 | E97: 1440.77 | F97: 1412.38 | G97: 1391.77 | H97: 1489.77 | I97: 1510.38 | J97: 1538.77 | K97: 1482 | L97: 1433 | M97: 28.67826
A98: 89 | B98: HEROMOTOCO | C98: 4430.05 | D98: 4452.35 | E98: 4385.70 | F98: 4341.35 | G98: 4274.70 | H98: 4496.70 | I98: 4563.35 | J98: 4607.70 | K98: 4519 | L98: 4408 | M98: 8.30187
A99: 90 | B99: HINDALCO | C99: 509.65 | D99: 508.85 | E99: 505.50 | F99: 501.35 | G99: 498.00 | H99: 513.00 | I99: 516.35 | J99: 520.50 | K99: 512.2 | L99: 504.7 | M99: 67.41206
A100: 91 | B100: HAL | C100: 3095.5 | D100: 3084.83 | E100: 3043.92 | F100: 2992.33 | G100: 2951.42 | H100: 3136.42 | I100: 3177.33 | J100: 3228.92 | K100: 3125.75 | L100: 3033.25 | M100: 20.50688
A101: 92 | B101: HINDPETRO | C101: 529.85 | D101: 533.30 | E101: 519.10 | F101: 508.35 | G101: 494.15 | H101: 544.05 | I101: 558.25 | J101: 569.00 | K101: 547.5 | L101: 522.55 | M101: 84.76974
A102: 93 | B102: HINDUNILVR | C102: 2405.3 | D102: 2401.13 | E102: 2393.32 | F102: 2381.33 | G102: 2373.52 | H102: 2413.12 | I102: 2420.93 | J102: 2432.92 | K102: 2408.95 | L102: 2389.15 | M102: 11.20424
A103: 94 | B103: ICICIBANK | C103: 1060.2 | D103: 1057.63 | E103: 1049.07 | F103: 1037.93 | G103: 1029.37 | H103: 1068.77 | I103: 1077.33 | J103: 1088.47 | K103: 1066.2 | L103: 1046.5 | M103: 105.80973
A104: 95 | B104: ICICIGI | C104: 1726.75 | D104: 1706.00 | E104: 1678.00 | F104: 1629.25 | G104: 1601.25 | H104: 1754.75 | I104: 1782.75 | J104: 1831.50 | K104: 1734 | L104: 1657.25 | M104: 38.28778
A105: 96 | B105: ICICIPRULI | C105: 518.85 | D105: 525.15 | E105: 510.60 | F105: 502.35 | G105: 487.80 | H105: 533.40 | I105: 547.95 | J105: 556.20 | K105: 539.7 | L105: 516.9 | M105: 29.29679
A106: 97 | B106: IDFCFIRSTB | C106: 83.3 | D106: 83.60 | E106: 82.70 | F106: 82.10 | G106: 81.20 | H106: 84.20 | I106: 85.10 | J106: 85.70 | K106: 84.5 | L106: 83 | M106: 242.28307
A107: 98 | B107: ITC | C107: 411.15 | D107: 410.82 | E107: 408.88 | F107: 406.62 | G107: 404.68 | H107: 413.08 | I107: 415.02 | J107: 417.28 | K107: 412.75 | L107: 408.55 | M107: 77.83743
A108: 99 | B108: INDIANB | C108: 536.75 | D108: 532.77 | E108: 525.98 | F108: 515.22 | G108: 508.43 | H108: 543.53 | I108: 550.32 | J108: 561.08 | K108: 539.55 | L108: 522 | M108: 21.07003
A109: 100 | B109: INDHOTEL | C109: 589.25 | D109: 586.25 | E109: 578.25 | F109: 567.25 | G109: 559.25 | H109: 597.25 | I109: 605.25 | J109: 616.25 | K109: 594.25 | L109: 575.25 | M109: 28.53137
A110: 101 | B110: IOC | C110: 173.25 | D110: 174.57 | E110: 170.78 | F110: 168.32 | G110: 164.53 | H110: 177.03 | I110: 180.82 | J110: 183.28 | K110: 178.35 | L110: 172.1 | M110: 276.03342
A111: 102 | B111: IRCTC | C111: 952.75 | D111: 958.30 | E111: 942.60 | F111: 932.45 | G111: 916.75 | H111: 968.45 | I111: 984.15 | J111: 994.30 | K111: 974 | L111: 948.15 | M111: 28.29201
A112: 103 | B112: IRFC | C112: 151.6 | D112: 153.08 | E112: 149.52 | F112: 147.43 | G112: 143.87 | H112: 155.17 | I112: 158.73 | J112: 160.82 | K112: 156.65 | L112: 151 | M112: 439.95103
A113: 104 | B113: IGL | C113: 422.1 | D113: 425.07 | E113: 417.23 | F113: 412.37 | G113: 404.53 | H113: 429.93 | I113: 437.77 | J113: 442.63 | K113: 432.9 | L113: 420.2 | M113: 10.75337
A114: 105 | B114: INDUSTOWER | C114: 240.25 | D114: 243.25 | E114: 236.10 | F114: 231.95 | G114: 224.80 | H114: 247.40 | I114: 254.55 | J114: 258.70 | K114: 250.4 | L114: 239.1 | M114: 199.63258
A115: 106 | B115: INDUSINDBK | C115: 1493.05 | D115: 1482.97 | E115: 1468.58 | F115: 1444.12 | G115: 1429.73 | H115: 1507.43 | I115: 1521.82 | J115: 1546.28 | K115: 1497.35 | L115: 1458.5 | M115: 28.43312
A116: 107 | B116: NAUKRI | C116: 5345.45 | D116: 5334.53 | E116: 5241.02 | F116: 5136.58 | G116: 5043.07 | H116: 5438.97 | I116: 5532.48 | J116: 5636.92 | K116: 5428.05 | L116: 5230.1 | M116: 2.12412
A117: 108 | B117: INFY | C117: 1663.6 | D117: 1662.50 | E117: 1653.90 | F117: 1644.20 | G117: 1635.60 | H117: 1672.20 | I117: 1680.80 | J117: 1690.50 | K117: 1671.1 | L117: 1652.8 | M117: 51.59088
A118: 109 | B118: INDIGO | C118: 3183 | D118: 3178.27 | E118: 3157.78 | F118: 3132.57 | G118: 3112.08 | H118: 3203.48 | I118: 3223.97 | J118: 3249.18 | K118: 3198.75 | L118: 3153.05 | M118: 4.60969
A119: 110 | B119: IPCALAB | C119: 1194.85 | D119: 1203.38 | E119: 1182.07 | F119: 1169.28 | G119: 1147.97 | H119: 1216.17 | I119: 1237.48 | J119: 1250.27 | K119: 1224.7 | L119: 1190.6 | M119: 2.12369
A120: 111 | B120: JSWENERGY | C120: 521.85 | D120: 518.40 | E120: 504.30 | F120: 486.75 | G120: 472.65 | H120: 535.95 | I120: 550.05 | J120: 567.60 | K120: 532.5 | L120: 500.85 | M120: 59.37986
A121: 112 | B121: JSWSTEEL | C121: 818.95 | D121: 815.07 | E121: 809.58 | F121: 800.22 | G121: 794.73 | H121: 824.43 | I121: 829.92 | J121: 839.28 | K121: 820.55 | L121: 805.7 | M121: 13.31211
A122: 113 | B122: JINDALSTEL | C122: 776.1 | D122: 776.63 | E122: 768.27 | F122: 760.43 | G122: 752.07 | H122: 784.47 | I122: 792.83 | J122: 800.67 | K122: 785 | L122: 768.8 | M122: 13.5984
A123: 114 | B123: JUBLFOOD | C123: 483.25 | D123: 485.33 | E123: 478.32 | F123: 473.38 | G123: 466.37 | H123: 490.27 | I123: 497.28 | J123: 502.22 | K123: 492.35 | L123: 480.4 | M123: 20.13697
A124: 115 | B124: KPITTECH | C124: 1579.95 | D124: 1585.45 | E124: 1564.50 | F124: 1549.05 | G124: 1528.10 | H124: 1600.90 | I124: 1621.85 | J124: 1637.30 | K124: 1606.4 | L124: 1570 | M124: 3.72335
A125: 116 | B125: KOTAKBANK | C125: 1706.75 | D125: 1706.23 | E125: 1697.52 | F125: 1688.28 | G125: 1679.57 | H125: 1715.47 | I125: 1724.18 | J125: 1733.42 | K125: 1714.95 | L125: 1697 | M125: 44.31652
A126: 117 | B126: L&TFH | C126: 169.05 | D126: 169.75 | E126: 167.50 | F126: 165.95 | G126: 163.70 | H126: 171.30 | I126: 173.55 | J126: 175.10 | K126: 172 | L126: 168.2 | M126: 23.33404
A127: 118 | B127: LTTS | C127: 5393.2 | D127: 5420.42 | E127: 5352.78 | F127: 5312.37 | G127: 5244.73 | H127: 5460.83 | I127: 5528.47 | J127: 5568.88 | K127: 5488.05 | L127: 5380 | M127: 0.73962
A128: 119 | B128: LICHSGFIN | C128: 649.55 | D128: 653.55 | E128: 641.00 | F128: 632.45 | G128: 619.90 | H128: 662.10 | I128: 674.65 | J128: 683.20 | K128: 666.1 | L128: 645 | M128: 29.40335
A129: 120 | B129: LTIM | C129: 5442.7 | D129: 5450.60 | E129: 5393.10 | F129: 5343.50 | G129: 5286.00 | H129: 5500.20 | I129: 5557.70 | J129: 5607.30 | K129: 5508.1 | L129: 5401 | M129: 3.21866
A130: 121 | B130: LT | C130: 3506.45 | D130: 3490.12 | E130: 3468.23 | F130: 3430.02 | G130: 3408.13 | H130: 3528.33 | I130: 3550.22 | J130: 3588.43 | K130: 3512 | L130: 3451.9 | M130: 21.22286
A131: 122 | B131: LAURUSLABS | C131: 399.95 | D131: 399.52 | E131: 395.63 | F131: 391.32 | G131: 387.43 | H131: 403.83 | I131: 407.72 | J131: 412.03 | K131: 403.4 | L131: 395.2 | M131: 21.10457
A132: 123 | B132: LICI | C132: 1040.2 | D132: 1048.43 | E132: 1028.87 | F132: 1017.53 | G132: 997.97 | H132: 1059.77 | I132: 1079.33 | J132: 1090.67 | K132: 1068 | L132: 1037.1 | M132: 37.72686
A133: 124 | B133: LUPIN | C133: 1622.6 | D133: 1618.72 | E133: 1602.33 | F133: 1582.07 | G133: 1565.68 | H133: 1638.98 | I133: 1655.37 | J133: 1675.63 | K133: 1635.1 | L133: 1598.45 | M133: 9.81628
A134: 125 | B134: MRF | C134: 147149.15 | D134: 147635.72 | E134: 145621.43 | F134: 144093.72 | G134: 142079.43 | H134: 149163.43 | I134: 151177.72 | J134: 152705.43 | K134: 149650 | L134: 146108 | M134: 0.11115
A135: 126 | B135: LODHA | C135: 1147.25 | D135: 1138.83 | E135: 1116.42 | F135: 1085.58 | G135: 1063.17 | H135: 1169.67 | I135: 1192.08 | J135: 1222.92 | K135: 1161.25 | L135: 1108 | M135: 16.69533
A136: 127 | B136: M&MFIN | C136: 289 | D136: 289.57 | E136: 286.18 | F136: 283.37 | G136: 279.98 | H136: 292.38 | I136: 295.77 | J136: 298.58 | K136: 292.95 | L136: 286.75 | M136: 21.19466
A137: 128 | B137: M&M | C137: 1950.6 | D137: 1940.87 | E137: 1924.78 | F137: 1898.97 | G137: 1882.88 | H137: 1966.68 | I137: 1982.77 | J137: 2008.58 | K137: 1956.95 | L137: 1915.05 | M137: 28.21465
A138: 129 | B138: MANKIND | C138: 2099.25 | D138: 2098.77 | E138: 2077.53 | F138: 2055.82 | G138: 2034.58 | H138: 2120.48 | I138: 2141.72 | J138: 2163.43 | K138: 2120 | L138: 2077.05 | M138: 3.67289
A139: 130 | B139: MARICO | C139: 523.25 | D139: 523.53 | E139: 519.62 | F139: 515.98 | G139: 512.07 | H139: 527.17 | I139: 531.08 | J139: 534.72 | K139: 527.45 | L139: 519.9 | M139: 33.05817
A140: 131 | B140: MARUTI | C140: 11500.65 | D140: 11482.60 | E140: 11402.30 | F140: 11303.95 | G140: 11223.65 | H140: 11580.95 | I140: 11661.25 | J140: 11759.60 | K140: 11562.9 | L140: 11384.25 | M140: 3.07585
A141: 132 | B141: MFSL | C141: 935.4 | D141: 930.15 | E141: 918.30 | F141: 901.20 | G141: 889.35 | H141: 947.25 | I141: 959.10 | J141: 976.20 | K141: 942 | L141: 913.05 | M141: 11.75846
A142: 133 | B142: MAXHEALTH | C142: 849.9 | D142: 845.27 | E142: 828.63 | F142: 807.37 | G142: 790.73 | H142: 866.53 | I142: 883.17 | J142: 904.43 | K142: 861.9 | L142: 824 | M142: 38.34883
A143: 134 | B143: MAZDOCK | C143: 2092.55 | D143: 2100.97 | E143: 2074.93 | F143: 2057.32 | G143: 2031.28 | H143: 2118.58 | I143: 2144.62 | J143: 2162.23 | K143: 2127 | L143: 2083.35 | M143: 3.31651
A144: 135 | B144: MSUMI | C144: 72 | D144: 72.40 | E144: 71.10 | F144: 70.20 | G144: 68.90 | H144: 73.30 | I144: 74.60 | J144: 75.50 | K144: 73.7 | L144: 71.5 | M144: 84.58136
A145: 136 | B145: MPHASIS | C145: 2688.9 | D145: 2678.87 | E145: 2657.83 | F145: 2626.77 | G145: 2605.73 | H145: 2709.93 | I145: 2730.97 | J145: 2762.03 | K145: 2699.9 | L145: 2647.8 | M145: 3.73642
A146: 137 | B146: MUTHOOTFIN | C146: 1294.3 | D146: 1297.28 | E146: 1272.77 | F146: 1251.23 | G146: 1226.72 | H146: 1318.82 | I146: 1343.33 | J146: 1364.87 | K146: 1321.8 | L146: 1275.75 | M146: 8.82971
A147: 138 | B147: NHPC | C147: 90.2 | D147: 91.02 | E147: 89.03 | F147: 87.87 | G147: 85.88 | H147: 92.18 | I147: 94.17 | J147: 95.33 | K147: 93 | L147: 89.85 | M147: 602.96472
A148: 139 | B148: NMDC | C148: 225.05 | D148: 226.25 | E148: 221.20 | F148: 217.35 | G148: 212.30 | H148: 230.10 | I148: 235.15 | J148: 239.00 | K148: 231.3 | L148: 222.4 | M148: 208.82512
A149: 140 | B149: NTPC | C149: 336.1 | D149: 336.07 | E149: 334.13 | F149: 332.17 | G149: 330.23 | H149: 338.03 | I149: 339.97 | J149: 341.93 | K149: 338 | L149: 334.1 | M149: 88.82923
A150: 141 | B150: NAVINFLUOR | C150: 3120.55 | D150: 3108.22 | E150: 3087.53 | F150: 3054.52 | G150: 3033.83 | H150: 3141.23 | I150: 3161.92 | J150: 3194.93 | K150: 3128.9 | L150: 3075.2 | M150: 1.32308
A151: 142 | B151: NESTLEIND | C151: 2598.7 | D151: 2588.97 | E151: 2576.48 | F151: 2554.27 | G151: 2541.78 | H151: 2611.18 | I151: 2623.67 | J151: 2645.88 | K151: 2601.45 | L151: 2566.75 | M151: 6.30872
A152: 143 | B152: OBEROIRLTY | C152: 1385.05 | D152: 1385.68 | E152: 1372.37 | F152: 1359.68 | G152: 1346.37 | H152: 1398.37 | I152: 1411.68 | J152: 1424.37 | K152: 1399 | L152: 1373 | M152: 5.21454
A153: 144 | B153: ONGC | C153: 269.35 | D153: 268.17 | E153: 266.13 | F153: 262.92 | G153: 260.88 | H153: 271.38 | I153: 273.42 | J153: 276.63 | K153: 270.2 | L153: 264.95 | M153: 195.82774
A154: 145 | B154: OIL | C154: 574.3 | D154: 573.57 | E154: 563.33 | F154: 552.37 | G154: 542.13 | H154: 584.53 | I154: 594.77 | J154: 605.73 | K154: 583.8 | L154: 562.6 | M154: 60.84332
A155: 146 | B155: PAYTM | C155: 427.55 | D155: 430.08 | E155: 410.67 | F155: 393.78 | G155: 374.37 | H155: 446.97 | I155: 466.38 | J155: 483.27 | K155: 449.5 | L155: 413.2 | M155: 207.36054
A156: 147 | B156: POLICYBZR | C156: 1135.45 | D156: 1122.00 | E156: 1082.50 | F156: 1029.55 | G156: 990.05 | H156: 1174.95 | I156: 1214.45 | J156: 1267.40 | K156: 1161.5 | L156: 1069.05 | M156: 23.30957
A157: 148 | B157: PIIND | C157: 3672.25 | D157: 3673.70 | E157: 3645.55 | F157: 3618.85 | G157: 3590.70 | H157: 3700.40 | I157: 3728.55 | J157: 3755.25 | K157: 3701.85 | L157: 3647 | M157: 1.81113
A158: 149 | B158: PAGEIND | C158: 35675.8 | D158: 35785.68 | E158: 35391.37 | F158: 35106.93 | G158: 34712.62 | H158: 36070.12 | I158: 36464.43 | J158: 36748.87 | K158: 36180 | L158: 35501.25 | M158: 0.19676
A159: 150 | B159: PATANJALI | C159: 1622.7 | D159: 1626.23 | E159: 1607.47 | F159: 1592.23 | G159: 1573.47 | H159: 1641.47 | I159: 1660.23 | J159: 1675.47 | K159: 1645 | L159: 1611 | M159: 3.34002
A160: 151 | B160: PERSISTENT | C160: 8518.8 | D160: 8485.93 | E160: 8441.87 | F160: 8364.93 | G160: 8320.87 | H160: 8562.87 | I160: 8606.93 | J160: 8683.87 | K160: 8530 | L160: 8409 | M160: 1.77605
A161: 152 | B161: PETRONET | C161: 281.35 | D161: 282.30 | E161: 277.15 | F161: 272.95 | G161: 267.80 | H161: 286.50 | I161: 291.65 | J161: 295.85 | K161: 287.45 | L161: 278.1 | M161: 27.80837
A162: 153 | B162: PIDILITIND | C162: 2731.95 | D162: 2724.07 | E162: 2708.98 | F162: 2686.02 | G162: 2670.93 | H162: 2747.03 | I162: 2762.12 | J162: 2785.08 | K162: 2739.15 | L162: 2701.1 | M162: 2.06586
A163: 154 | B163: PEL | C163: 912.3 | D163: 914.72 | E163: 901.43 | F163: 890.57 | G163: 877.28 | H163: 925.58 | I163: 938.87 | J163: 949.73 | K163: 928 | L163: 903.85 | M163: 9.47909
A164: 155 | B164: POLYCAB | C164: 4766.9 | D164: 4764.30 | E164: 4728.60 | F164: 4690.30 | G164: 4654.60 | H164: 4802.60 | I164: 4838.30 | J164: 4876.60 | K164: 4800 | L164: 4726 | M164: 5.25966
A165: 156 | B165: POONAWALLA | C165: 473.25 | D165: 475.23 | E165: 468.47 | F165: 463.68 | G165: 456.92 | H165: 480.02 | I165: 486.78 | J165: 491.57 | K165: 482 | L165: 470.45 | M165: 14.00189
A166: 157 | B166: PFC | C166: 401.5 | D166: 402.20 | E166: 393.45 | F166: 385.40 | G166: 376.65 | H166: 410.25 | I166: 419.00 | J166: 427.05 | K166: 410.95 | L166: 394.15 | M166: 160.6076
A167: 158 | B167: POWERGRID | C167: 292.5 | D167: 290.00 | E167: 286.60 | F167: 280.70 | G167: 277.30 | H167: 295.90 | I167: 299.30 | J167: 305.20 | K167: 293.4 | L167: 284.1 | M167: 365.10093
A168: 159 | B168: PRESTIGE | C168: 1209.95 | D168: 1210.85 | E168: 1189.10 | F168: 1168.25 | G168: 1146.50 | H168: 1231.70 | I168: 1253.45 | J168: 1274.30 | K168: 1232.6 | L168: 1190 | M168: 9.83837
A169: 160 | B169: PGHH | C169: 16214.6 | D169: 16312.27 | E169: 16090.33 | F169: 15966.07 | G169: 15744.13 | H169: 16436.53 | I169: 16658.47 | J169: 16782.73 | K169: 16534.2 | L169: 16188 | M169: 0.04288
A170: 161 | B170: PNB | C170: 123.4 | D170: 123.92 | E170: 122.08 | F170: 120.77 | G170: 118.93 | H170: 125.23 | I170: 127.07 | J170: 128.38 | K170: 125.75 | L170: 122.6 | M170: 375.1023
A171: 162 | B171: RECLTD | C171: 443.2 | D171: 446.70 | E171: 433.35 | F171: 423.50 | G171: 410.15 | H171: 456.55 | I171: 469.90 | J171: 479.75 | K171: 460.05 | L171: 436.85 | M171: 116.12298
A172: 163 | B172: RVNL | C172: 266.9 | D172: 269.78 | E172: 262.62 | F172: 258.33 | G172: 251.17 | H172: 274.07 | I172: 281.23 | J172: 285.52 | K172: 276.95 | L172: 265.5 | M172: 184.52082
A173: 164 | B173: RELIANCE | C173: 2971.3 | D173: 2975.77 | E173: 2951.63 | F173: 2931.97 | G173: 2907.83 | H173: 2995.43 | I173: 3019.57 | J173: 3039.23 | K173: 2999.9 | L173: 2956.1 | M173: 54.13022
A174: 165 | B174: SBICARD | C174: 731.8 | D174: 731.20 | E174: 726.90 | F174: 722.00 | G174: 717.70 | H174: 736.10 | I174: 740.40 | J174: 745.30 | K174: 735.5 | L174: 726.3 | M174: 19.19189
A175: 166 | B175: SBILIFE | C175: 1542.7 | D175: 1550.20 | E175: 1531.40 | F175: 1520.10 | G175: 1501.30 | H175: 1561.50 | I175: 1580.30 | J175: 1591.60 | K175: 1569 | L175: 1538.9 | M175: 17.64621
A176: 167 | B176: SRF | C176: 2392.75 | D176: 2395.43 | E176: 2361.32 | F176: 2329.88 | G176: 2295.77 | H176: 2426.87 | I176: 2460.98 | J176: 2492.42 | K176: 2429.55 | L176: 2364 | M176: 4.42182
A177: 168 | B177: MOTHERSON | C177: 115.35 | D177: 115.20 | E177: 114.45 | F177: 113.55 | G177: 112.80 | H177: 116.10 | I177: 116.85 | J177: 117.75 | K177: 115.95 | L177: 114.3 | M177: 89.82017
A178: 169 | B178: SHREECEM | C178: 26191.3 | D178: 26266.08 | E178: 26025.27 | F178: 25859.23 | G178: 25618.42 | H178: 26432.12 | I178: 26672.93 | J178: 26838.97 | K178: 26506.9 | L178: 26100.05 | M178: 0.21987
A179: 170 | B179: SHRIRAMFIN | C179: 2372.4 | D179: 2379.58 | E179: 2249.82 | F179: 2127.23 | G179: 1997.47 | H179: 2502.17 | I179: 2631.93 | J179: 2754.52 | K179: 2509.35 | L179: 2257 | M179: 41.02754
A180: 171 | B180: SIEMENS | C180: 4585.3 | D180: 4598.27 | E180: 4550.03 | F180: 4514.77 | G180: 4466.53 | H180: 4633.53 | I180: 4681.77 | J180: 4717.03 | K180: 4646.5 | L180: 4563 | M180: 2.28401
A181: 172 | B181: SONACOMS | C181: 688.1 | D181: 682.63 | E181: 670.47 | F181: 652.83 | G181: 640.67 | H181: 700.27 | I181: 712.43 | J181: 730.07 | K181: 694.8 | L181: 665 | M181: 46.04527
A182: 173 | B182: SBIN | C182: 749.85 | D182: 751.47 | E182: 740.58 | F182: 731.32 | G182: 720.43 | H182: 760.73 | I182: 771.62 | J182: 780.88 | K182: 762.35 | L182: 742.2 | M182: 139.69393
A183: 174 | B183: SAIL | C183: 125.35 | D183: 125.28 | E183: 124.27 | F183: 123.18 | G183: 122.17 | H183: 126.37 | I183: 127.38 | J183: 128.47 | K183: 126.3 | L183: 124.2 | M183: 175.48565
A184: 175 | B184: SUNPHARMA | C184: 1582.75 | D184: 1572.42 | E184: 1559.38 | F184: 1536.02 | G184: 1522.98 | H184: 1595.78 | I184: 1608.82 | J184: 1632.18 | K184: 1585.45 | L184: 1549.05 | M184: 21.40963
A185: 176 | B185: SUNTV | C185: 619.85 | D185: 624.47 | E185: 613.88 | F185: 607.92 | G185: 597.33 | H185: 630.43 | I185: 641.02 | J185: 646.98 | K185: 635.05 | L185: 618.5 | M185: 3.44037
A186: 177 | B186: SYNGENE | C186: 727.5 | D186: 728.73 | E186: 720.57 | F186: 713.63 | G186: 705.47 | H186: 735.67 | I186: 743.83 | J186: 750.77 | K186: 736.9 | L186: 721.8 | M186: 6.08881
A187: 178 | B187: TVSMOTOR | C187: 2133.15 | D187: 2142.90 | E187: 2117.65 | F187: 2102.15 | G187: 2076.90 | H187: 2158.40 | I187: 2183.65 | J187: 2199.15 | K187: 2168.15 | L187: 2127.4 | M187: 6.26537
A188: 179 | B188: TATACHEM | C188: 961.8 | D188: 965.18 | E188: 955.37 | F188: 948.93 | G188: 939.12 | H188: 971.62 | I188: 981.43 | J188: 987.87 | K188: 975 | L188: 958.75 | M188: 4.27306
A189: 180 | B189: TATACOMM | C189: 1909.5 | D189: 1898.15 | E189: 1881.30 | F189: 1853.10 | G189: 1836.25 | H189: 1926.35 | I189: 1943.20 | J189: 1971.40 | K189: 1915 | L189: 1869.95 | M189: 16.03806
A190: 181 | B190: TCS | C190: 4104.4 | D190: 4075.80 | E190: 4027.60 | F190: 3950.80 | G190: 3902.60 | H190: 4152.60 | I190: 4200.80 | J190: 4277.60 | K190: 4124 | L190: 3999 | M190: 29.60475
A191: 182 | B191: TATACONSUM | C191: 1183.6 | D191: 1182.75 | E191: 1175.80 | F191: 1168.00 | G191: 1161.05 | H191: 1190.55 | I191: 1197.50 | J191: 1205.30 | K191: 1189.7 | L191: 1174.95 | M191: 15.84564
A192: 183 | B192: TATAELXSI | C192: 7640.6 | D192: 7663.33 | E192: 7582.27 | F192: 7523.93 | G192: 7442.87 | H192: 7721.67 | I192: 7802.73 | J192: 7861.07 | K192: 7744.4 | L192: 7605 | M192: 0.92008
A193: 184 | B193: TATAMTRDVR | C193: 633.5 | D193: 627.98 | E193: 620.97 | F193: 608.43 | G193: 601.42 | H193: 640.52 | I193: 647.53 | J193: 660.07 | K193: 635 | L193: 615.45 | M193: 27.88505
A194: 185 | B194: TATAMOTORS | C194: 962.7 | D194: 954.40 | E194: 943.80 | F194: 924.90 | G194: 914.30 | H194: 973.30 | I194: 983.90 | J194: 1002.80 | K194: 965 | L194: 935.5 | M194: 128.10206
A195: 186 | B195: TATAPOWER | C195: 375.55 | D195: 376.33 | E195: 373.17 | F195: 370.78 | G195: 367.62 | H195: 378.72 | I195: 381.88 | J195: 384.27 | K195: 379.5 | L195: 373.95 | M195: 63.22898
A196: 187 | B196: TATASTEEL | C196: 144.2 | D196: 143.57 | E196: 142.63 | F196: 141.07 | G196: 140.13 | H196: 145.13 | I196: 146.07 | J196: 147.63 | K196: 144.5 | L196: 142 | M196: 241.19469
A197: 188 | B197: TECHM | C197: 1296.05 | D197: 1294.93 | E197: 1284.82 | F197: 1273.58 | G197: 1263.47 | H197: 1306.17 | I197: 1316.28 | J197: 1327.52 | K197: 1305.05 | L197: 1283.7 | M197: 14.88661
A198: 189 | B198: RAMCOCEM | C198: 869.9 | D198: 870.62 | E198: 864.38 | F198: 858.87 | G198: 852.63 | H198: 876.13 | I198: 882.37 | J198: 887.88 | K198: 876.85 | L198: 865.1 | M198: 7.27546
A199: 190 | B199: TITAN | C199: 3653.85 | D199: 3649.97 | E199: 3624.93 | F199: 3596.02 | G199: 3570.98 | H199: 3678.88 | I199: 3703.92 | J199: 3732.83 | K199: 3675 | L199: 3621.05 | M199: 6.73959
A200: 191 | B200: TORNTPHARM | C200: 2625.95 | D200: 2625.80 | E200: 2606.85 | F200: 2587.75 | G200: 2568.80 | H200: 2644.90 | I200: 2663.85 | J200: 2682.95 | K200: 2644.75 | L200: 2606.7 | M200: 1.07979
A201: 192 | B201: TORNTPOWER | C201: 1151.15 | D201: 1144.22 | E201: 1121.43 | F201: 1091.72 | G201: 1068.93 | H201: 1173.93 | I201: 1196.72 | J201: 1226.43 | K201: 1167 | L201: 1114.5 | M201: 12.06377
A202: 193 | B202: TRENT | C202: 3937.5 | D202: 3924.77 | E202: 3854.53 | F202: 3771.57 | G202: 3701.33 | H202: 4007.73 | I202: 4077.97 | J202: 4160.93 | K202: 3995 | L202: 3841.8 | M202: 8.61671
A203: 194 | B203: TIINDIA | C203: 3555.4 | D203: 3552.88 | E203: 3525.77 | F203: 3496.13 | G203: 3469.02 | H203: 3582.52 | I203: 3609.63 | J203: 3639.27 | K203: 3580 | L203: 3523.25 | M203: 1.57799
A204: 195 | B204: UPL | C204: 484.6 | D204: 485.87 | E204: 480.23 | F204: 475.87 | G204: 470.23 | H204: 490.23 | I204: 495.87 | J204: 500.23 | K204: 491.5 | L204: 481.5 | M204: 29.20314
A205: 196 | B205: ULTRACEMCO | C205: 9951.1 | D205: 9994.52 | E205: 9838.03 | F205: 9724.97 | G205: 9568.48 | H205: 10107.58 | I205: 10264.07 | J205: 10377.13 | K205: 10151 | L205: 9881.45 | M205: 2.14186
... 30 more rows

Sheet MidCap Intra
L5: Back To Main Page
A6: FOR INTRA DAY TRADING | K6: =Main!B10 -> 2024-02-28
A9: Sr.no | B9: Scrip | C9: CLOSE RATE | D9: Pivot Point | E9: Supports | H9: Resistances
E10: S1 | F10: S2 | G10: S3 | H10: R1 | I10: R2 | J10: R3 | K10: HIGH | L10: LOW | M10: Total Trade Quanity in Lakhs
A11: 1 | B11: 360ONE | C11: 747.85 | D11: 758.08 | E11: 727.22 | F11: 706.58 | G11: 675.72 | H11: 778.72 | I11: 809.58 | J11: 830.22 | K11: 788.95 | L11: 737.45 | M11: 8.3744
A12: 2 | B12: 3MINDIA | C12: 31246.15 | D12: 31158.35 | E12: 30904.80 | F12: 30563.45 | G12: 30309.90 | H12: 31499.70 | I12: 31753.25 | J12: 32094.60 | K12: 31411.9 | L12: 30817 | M12: 0.034
A13: 3 | B13: ABB | C13: 5450.5 | D13: 5390.25 | E13: 5305.75 | F13: 5161.00 | G13: 5076.50 | H13: 5535.00 | I13: 5619.50 | J13: 5764.25 | K13: 5474.75 | L13: 5245.5 | M13: 6.56105
A14: 4 | B14: ACC | C14: 2669.4 | D14: 2672.63 | E14: 2657.27 | F14: 2645.13 | G14: 2629.77 | H14: 2684.77 | I14: 2700.13 | J14: 2712.27 | K14: 2688 | L14: 2660.5 | M14: 1.89689
A15: 5 | B15: AIAENG | C15: 3791.8 | D15: 3763.50 | E15: 3708.30 | F15: 3624.80 | G15: 3569.60 | H15: 3847.00 | I15: 3902.20 | J15: 3985.70 | K15: 3818.7 | L15: 3680 | M15: 0.5344
A16: 6 | B16: APLAPOLLO | C16: 1474.25 | D16: 1472.68 | E16: 1452.37 | F16: 1430.48 | G16: 1410.17 | H16: 1494.57 | I16: 1514.88 | J16: 1536.77 | K16: 1493 | L16: 1450.8 | M16: 8.23615
A17: 7 | B17: AUBANK | C17: 590.4 | D17: 590.80 | E17: 585.90 | F17: 581.40 | G17: 576.50 | H17: 595.30 | I17: 600.20 | J17: 604.70 | K17: 595.7 | L17: 586.3 | M17: 16.83135
A18: 8 | B18: AARTIDRUGS | C18: 516.1 | D18: 515.97 | E18: 513.18 | F18: 510.27 | G18: 507.48 | H18: 518.88 | I18: 521.67 | J18: 524.58 | K18: 518.75 | L18: 513.05 | M18: 1.28737
A19: 9 | B19: AARTIIND | C19: 669.8 | D19: 672.05 | E19: 664.75 | F19: 659.70 | G19: 652.40 | H19: 677.10 | I19: 684.40 | J19: 689.45 | K19: 679.35 | L19: 667 | M19: 9.83657
A20: 10 | B20: AAVAS | C20: 1459.65 | D20: 1458.42 | E20: 1446.23 | F20: 1432.82 | G20: 1420.63 | H20: 1471.83 | I20: 1484.02 | J20: 1497.43 | K20: 1470.6 | L20: 1445 | M20: 3.67166
A21: 11 | B21: ABBOTINDIA | C21: 28670.35 | D21: 28647.45 | E21: 28502.90 | F21: 28335.45 | G21: 28190.90 | H21: 28814.90 | I21: 28959.45 | J21: 29126.90 | K21: 28792 | L21: 28480 | M21: 0.06347
A22: 12 | B22: ADANIENSOL | C22: 1122.7 | D22: 1142.20 | E22: 1097.70 | F22: 1072.70 | G22: 1028.20 | H22: 1167.20 | I22: 1211.70 | J22: 1236.70 | K22: 1186.7 | L22: 1117.2 | M22: 32.35084
A23: 13 | B23: ADANIENT | C23: 3302.3 | D23: 3305.10 | E23: 3270.20 | F23: 3238.10 | G23: 3203.20 | H23: 3337.20 | I23: 3372.10 | J23: 3404.20 | K23: 3340 | L23: 3273 | M23: 11.2557
A24: 14 | B24: ADANIGREEN | C24: 1979.5 | D24: 1982.13 | E24: 1945.32 | F24: 1911.13 | G24: 1874.32 | H24: 2016.32 | I24: 2053.13 | J24: 2087.32 | K24: 2018.95 | L24: 1947.95 | M24: 10.02672
A25: 15 | B25: ADANIPORTS | C25: 1329.45 | D25: 1327.63 | E25: 1316.07 | F25: 1302.68 | G25: 1291.12 | H25: 1341.02 | I25: 1352.58 | J25: 1365.97 | K25: 1339.2 | L25: 1314.25 | M25: 21.97456
A26: 16 | B26: ADANIPOWER | C26: 566.7 | D26: 567.52 | E26: 560.23 | F26: 553.77 | G26: 546.48 | H26: 573.98 | I26: 581.27 | J26: 587.73 | K26: 574.8 | L26: 561.05 | M26: 9.19411
A27: 17 | B27: ATGL | C27: 1048.3 | D27: 1062.17 | E27: 1028.33 | F27: 1008.37 | G27: 974.53 | H27: 1082.13 | I27: 1115.97 | J27: 1135.93 | K27: 1096 | L27: 1042.2 | M27: 54.79415
A28: 18 | B28: AWL | C28: 387.85 | D28: 392.52 | E28: 381.33 | F28: 374.82 | G28: 363.63 | H28: 399.03 | I28: 410.22 | J28: 416.73 | K28: 403.7 | L28: 386 | M28: 59.44017
A29: 19 | B29: ABCAPITAL | C29: 187.85 | D29: 189.22 | E29: 185.23 | F29: 182.62 | G29: 178.63 | H29: 191.83 | I29: 195.82 | J29: 198.43 | K29: 193.2 | L29: 186.6 | M29: 65.90921
A30: 20 | B30: ABFRL | C30: 228.9 | D30: 227.95 | E30: 225.30 | F30: 221.70 | G30: 219.05 | H30: 231.55 | I30: 234.20 | J30: 237.80 | K30: 230.6 | L30: 224.35 | M30: 34.85905
A31: 21 | B31: AEGISCHEM | C31: 416.85 | D31: 420.25 | E31: 411.65 | F31: 406.45 | G31: 397.85 | H31: 425.45 | I31: 434.05 | J31: 439.25 | K31: 428.85 | L31: 415.05 | M31: 3.58596
A32: 22 | B32: AETHER | C32: 869.5 | D32: 869.15 | E32: 863.40 | F32: 857.30 | G32: 851.55 | H32: 875.25 | I32: 881.00 | J32: 887.10 | K32: 874.9 | L32: 863.05 | M32: 0.58401
A33: 23 | B33: AFFLE | C33: 1120.25 | D33: 1124.43 | E33: 1108.92 | F33: 1097.58 | G33: 1082.07 | H33: 1135.77 | I33: 1151.28 | J33: 1162.62 | K33: 1139.95 | L33: 1113.1 | M33: 1.33715
A34: 24 | B34: AJANTPHARM | C34: 2122.55 | D34: 2129.90 | E34: 2108.65 | F34: 2094.75 | G34: 2073.50 | H34: 2143.80 | I34: 2165.05 | J34: 2178.95 | K34: 2151.15 | L34: 2116 | M34: 0.25692
A35: 25 | B35: APLLTD | C35: 1050.3 | D35: 1050.22 | E35: 1036.78 | F35: 1023.27 | G35: 1009.83 | H35: 1063.73 | I35: 1077.17 | J35: 1090.68 | K35: 1063.65 | L35: 1036.7 | M35: 0.66557
A36: 26 | B36: ALKEM | C36: 5044.05 | D36: 5025.02 | E36: 4953.68 | F36: 4863.32 | G36: 4791.98 | H36: 5115.38 | I36: 5186.72 | J36: 5277.08 | K36: 5096.35 | L36: 4934.65 | M36: 6.78534
A37: 27 | B37: ALKYLAMINE | C37: 2155.6 | D37: 2162.48 | E37: 2144.12 | F37: 2132.63 | G37: 2114.27 | H37: 2173.97 | I37: 2192.33 | J37: 2203.82 | K37: 2180.85 | L37: 2151 | M37: 0.21123
A38: 28 | B38: ALLCARGO | C38: 82.85 | D38: 83.27 | E38: 82.08 | F38: 81.32 | G38: 80.13 | H38: 84.03 | I38: 85.22 | J38: 85.98 | K38: 84.45 | L38: 82.5 | M38: 15.6168
A39: 29 | B39: ALOKINDS | C39: 28.9 | D39: 29.12 | E39: 28.48 | F39: 28.07 | G39: 27.43 | H39: 29.53 | I39: 30.17 | J39: 30.58 | K39: 29.75 | L39: 28.7 | M39: 24.85616
A40: 30 | B40: ARE&M | C40: 834.35 | D40: 838.12 | E40: 826.23 | F40: 818.12 | G40: 806.23 | H40: 846.23 | I40: 858.12 | J40: 866.23 | K40: 850 | L40: 830 | M40: 5.79709
A41: 31 | B41: AMBER | C41: 3732.85 | D41: 3755.28 | E41: 3682.57 | F41: 3632.28 | G41: 3559.57 | H41: 3805.57 | I41: 3878.28 | J41: 3928.57 | K41: 3828 | L41: 3705 | M41: 0.53935
A42: 32 | B42: AMBUJACEM | C42: 603.35 | D42: 604.95 | E42: 597.40 | F42: 591.45 | G42: 583.90 | H42: 610.90 | I42: 618.45 | J42: 624.40 | K42: 612.5 | L42: 599 | M42: 36.04237
A43: 33 | B43: ANGELONE | C43: 2917.8 | D43: 2950.93 | E43: 2876.87 | F43: 2835.93 | G43: 2761.87 | H43: 2991.87 | I43: 3065.93 | J43: 3106.87 | K43: 3025 | L43: 2910 | M43: 3.65886
A44: 34 | B44: ANURAS | C44: 953 | D44: 948.63 | E44: 942.27 | F44: 931.53 | G44: 925.17 | H44: 959.37 | I44: 965.73 | J44: 976.47 | K44: 955 | L44: 937.9 | M44: 0.53802
A45: 35 | B45: APARINDS | C45: 6289.65 | D45: 6291.75 | E45: 6227.90 | F45: 6166.15 | G45: 6102.30 | H45: 6353.50 | I45: 6417.35 | J45: 6479.10 | K45: 6355.6 | L45: 6230 | M45: 0.50657
A46: 36 | B46: APOLLOHOSP | C46: 6620.6 | D46: 6619.68 | E46: 6570.92 | F46: 6521.23 | G46: 6472.47 | H46: 6669.37 | I46: 6718.13 | J46: 6767.82 | K46: 6668.45 | L46: 6570 | M46: 3.1376
A47: 37 | B47: APOLLOTYRE | C47: 518.05 | D47: 520.65 | E47: 512.95 | F47: 507.85 | G47: 500.15 | H47: 525.75 | I47: 533.45 | J47: 538.55 | K47: 528.35 | L47: 515.55 | M47: 8.73528
A48: 38 | B48: APTUS | C48: 336.2 | D48: 336.98 | E48: 333.42 | F48: 330.63 | G48: 327.07 | H48: 339.77 | I48: 343.33 | J48: 346.12 | K48: 340.55 | L48: 334.2 | M48: 2.09752
A49: 39 | B49: ACI | C49: 794.25 | D49: 806.63 | E49: 775.57 | F49: 756.88 | G49: 725.82 | H49: 825.32 | I49: 856.38 | J49: 875.07 | K49: 837.7 | L49: 787.95 | M49: 7.72048
A50: 40 | B50: ASAHIINDIA | C50: 535.8 | D50: 535.73 | E50: 532.52 | F50: 529.23 | G50: 526.02 | H50: 539.02 | I50: 542.23 | J50: 545.52 | K50: 538.95 | L50: 532.45 | M50: 0.52764
A51: 41 | B51: ASHOKLEY | C51: 174 | D51: 173.87 | E51: 172.33 | F51: 170.67 | G51: 169.13 | H51: 175.53 | I51: 177.07 | J51: 178.73 | K51: 175.4 | L51: 172.2 | M51: 99.7348
A52: 42 | B52: ASIANPAINT | C52: 2859.55 | D52: 2859.88 | E52: 2849.77 | F52: 2839.98 | G52: 2829.87 | H52: 2869.67 | I52: 2879.78 | J52: 2889.57 | K52: 2870 | L52: 2850.1 | M52: 12.9618
A53: 43 | B53: ASTERDM | C53: 474.1 | D53: 469.72 | E53: 458.43 | F53: 442.77 | G53: 431.48 | H53: 485.38 | I53: 496.67 | J53: 512.33 | K53: 481 | L53: 454.05 | M53: 13.80592
A54: 44 | B54: ASTRAL | C54: 2095.25 | D54: 2101.60 | E54: 2068.65 | F54: 2042.05 | G54: 2009.10 | H54: 2128.20 | I54: 2161.15 | J54: 2187.75 | K54: 2134.55 | L54: 2075 | M54: 10.57268
A55: 45 | B55: ATUL | C55: 6219.25 | D55: 6242.97 | E55: 6184.28 | F55: 6149.32 | G55: 6090.63 | H55: 6277.93 | I55: 6336.62 | J55: 6371.58 | K55: 6301.65 | L55: 6208 | M55: 0.16209
A56: 46 | B56: AUROPHARMA | C56: 1045.6 | D56: 1044.07 | E56: 1035.13 | F56: 1024.67 | G56: 1015.73 | H56: 1054.53 | I56: 1063.47 | J56: 1073.93 | K56: 1053 | L56: 1033.6 | M56: 9.12097
A57: 47 | B57: AVANTIFEED | C57: 522.3 | D57: 519.57 | E57: 510.13 | F57: 497.97 | G57: 488.53 | H57: 531.73 | I57: 541.17 | J57: 553.33 | K57: 529 | L57: 507.4 | M57: 3.88937
A58: 48 | B58: DMART | C58: 3852.2 | D58: 3851.75 | E58: 3818.50 | F58: 3784.80 | G58: 3751.55 | H58: 3885.45 | I58: 3918.70 | J58: 3952.40 | K58: 3885 | L58: 3818.05 | M58: 2.56237
A59: 49 | B59: AXISBANK | C59: 1079.05 | D59: 1079.88 | E59: 1071.22 | F59: 1063.38 | G59: 1054.72 | H59: 1087.72 | I59: 1096.38 | J59: 1104.22 | K59: 1088.55 | L59: 1072.05 | M59: 65.46815
A60: 50 | B60: BEML | C60: 3372.75 | D60: 3280.92 | E60: 3141.83 | F60: 2910.92 | G60: 2771.83 | H60: 3511.83 | I60: 3650.92 | J60: 3881.83 | K60: 3420 | L60: 3050 | M60: 21.12507
A61: 51 | B61: BLS | C61: 375.2 | D61: 375.38 | E61: 367.57 | F61: 359.93 | G61: 352.12 | H61: 383.02 | I61: 390.83 | J61: 398.47 | K61: 383.2 | L61: 367.75 | M61: 48.363
A62: 52 | B62: BSE | C62: 2396.1 | D62: 2361.73 | E62: 2314.37 | F62: 2232.63 | G62: 2185.27 | H62: 2443.47 | I62: 2490.83 | J62: 2572.57 | K62: 2409.1 | L62: 2280 | M62: 12.04781
A63: 53 | B63: BAJAJ-AUTO | C63: 8463.5 | D63: 8445.67 | E63: 8401.33 | F63: 8339.17 | G63: 8294.83 | H63: 8507.83 | I63: 8552.17 | J63: 8614.33 | K63: 8490 | L63: 8383.5 | M63: 3.92445
A64: 54 | B64: BAJFINANCE | C64: 6556.25 | D64: 6563.12 | E64: 6484.23 | F64: 6412.22 | G64: 6333.33 | H64: 6635.13 | I64: 6714.02 | J64: 6786.03 | K64: 6642 | L64: 6491.1 | M64: 11.50306
A65: 55 | B65: BAJAJFINSV | C65: 1600.6 | D65: 1606.35 | E65: 1589.25 | F65: 1577.90 | G65: 1560.80 | H65: 1617.70 | I65: 1634.80 | J65: 1646.15 | K65: 1623.45 | L65: 1595 | M65: 9.31236
A66: 56 | B66: BAJAJHLDNG | C66: 8703 | D66: 8824.72 | E66: 8509.43 | F66: 8315.87 | G66: 8000.58 | H66: 9018.28 | I66: 9333.57 | J66: 9527.13 | K66: 9140 | L66: 8631.15 | M66: 0.70693
A67: 57 | B67: BALAMINES | C67: 2216.55 | D67: 2228.67 | E67: 2192.33 | F67: 2168.12 | G67: 2131.78 | H67: 2252.88 | I67: 2289.22 | J67: 2313.43 | K67: 2265 | L67: 2204.45 | M67: 0.35517
A68: 58 | B68: BALKRISIND | C68: 2289.25 | D68: 2293.90 | E68: 2272.60 | F68: 2255.95 | G68: 2234.65 | H68: 2310.55 | I68: 2331.85 | J68: 2348.50 | K68: 2315.2 | L68: 2277.25 | M68: 1.77543
A69: 59 | B69: BALRAMCHIN | C69: 382.9 | D69: 381.00 | E69: 378.00 | F69: 373.10 | G69: 370.10 | H69: 385.90 | I69: 388.90 | J69: 393.80 | K69: 384 | L69: 376.1 | M69: 19.09167
A70: 60 | B70: BANDHANBNK | C70: 201.15 | D70: 202.08 | E70: 199.82 | F70: 198.48 | G70: 196.22 | H70: 203.42 | I70: 205.68 | J70: 207.02 | K70: 204.35 | L70: 200.75 | M70: 83.41347
A71: 61 | B71: BANKBARODA | C71: 270.35 | D71: 270.28 | E71: 267.47 | F71: 264.58 | G71: 261.77 | H71: 273.17 | I71: 275.98 | J71: 278.87 | K71: 273.1 | L71: 267.4 | M71: 155.72873
A72: 62 | B72: BANKINDIA | C72: 135.8 | D72: 135.83 | E72: 133.97 | F72: 132.13 | G72: 130.27 | H72: 137.67 | I72: 139.53 | J72: 141.37 | K72: 137.7 | L72: 134 | M72: 101.23884
A73: 63 | B73: MAHABANK | C73: 59.9 | D73: 60.10 | E73: 59.00 | F73: 58.10 | G73: 57.00 | H73: 61.00 | I73: 62.10 | J73: 63.00 | K73: 61.2 | L73: 59.2 | M73: 197.63129
A74: 64 | B74: BATAINDIA | C74: 1437.75 | D74: 1435.82 | E74: 1424.93 | F74: 1412.12 | G74: 1401.23 | H74: 1448.63 | I74: 1459.52 | J74: 1472.33 | K74: 1446.7 | L74: 1423 | M74: 2.66131
A75: 65 | B75: BAYERCROP | C75: 5815.1 | D75: 5855.03 | E75: 5750.07 | F75: 5685.03 | G75: 5580.07 | H75: 5920.07 | I75: 6025.03 | J75: 6090.07 | K75: 5960 | L75: 5790 | M75: 0.06535
A76: 66 | B76: BERGEPAINT | C76: 562.9 | D76: 562.62 | E76: 556.53 | F76: 550.17 | G76: 544.08 | H76: 568.98 | I76: 575.07 | J76: 581.43 | K76: 568.7 | L76: 556.25 | M76: 10.46795
A77: 67 | B77: BDL | C77: 1888.05 | D77: 1914.93 | E77: 1845.07 | F77: 1802.08 | G77: 1732.22 | H77: 1957.92 | I77: 2027.78 | J77: 2070.77 | K77: 1984.8 | L77: 1871.95 | M77: 26.20826
A78: 68 | B78: BEL | C78: 205.35 | D78: 205.82 | E78: 202.63 | F78: 199.92 | G78: 196.73 | H78: 208.53 | I78: 211.72 | J78: 214.43 | K78: 209 | L78: 203.1 | M78: 288.77205
A79: 69 | B79: BHARATFORG | C79: 1177.95 | D79: 1180.98 | E79: 1166.77 | F79: 1155.58 | G79: 1141.37 | H79: 1192.17 | I79: 1206.38 | J79: 1217.57 | K79: 1195.2 | L79: 1169.8 | M79: 11.78342
A80: 70 | B80: BHEL | C80: 222.6 | D80: 224.25 | E80: 220.10 | F80: 217.60 | G80: 213.45 | H80: 226.75 | I80: 230.90 | J80: 233.40 | K80: 228.4 | L80: 221.75 | M80: 224.97412
A81: 71 | B81: BPCL | C81: 625.05 | D81: 624.68 | E81: 616.67 | F81: 608.28 | G81: 600.27 | H81: 633.07 | I81: 641.08 | J81: 649.47 | K81: 632.7 | L81: 616.3 | M81: 74.40601
A82: 72 | B82: BHARTIARTL | C82: 1127.5 | D82: 1119.93 | E82: 1108.87 | F82: 1090.23 | G82: 1079.17 | H82: 1138.57 | I82: 1149.63 | J82: 1168.27 | K82: 1131 | L82: 1101.3 | M82: 71.49094
A83: 73 | B83: BIKAJI | C83: 525.6 | D83: 528.17 | E83: 522.43 | F83: 519.27 | G83: 513.53 | H83: 531.33 | I83: 537.07 | J83: 540.23 | K83: 533.9 | L83: 525 | M83: 1.86662
A84: 74 | B84: BIOCON | C84: 275.7 | D84: 277.00 | E84: 272.00 | F84: 268.30 | G84: 263.30 | H84: 280.70 | I84: 285.70 | J84: 289.40 | K84: 282 | L84: 273.3 | M84: 88.10926
A85: 75 | B85: BIRLACORPN | C85: 1767.1 | D85: 1771.70 | E85: 1741.40 | F85: 1715.70 | G85: 1685.40 | H85: 1797.40 | I85: 1827.70 | J85: 1853.40 | K85: 1802 | L85: 1746 | M85: 4.31792
A86: 76 | B86: BSOFT | C86: 798.2 | D86: 791.38 | E86: 782.77 | F86: 767.33 | G86: 758.72 | H86: 806.82 | I86: 815.43 | J86: 830.87 | K86: 800 | L86: 775.95 | M86: 19.09443
A87: 77 | B87: BLUEDART | C87: 6175.1 | D87: 6183.68 | E87: 6131.42 | F87: 6087.73 | G87: 6035.47 | H87: 6227.37 | I87: 6279.63 | J87: 6323.32 | K87: 6235.95 | L87: 6140 | M87: 0.07199
A88: 78 | B88: BLUESTARCO | C88: 1292.7 | D88: 1286.60 | E88: 1271.20 | F88: 1249.70 | G88: 1234.30 | H88: 1308.10 | I88: 1323.50 | J88: 1345.00 | K88: 1302 | L88: 1265.1 | M88: 2.1217
A89: 79 | B89: BBTC | C89: 1727.55 | D89: 1736.68 | E89: 1710.42 | F89: 1693.28 | G89: 1667.02 | H89: 1753.82 | I89: 1780.08 | J89: 1797.22 | K89: 1762.95 | L89: 1719.55 | M89: 0.50257
A90: 80 | B90: BORORENEW | C90: 543.1 | D90: 543.58 | E90: 534.67 | F90: 526.23 | G90: 517.32 | H90: 552.02 | I90: 560.93 | J90: 569.37 | K90: 552.5 | L90: 535.15 | M90: 6.88499
A91: 81 | B91: BOSCHLTD | C91: 28865.45 | D91: 28938.53 | E91: 28577.07 | F91: 28288.68 | G91: 27927.22 | H91: 29226.92 | I91: 29588.38 | J91: 29876.77 | K91: 29300 | L91: 28650.15 | M91: 0.32611
A92: 82 | B92: BRIGADE | C92: 1023.6 | D92: 1013.58 | E92: 996.17 | F92: 968.73 | G92: 951.32 | H92: 1041.02 | I92: 1058.43 | J92: 1085.87 | K92: 1031 | L92: 986.15 | M92: 1.47048
A93: 83 | B93: BCG | C93: 18 | D93: 18.02 | E93: 17.88 | F93: 17.77 | G93: 17.63 | H93: 18.13 | I93: 18.27 | J93: 18.38 | K93: 18.15 | L93: 17.9 | M93: 96.70446
A94: 84 | B94: BRITANNIA | C94: 4904.35 | D94: 4907.63 | E94: 4875.72 | F94: 4847.08 | G94: 4815.17 | H94: 4936.27 | I94: 4968.18 | J94: 4996.82 | K94: 4939.55 | L94: 4879 | M94: 4.34014
A95: 85 | B95: MAPMYINDIA | C95: 1813.55 | D95: 1815.20 | E95: 1794.45 | F95: 1775.35 | G95: 1754.60 | H95: 1834.30 | I95: 1855.05 | J95: 1874.15 | K95: 1835.95 | L95: 1796.1 | M95: 0.79523
A96: 86 | B96: CCL | C96: 648.2 | D96: 645.42 | E96: 639.58 | F96: 630.97 | G96: 625.13 | H96: 654.03 | I96: 659.87 | J96: 668.48 | K96: 651.25 | L96: 636.8 | M96: 0.66012
A97: 87 | B97: CESC | C97: 130.5 | D97: 130.13 | E97: 128.57 | F97: 126.63 | G97: 125.07 | H97: 132.07 | I97: 133.63 | J97: 135.57 | K97: 131.7 | L97: 128.2 | M97: 29.7616
A98: 88 | B98: CGPOWER | C98: 439.1 | D98: 435.18 | E98: 429.42 | F98: 419.73 | G98: 413.97 | H98: 444.87 | I98: 450.63 | J98: 460.32 | K98: 440.95 | L98: 425.5 | M98: 23.52699
A99: 89 | B99: CIEINDIA | C99: 461.2 | D99: 462.93 | E99: 457.02 | F99: 452.83 | G99: 446.92 | H99: 467.12 | I99: 473.03 | J99: 477.22 | K99: 468.85 | L99: 458.75 | M99: 4.836
A100: 90 | B100: CRISIL | C100: 4892.7 | D100: 4906.52 | E100: 4861.28 | F100: 4829.87 | G100: 4784.63 | H100: 4937.93 | I100: 4983.17 | J100: 5014.58 | K100: 4951.75 | L100: 4875.1 | M100: 0.23137
A101: 91 | B101: CSBBANK | C101: 361.2 | D101: 361.33 | E101: 358.67 | F101: 356.13 | G101: 353.47 | H101: 363.87 | I101: 366.53 | J101: 369.07 | K101: 364 | L101: 358.8 | M101: 1.14934
A102: 92 | B102: CAMPUS | C102: 249.35 | D102: 250.17 | E102: 247.83 | F102: 246.32 | G102: 243.98 | H102: 251.68 | I102: 254.02 | J102: 255.53 | K102: 252.5 | L102: 248.65 | M102: 6.23361
A103: 93 | B103: CANFINHOME | C103: 791.55 | D103: 793.40 | E103: 783.40 | F103: 775.25 | G103: 765.25 | H103: 801.55 | I103: 811.55 | J103: 819.70 | K103: 803.4 | L103: 785.25 | M103: 2.97797
A104: 94 | B104: CANBK | C104: 571.9 | D104: 574.50 | E104: 564.70 | F104: 557.50 | G104: 547.70 | H104: 581.70 | I104: 591.50 | J104: 598.70 | K104: 584.3 | L104: 567.3 | M104: 107.02657
A105: 95 | B105: CGCL | C105: 977.95 | D105: 987.62 | E105: 965.33 | F105: 952.72 | G105: 930.43 | H105: 1000.23 | I105: 1022.52 | J105: 1035.13 | K105: 1009.9 | L105: 975 | M105: 2.24572
A106: 96 | B106: CARBORUNIV | C106: 1037 | D106: 1044.20 | E106: 1018.40 | F106: 999.80 | G106: 974.00 | H106: 1062.80 | I106: 1088.60 | J106: 1107.20 | K106: 1070 | L106: 1025.6 | M106: 3.28127
A107: 97 | B107: CASTROLIND | C107: 205.2 | D107: 204.23 | E107: 200.22 | F107: 195.23 | G107: 191.22 | H107: 209.22 | I107: 213.23 | J107: 218.22 | K107: 208.25 | L107: 199.25 | M107: 69.21855
A108: 98 | B108: CEATLTD | C108: 2877.45 | D108: 2880.15 | E108: 2838.30 | F108: 2799.15 | G108: 2757.30 | H108: 2919.30 | I108: 2961.15 | J108: 3000.30 | K108: 2922 | L108: 2841 | M108: 1.09114
A109: 99 | B109: CENTRALBK | C109: 63.25 | D109: 63.75 | E109: 62.05 | F109: 60.85 | G109: 59.15 | H109: 64.95 | I109: 66.65 | J109: 67.85 | K109: 65.45 | L109: 62.55 | M109: 143.85725
A110: 100 | B110: CDSL | C110: 1913.95 | D110: 1925.55 | E110: 1891.10 | F110: 1868.25 | G110: 1833.80 | H110: 1948.40 | I110: 1982.85 | J110: 2005.70 | K110: 1960 | L110: 1902.7 | M110: 14.79422
A111: 101 | B111: CENTURYPLY | C111: 722.8 | D111: 725.12 | E111: 713.23 | F111: 703.67 | G111: 691.78 | H111: 734.68 | I111: 746.57 | J111: 756.13 | K111: 737 | L111: 715.55 | M111: 0.68528
A112: 102 | B112: CENTURYTEX | C112: 1480.2 | D112: 1474.07 | E112: 1449.13 | F112: 1418.07 | G112: 1393.13 | H112: 1505.13 | I112: 1530.07 | J112: 1561.13 | K112: 1499 | L112: 1443 | M112: 1.71311
A113: 103 | B113: CERA | C113: 7619.75 | D113: 7634.98 | E113: 7518.97 | F113: 7418.18 | G113: 7302.17 | H113: 7735.77 | I113: 7851.78 | J113: 7952.57 | K113: 7751 | L113: 7534.2 | M113: 0.41192
A114: 104 | B114: CHALET | C114: 840.15 | D114: 847.82 | E114: 830.63 | F114: 821.12 | G114: 803.93 | H114: 857.33 | I114: 874.52 | J114: 884.03 | K114: 865 | L114: 838.3 | M114: 2.41613
A115: 105 | B115: CHAMBLFERT | C115: 354.7 | D115: 356.27 | E115: 351.98 | F115: 349.27 | G115: 344.98 | H115: 358.98 | I115: 363.27 | J115: 365.98 | K115: 360.55 | L115: 353.55 | M115: 7.64114
A116: 106 | B116: CHEMPLASTS | C116: 470.3 | D116: 469.20 | E116: 466.05 | F116: 461.80 | G116: 458.65 | H116: 473.45 | I116: 476.60 | J116: 480.85 | K116: 472.35 | L116: 464.95 | M116: 0.49758
A117: 107 | B117: CHOLAHLDNG | C117: 1080.05 | D117: 1080.88 | E117: 1059.17 | F117: 1038.28 | G117: 1016.57 | H117: 1101.77 | I117: 1123.48 | J117: 1144.37 | K117: 1102.6 | L117: 1060 | M117: 0.85714
A118: 108 | B118: CHOLAFIN | C118: 1098.65 | D118: 1103.73 | E118: 1080.42 | F118: 1062.18 | G118: 1038.87 | H118: 1121.97 | I118: 1145.28 | J118: 1163.52 | K118: 1127.05 | L118: 1085.5 | M118: 19.77469
A119: 109 | B119: CIPLA | C119: 1487.45 | D119: 1482.72 | E119: 1474.43 | F119: 1461.42 | G119: 1453.13 | H119: 1495.73 | I119: 1504.02 | J119: 1517.03 | K119: 1491 | L119: 1469.7 | M119: 12.31196
A120: 110 | B120: CUB | C120: 136 | D120: 135.65 | E120: 134.85 | F120: 133.70 | G120: 132.90 | H120: 136.80 | I120: 137.60 | J120: 138.75 | K120: 136.45 | L120: 134.5 | M120: 46.44216
A121: 111 | B121: CLEAN | C121: 1461.05 | D121: 1462.70 | E121: 1450.40 | F121: 1439.75 | G121: 1427.45 | H121: 1473.35 | I121: 1485.65 | J121: 1496.30 | K121: 1475 | L121: 1452.05 | M121: 0.73771
A122: 112 | B122: COALINDIA | C122: 441.4 | D122: 440.58 | E122: 435.87 | F122: 430.33 | G122: 425.62 | H122: 446.12 | I122: 450.83 | J122: 456.37 | K122: 445.3 | L122: 435.05 | M122: 83.43526
A123: 113 | B123: COCHINSHIP | C123: 854.05 | D123: 856.75 | E123: 848.50 | F123: 842.95 | G123: 834.70 | H123: 862.30 | I123: 870.55 | J123: 876.10 | K123: 865 | L123: 851.2 | M123: 10.38904
A124: 114 | B124: COFORGE | C124: 6561.55 | D124: 6578.38 | E124: 6508.17 | F124: 6454.78 | G124: 6384.57 | H124: 6631.77 | I124: 6701.98 | J124: 6755.37 | K124: 6648.6 | L124: 6525 | M124: 1.1286
A125: 115 | B125: COLPAL | C125: 2531.75 | D125: 2533.48 | E125: 2510.02 | F125: 2488.28 | G125: 2464.82 | H125: 2555.22 | I125: 2578.68 | J125: 2600.42 | K125: 2556.95 | L125: 2511.75 | M125: 1.65839
A126: 116 | B126: CAMS | C126: 3138.25 | D126: 3157.12 | E126: 3091.23 | F126: 3044.22 | G126: 2978.33 | H126: 3204.13 | I126: 3270.02 | J126: 3317.03 | K126: 3223 | L126: 3110.1 | M126: 6.11369
A127: 117 | B127: CONCORDBIO | C127: 1499.45 | D127: 1494.98 | E127: 1484.52 | F127: 1469.58 | G127: 1459.12 | H127: 1509.92 | I127: 1520.38 | J127: 1535.32 | K127: 1505.45 | L127: 1480.05 | M127: 0.53746
A128: 118 | B128: CONCOR | C128: 972.05 | D128: 978.55 | E128: 958.70 | F128: 945.35 | G128: 925.50 | H128: 991.90 | I128: 1011.75 | J128: 1025.10 | K128: 998.4 | L128: 965.2 | M128: 15.4009
A129: 119 | B129: COROMANDEL | C129: 1039.5 | D129: 1042.63 | E129: 1021.47 | F129: 1003.43 | G129: 982.27 | H129: 1060.67 | I129: 1081.83 | J129: 1099.87 | K129: 1063.8 | L129: 1024.6 | M129: 7.78424
A130: 120 | B130: CRAFTSMAN | C130: 4264 | D130: 4300.33 | E130: 4215.67 | F130: 4167.33 | G130: 4082.67 | H130: 4348.67 | I130: 4433.33 | J130: 4481.67 | K130: 4385 | L130: 4252 | M130: 0.44229
A131: 121 | B131: CREDITACC | C131: 1487.05 | D131: 1487.55 | E131: 1475.15 | F131: 1463.25 | G131: 1450.85 | H131: 1499.45 | I131: 1511.85 | J131: 1523.75 | K131: 1499.95 | L131: 1475.65 | M131: 1.1303
A132: 122 | B132: CROMPTON | C132: 290.8 | D132: 292.50 | E132: 288.05 | F132: 285.30 | G132: 280.85 | H132: 295.25 | I132: 299.70 | J132: 302.45 | K132: 296.95 | L132: 289.75 | M132: 29.71531
A133: 123 | B133: CUMMINSIND | C133: 2754.1 | D133: 2756.07 | E133: 2714.23 | F133: 2674.37 | G133: 2632.53 | H133: 2795.93 | I133: 2837.77 | J133: 2877.63 | K133: 2797.9 | L133: 2716.2 | M133: 4.39505
A134: 124 | B134: CYIENT | C134: 2054.5 | D134: 2063.22 | E134: 2033.18 | F134: 2011.87 | G134: 1981.83 | H134: 2084.53 | I134: 2114.57 | J134: 2135.88 | K134: 2093.25 | L134: 2041.9 | M134: 1.00427
A135: 125 | B135: DCMSHRIRAM | C135: 1004.05 | D135: 999.93 | E135: 972.87 | F135: 941.68 | G135: 914.62 | H135: 1031.12 | I135: 1058.18 | J135: 1089.37 | K135: 1027 | L135: 968.75 | M135: 2.18018
A136: 126 | B136: DLF | C136: 916.4 | D136: 912.50 | E136: 906.80 | F136: 897.20 | G136: 891.50 | H136: 922.10 | I136: 927.80 | J136: 937.40 | K136: 918.2 | L136: 902.9 | M136: 36.14155
A137: 127 | B137: DABUR | C137: 535.6 | D137: 533.27 | E137: 528.33 | F137: 521.07 | G137: 516.13 | H137: 540.53 | I137: 545.47 | J137: 552.73 | K137: 538.2 | L137: 526 | M137: 29.54271
A138: 128 | B138: DALBHARAT | C138: 2072.65 | D138: 2084.13 | E138: 2054.12 | F138: 2035.58 | G138: 2005.57 | H138: 2102.67 | I138: 2132.68 | J138: 2151.22 | K138: 2114.15 | L138: 2065.6 | M138: 3.62622
A139: 129 | B139: DATAPATTNS | C139: 2549.35 | D139: 2586.13 | E139: 2492.32 | F139: 2435.28 | G139: 2341.47 | H139: 2643.17 | I139: 2736.98 | J139: 2794.02 | K139: 2679.95 | L139: 2529.1 | M139: 20.48941
A140: 130 | B140: DEEPAKFERT | C140: 514.95 | D140: 514.48 | E140: 510.97 | F140: 506.98 | G140: 503.47 | H140: 518.47 | I140: 521.98 | J140: 525.97 | K140: 518 | L140: 510.5 | M140: 3.05971
A141: 131 | B141: DEEPAKNTR | C141: 2263.1 | D141: 2274.62 | E141: 2244.53 | F141: 2225.97 | G141: 2195.88 | H141: 2293.18 | I141: 2323.27 | J141: 2341.83 | K141: 2304.7 | L141: 2256.05 | M141: 1.45591
A142: 132 | B142: DELHIVERY | C142: 470.7 | D142: 471.23 | E142: 457.47 | F142: 444.23 | G142: 430.47 | H142: 484.47 | I142: 498.23 | J142: 511.47 | K142: 485 | L142: 458 | M142: 63.38421
A143: 133 | B143: DELTACORP | C143: 146.8 | D143: 148.25 | E143: 144.70 | F143: 142.60 | G143: 139.05 | H143: 150.35 | I143: 153.90 | J143: 156.00 | K143: 151.8 | L143: 146.15 | M143: 48.57678
A144: 134 | B144: DEVYANI | C144: 157.3 | D144: 157.28 | E144: 152.72 | F144: 148.13 | G144: 143.57 | H144: 161.87 | I144: 166.43 | J144: 171.02 | K144: 161.85 | L144: 152.7 | M144: 161.67611
A145: 135 | B145: DIVISLAB | C145: 3539.8 | D145: 3549.23 | E145: 3500.47 | F145: 3461.13 | G145: 3412.37 | H145: 3588.57 | I145: 3637.33 | J145: 3676.67 | K145: 3598 | L145: 3509.9 | M145: 5.24599
A146: 136 | B146: DIXON | C146: 6761.25 | D146: 6756.40 | E146: 6624.85 | F146: 6488.45 | G146: 6356.90 | H146: 6892.80 | I146: 7024.35 | J146: 7160.75 | K146: 6887.95 | L146: 6620 | M146: 8.63651
A147: 137 | B147: LALPATHLAB | C147: 2370.1 | D147: 2390.68 | E147: 2343.42 | F147: 2316.73 | G147: 2269.47 | H147: 2417.37 | I147: 2464.63 | J147: 2491.32 | K147: 2437.95 | L147: 2364 | M147: 1.37895
A148: 138 | B148: DRREDDY | C148: 6449.6 | D148: 6431.48 | E148: 6403.37 | F148: 6357.13 | G148: 6329.02 | H148: 6477.72 | I148: 6505.83 | J148: 6552.07 | K148: 6459.6 | L148: 6385.25 | M148: 1.93295
A149: 139 | B149: EIDPARRY | C149: 631.4 | D149: 630.38 | E149: 626.02 | F149: 620.63 | G149: 616.27 | H149: 635.77 | I149: 640.13 | J149: 645.52 | K149: 634.75 | L149: 625 | M149: 3.77988
A150: 140 | B150: EIHOTEL | C150: 398.35 | D150: 400.28 | E150: 393.07 | F150: 387.78 | G150: 380.57 | H150: 405.57 | I150: 412.78 | J150: 418.07 | K150: 407.5 | L150: 395 | M150: 4.51726
A151: 141 | B151: EPL | C151: 192 | D151: 191.72 | E151: 190.28 | F151: 188.57 | G151: 187.13 | H151: 193.43 | I151: 194.87 | J151: 196.58 | K151: 193.15 | L151: 190 | M151: 3.73984
A152: 142 | B152: EASEMYTRIP | C152: 48.9 | D152: 49.67 | E152: 47.48 | F152: 46.07 | G152: 43.88 | H152: 51.08 | I152: 53.27 | J152: 54.68 | K152: 51.85 | L152: 48.25 | M152: 1048.40591
A153: 143 | B153: EICHERMOT | C153: 4002.75 | D153: 3985.10 | E153: 3957.65 | F153: 3912.55 | G153: 3885.10 | H153: 4030.20 | I153: 4057.65 | J153: 4102.75 | K153: 4012.55 | L153: 3940 | M153: 5.794
A154: 144 | B154: ELGIEQUIP | C154: 631.95 | D154: 628.07 | E154: 620.93 | F154: 609.92 | G154: 602.78 | H154: 639.08 | I154: 646.22 | J154: 657.23 | K154: 635.2 | L154: 617.05 | M154: 1.73157
A155: 145 | B155: EMAMILTD | C155: 469.2 | D155: 469.03 | E155: 466.17 | F155: 463.13 | G155: 460.27 | H155: 472.07 | I155: 474.93 | J155: 477.97 | K155: 471.9 | L155: 466 | M155: 8.53538
A156: 146 | B156: ENDURANCE | C156: 1855.75 | D156: 1852.17 | E156: 1825.73 | F156: 1795.72 | G156: 1769.28 | H156: 1882.18 | I156: 1908.62 | J156: 1938.63 | K156: 1878.6 | L156: 1822.15 | M156: 2.16952
A157: 147 | B157: ENGINERSIN | C157: 213.55 | D157: 214.77 | E157: 210.68 | F157: 207.82 | G157: 203.73 | H157: 217.63 | I157: 221.72 | J157: 224.58 | K157: 218.85 | L157: 211.9 | M157: 45.77588
A158: 148 | B158: EPIGRAL | C158: 1240.2 | D158: 1249.37 | E158: 1219.88 | F158: 1199.57 | G158: 1170.08 | H158: 1269.68 | I158: 1299.17 | J158: 1319.48 | K158: 1278.85 | L158: 1229.05 | M158: 1.11606
A159: 149 | B159: EQUITASBNK | C159: 102 | D159: 102.00 | E159: 100.50 | F159: 99.00 | G159: 97.50 | H159: 103.50 | I159: 105.00 | J159: 106.50 | K159: 103.5 | L159: 100.5 | M159: 27.05683
A160: 150 | B160: ERIS | C160: 872.55 | D160: 875.03 | E160: 863.52 | F160: 854.48 | G160: 842.97 | H160: 884.07 | I160: 895.58 | J160: 904.62 | K160: 886.55 | L160: 866 | M160: 1.03414
A161: 151 | B161: ESCORTS | C161: 2855.55 | D161: 2875.60 | E161: 2826.20 | F161: 2796.85 | G161: 2747.45 | H161: 2904.95 | I161: 2954.35 | J161: 2983.70 | K161: 2925 | L161: 2846.25 | M161: 0.88135
A162: 152 | B162: EXIDEIND | C162: 326.15 | D162: 327.00 | E162: 324.15 | F162: 322.15 | G162: 319.30 | H162: 329.00 | I162: 331.85 | J162: 333.85 | K162: 329.85 | L162: 325 | M162: 7.69796
A163: 153 | B163: FDC | C163: 456.25 | D163: 464.58 | E163: 444.17 | F163: 432.08 | G163: 411.67 | H163: 476.67 | I163: 497.08 | J163: 509.17 | K163: 485 | L163: 452.5 | M163: 5.77064
A164: 154 | B164: NYKAA | C164: 153.1 | D164: 153.03 | E164: 152.07 | F164: 151.03 | G164: 150.07 | H164: 154.07 | I164: 155.03 | J164: 156.07 | K164: 154 | L164: 152 | M164: 18.72216
A165: 155 | B165: FEDERALBNK | C165: 154.2 | D165: 153.33 | E165: 151.92 | F165: 149.63 | G165: 148.22 | H165: 155.62 | I165: 157.03 | J165: 159.32 | K165: 154.75 | L165: 151.05 | M165: 155.04425
A166: 156 | B166: FACT | C166: 772.25 | D166: 775.23 | E166: 764.02 | F166: 755.78 | G166: 744.57 | H166: 783.47 | I166: 794.68 | J166: 802.92 | K166: 786.45 | L166: 767 | M166: 2.71659
A167: 157 | B167: FINEORG | C167: 4293.3 | D167: 4301.42 | E167: 4272.88 | F167: 4252.47 | G167: 4223.93 | H167: 4321.83 | I167: 4350.37 | J167: 4370.78 | K167: 4329.95 | L167: 4281 | M167: 0.13762
A168: 158 | B168: FINCABLES | C168: 953.4 | D168: 957.12 | E168: 939.83 | F168: 926.27 | G168: 908.98 | H168: 970.68 | I168: 987.97 | J168: 1001.53 | K168: 974.4 | L168: 943.55 | M168: 1.96451
A169: 159 | B169: FINPIPE | C169: 219.6 | D169: 220.05 | E169: 215.30 | F169: 211.00 | G169: 206.25 | H169: 224.35 | I169: 229.10 | J169: 233.40 | K169: 224.8 | L169: 215.75 | M169: 14.31381
A170: 160 | B170: FSL | C170: 206.95 | D170: 206.85 | E170: 204.30 | F170: 201.65 | G170: 199.10 | H170: 209.50 | I170: 212.05 | J170: 214.70 | K170: 209.4 | L170: 204.2 | M170: 17.76909
A171: 161 | B171: FIVESTAR | C171: 721.65 | D171: 717.22 | E171: 705.53 | F171: 689.42 | G171: 677.73 | H171: 733.33 | I171: 745.02 | J171: 761.13 | K171: 728.9 | L171: 701.1 | M171: 5.55964
A172: 162 | B172: FORTIS | C172: 429.05 | D172: 430.52 | E172: 423.48 | F172: 417.92 | G172: 410.88 | H172: 436.08 | I172: 443.12 | J172: 448.68 | K172: 437.55 | L172: 424.95 | M172: 14.10739
A173: 163 | B173: GRINFRA | C173: 1274.55 | D173: 1270.85 | E173: 1241.70 | F173: 1208.85 | G173: 1179.70 | H173: 1303.70 | I173: 1332.85 | J173: 1365.70 | K173: 1300 | L173: 1238 | M173: 3.93665
A174: 164 | B174: GAIL | C174: 180.5 | D174: 180.87 | E174: 178.48 | F174: 176.47 | G174: 174.08 | H174: 182.88 | I174: 185.27 | J174: 187.28 | K174: 183.25 | L174: 178.85 | M174: 94.86385
A175: 165 | B175: GMMPFAUDLR | C175: 1343.7 | D175: 1343.87 | E175: 1337.83 | F175: 1331.97 | G175: 1325.93 | H175: 1349.73 | I175: 1355.77 | J175: 1361.63 | K175: 1349.9 | L175: 1338 | M175: 1.20926
A176: 166 | B176: GMRINFRA | C176: 85.75 | D176: 86.52 | E176: 84.63 | F176: 83.52 | G176: 81.63 | H176: 87.63 | I176: 89.52 | J176: 90.63 | K176: 88.4 | L176: 85.4 | M176: 754.27795
A177: 167 | B177: GALAXYSURF | C177: 2442.3 | D177: 2448.40 | E177: 2429.80 | F177: 2417.30 | G177: 2398.70 | H177: 2460.90 | I177: 2479.50 | J177: 2492.00 | K177: 2467 | L177: 2435.9 | M177: 0.09588
A178: 168 | B178: GICRE | C178: 407.5 | D178: 411.77 | E178: 399.13 | F178: 390.77 | G178: 378.13 | H178: 420.13 | I178: 432.77 | J178: 441.13 | K178: 424.4 | L178: 403.4 | M178: 40.23111
A179: 169 | B179: GILLETTE | C179: 6417.65 | D179: 6429.85 | E179: 6369.30 | F179: 6320.95 | G179: 6260.40 | H179: 6478.20 | I179: 6538.75 | J179: 6587.10 | K179: 6490.4 | L179: 6381.5 | M179: 0.10157
A180: 170 | B180: GLAND | C180: 1821.95 | D180: 1827.53 | E180: 1792.42 | F180: 1762.88 | G180: 1727.77 | H180: 1857.07 | I180: 1892.18 | J180: 1921.72 | K180: 1862.65 | L180: 1798 | M180: 2.69905
A181: 171 | B181: GLAXO | C181: 2167.6 | D181: 2173.02 | E181: 2146.88 | F181: 2126.17 | G181: 2100.03 | H181: 2193.73 | I181: 2219.87 | J181: 2240.58 | K181: 2199.15 | L181: 2152.3 | M181: 1.22017
A182: 172 | B182: GLS | C182: 888.3 | D182: 890.12 | E182: 880.23 | F182: 872.17 | G182: 862.28 | H182: 898.18 | I182: 908.07 | J182: 916.13 | K182: 900 | L182: 882.05 | M182: 1.04761
A183: 173 | B183: GLENMARK | C183: 927.65 | D183: 927.75 | E183: 918.00 | F183: 908.35 | G183: 898.60 | H183: 937.40 | I183: 947.15 | J183: 956.80 | K183: 937.5 | L183: 918.1 | M183: 8.04309
A184: 174 | B184: MEDANTA | C184: 1442.6 | D184: 1452.90 | E184: 1410.80 | F184: 1379.00 | G184: 1336.90 | H184: 1484.70 | I184: 1526.80 | J184: 1558.60 | K184: 1495 | L184: 1421.1 | M184: 3.35266
A185: 175 | B185: GOCOLORS | C185: 1137.2 | D185: 1137.02 | E185: 1131.28 | F185: 1125.37 | G185: 1119.63 | H185: 1142.93 | I185: 1148.67 | J185: 1154.58 | K185: 1142.75 | L185: 1131.1 | M185: 0.11839
A186: 176 | B186: GPIL | C186: 735.7 | D186: 748.88 | E186: 717.92 | F186: 700.13 | G186: 669.17 | H186: 766.67 | I186: 797.63 | J186: 815.42 | K186: 779.85 | L186: 731.1 | M186: 4.53854
A187: 177 | B187: GODFRYPHLP | C187: 2808.65 | D187: 2810.08 | E187: 2785.17 | F187: 2761.68 | G187: 2736.77 | H187: 2833.57 | I187: 2858.48 | J187: 2881.97 | K187: 2835 | L187: 2786.6 | M187: 0.29908
A188: 178 | B188: GODREJCP | C188: 1266.05 | D188: 1259.18 | E188: 1248.37 | F188: 1230.68 | G188: 1219.87 | H188: 1276.87 | I188: 1287.68 | J188: 1305.37 | K188: 1270 | L188: 1241.5 | M188: 8.71412
A189: 179 | B189: GODREJIND | C189: 815.4 | D189: 811.10 | E189: 802.30 | F189: 789.20 | G189: 780.40 | H189: 824.20 | I189: 833.00 | J189: 846.10 | K189: 819.9 | L189: 798 | M189: 1.273
A190: 180 | B190: GODREJPROP | C190: 2493.05 | D190: 2489.22 | E190: 2464.58 | F190: 2436.12 | G190: 2411.48 | H190: 2517.68 | I190: 2542.32 | J190: 2570.78 | K190: 2513.85 | L190: 2460.75 | M190: 7.77249
A191: 181 | B191: GRANULES | C191: 468.1 | D191: 469.32 | E191: 463.63 | F191: 459.17 | G191: 453.48 | H191: 473.78 | I191: 479.47 | J191: 483.93 | K191: 475 | L191: 464.85 | M191: 12.41617
A192: 182 | B192: GRAPHITE | C192: 599.45 | D192: 602.35 | E192: 590.10 | F192: 580.75 | G192: 568.50 | H192: 611.70 | I192: 623.95 | J192: 633.30 | K192: 614.6 | L192: 593 | M192: 15.99956
A193: 183 | B193: GRASIM | C193: 2204.8 | D193: 2203.00 | E193: 2192.00 | F193: 2179.20 | G193: 2168.20 | H193: 2215.80 | I193: 2226.80 | J193: 2239.60 | K193: 2214 | L193: 2190.2 | M193: 6.74507
A194: 184 | B194: GESHIP | C194: 951.35 | D194: 954.68 | E194: 941.67 | F194: 931.98 | G194: 918.97 | H194: 964.37 | I194: 977.38 | J194: 987.07 | K194: 967.7 | L194: 945 | M194: 1.76944
A195: 185 | B195: GRINDWELL | C195: 2174.5 | D195: 2174.83 | E195: 2153.67 | F195: 2132.83 | G195: 2111.67 | H195: 2195.67 | I195: 2216.83 | J195: 2237.67 | K195: 2196 | L195: 2154 | M195: 0.64108
A196: 186 | B196: GUJALKALI | C196: 814.65 | D196: 816.87 | E196: 805.78 | F196: 796.92 | G196: 785.83 | H196: 825.73 | I196: 836.82 | J196: 845.68 | K196: 827.95 | L196: 808 | M196: 0.92065
A197: 187 | B197: GAEL | C197: 409.2 | D197: 410.95 | E197: 404.00 | F197: 398.80 | G197: 391.85 | H197: 416.15 | I197: 423.10 | J197: 428.30 | K197: 417.9 | L197: 405.75 | M197: 5.05912
A198: 188 | B198: FLUOROCHEM | C198: 3683.85 | D198: 3698.95 | E198: 3646.90 | F198: 3609.95 | G198: 3557.90 | H198: 3735.90 | I198: 3787.95 | J198: 3824.90 | K198: 3751 | L198: 3662 | M198: 0.94634
A199: 189 | B199: GUJGASLTD | C199: 558.3 | D199: 562.72 | E199: 552.58 | F199: 546.87 | G199: 536.73 | H199: 568.43 | I199: 578.57 | J199: 584.28 | K199: 572.85 | L199: 557 | M199: 5.90652
A200: 190 | B200: GNFC | C200: 666.25 | D200: 672.23 | E200: 657.87 | F200: 649.48 | G200: 635.12 | H200: 680.62 | I200: 694.98 | J200: 703.37 | K200: 686.6 | L200: 663.85 | M200: 7.9864
A201: 191 | B201: GPPL | C201: 209.8 | D201: 207.73 | E201: 202.97 | F201: 196.13 | G201: 191.37 | H201: 214.57 | I201: 219.33 | J201: 226.17 | K201: 212.5 | L201: 200.9 | M201: 72.58329
A202: 192 | B202: GSFC | C202: 222.75 | D202: 223.93 | E202: 220.52 | F202: 218.28 | G202: 214.87 | H202: 226.17 | I202: 229.58 | J202: 231.82 | K202: 227.35 | L202: 221.7 | M202: 35.75833
A203: 193 | B203: GSPL | C203: 363.9 | D203: 364.32 | E203: 360.63 | F203: 357.37 | G203: 353.68 | H203: 367.58 | I203: 371.27 | J203: 374.53 | K203: 368 | L203: 361.05 | M203: 5.7891
A204: 194 | B204: HEG | C204: 1677.35 | D204: 1680.82 | E204: 1661.68 | F204: 1646.02 | G204: 1626.88 | H204: 1696.48 | I204: 1715.62 | J204: 1731.28 | K204: 1699.95 | L204: 1665.15 | M204: 1.47977
A205: 195 | B205: HCLTECH | C205: 1658.8 | D205: 1660.07 | E205: 1646.73 | F205: 1634.67 | G205: 1621.33 | H205: 1672.13 | I205: 1685.47 | J205: 1697.53 | K205: 1673.4 | L205: 1648 | M205: 20.4942
A206: 196 | B206: HDFCAMC | C206: 3903.85 | D206: 3943.82 | E206: 3821.13 | F206: 3738.42 | G206: 3615.73 | H206: 4026.53 | I206: 4149.22 | J206: 4231.93 | K206: 4066.5 | L206: 3861.1 | M206: 14.3951
... 319 more rows

Sheet Bulk Deals
E6: Back To Main Page
A7: Subject : | B7: BULK DEAL | D7: =Main!B10 -> 2024-02-28
A9: Date | B9: Scrip code | C9: Scrip Name | D9: Client Name | E9: Buy / Sell | F9: Quantity Traded | G9: Trade Price / Wt.Avg.trade price | H9: Exchange
A10: 2024-02-27 | B10: 513119 | C10: ABCGAS | D10: SYAMALPRASAD DWARKAPRASAD SHOREWALA | E10: SELL | F10: 21,633 | G10: 55.65 | H10: BSE
A11: 2024-02-27 | B11: 543269 | C11: ADJIA | D11: SHRENI SHARES LTD | E11: BUY | F11: 3,200 | G11: 33 | H11: BSE
A12: 2024-02-27 | B12: 543269 | C12: ADJIA | D12: SHRENI SHARES LTD | E12: SELL | F12: 4,800 | G12: 34.67 | H12: BSE
A13: 2024-02-27 | B13: 539277 | C13: ALSTONE | D13: SAHASTRAA ADVISORS PRIVATE LIMITED | E13: SELL | F13: 19,361,935 | G13: 0.93 | H13: BSE
A14: 2024-02-27 | B14: 539277 | C14: ALSTONE | D14: MANSI SHARE & STOCK ADVISORS PRIVATE LIMITED | E14: SELL | F14: 7,000,000 | G14: 0.94 | H14: BSE
A15: 2024-02-27 | B15: 539277 | C15: ALSTONE | D15: SAHASTRAA ADVISORS PRIVATE LIMITED | E15: BUY | F15: 7,753,780 | G15: 0.92 | H15: BSE
A16: 2024-02-27 | B16: 531381 | C16: ARIHANT | D16: GLOBALWORTH SECURITIES LIMITED | E16: BUY | F16: 23,887 | G16: 131.9 | H16: BSE
A17: 2024-02-27 | B17: 531381 | C17: ARIHANT | D17: GLOBALWORTH SECURITIES LIMITED | E17: SELL | F17: 43,036 | G17: 130.51 | H17: BSE
A18: 2024-02-27 | B18: 522005 | C18: AUSTENG | D18: MALLIKARJUN YADAV GADDAM | E18: BUY | F18: 26,150 | G18: 223.57 | H18: BSE
A19: 2024-02-27 | B19: 539662 | C19: BFLAFL | D19: PARUL PALIWAL | E19: SELL | F19: 54,381 | G19: 23.85 | H19: BSE
A20: 2024-02-27 | B20: 539662 | C20: BFLAFL | D20: PARUL PALIWAL | E20: BUY | F20: 54,381 | G20: 23.67 | H20: BSE
A21: 2024-02-27 | B21: 539662 | C21: BFLAFL | D21: SANJAY SHARMA | E21: BUY | F21: 111,380 | G21: 24.48 | H21: BSE
A22: 2024-02-27 | B22: 530249 | C22: BRIDGESE | D22: HARSHAD AMRUTLAL PANCHAL | E22: BUY | F22: 17,487 | G22: 19.91 | H22: BSE
A23: 2024-02-27 | B23: 526546 | C23: CHOKSILA | D23: RADHIKA RASTOGI | E23: BUY | F23: 36,192 | G23: 60.6 | H23: BSE
A24: 2024-02-27 | B24: 543441 | C24: CMSINFO | D24: SOCIETE GENERALE | E24: BUY | F24: 790,833 | G24: 370.05 | H24: BSE
A25: 2024-02-27 | B25: 543441 | C25: CMSINFO | D25: MATHEW CYRIAC | E25: BUY | F25: 1,282,000 | G25: 370.67 | H25: BSE
A26: 2024-02-27 | B26: 543441 | C26: CMSINFO | D26: IIFL SECURITIES LIMITED ERROR ACCOUNT | E26: BUY | F26: 1,216,050 | G26: 370.05 | H26: BSE
A27: 2024-02-27 | B27: 543441 | C27: CMSINFO | D27: MORGAN STANLEY ASIA SINGAPORE PTE | E27: BUY | F27: 869,145 | G27: 370.05 | H27: BSE
A28: 2024-02-27 | B28: 543441 | C28: CMSINFO | D28: SION INVESTMENT HOLDINGS PTE. LIMITED | E28: SELL | F28: 41,771,975 | G28: 370.38 | H28: BSE
A29: 2024-02-27 | B29: 543441 | C29: CMSINFO | D29: SANATAN FINANCIAL ADVISORY SERVICES PRIVATE LIMITED | E29: SELL | F29: 300,000 | G29: 393.93 | H29: BSE
A30: 2024-02-27 | B30: 543441 | C30: CMSINFO | D30: SANATAN FINANCIAL ADVISORY SERVICES PRIVATE LIMITED | E30: BUY | F30: 1,000,000 | G30: 375.5 | H30: BSE
A31: 2024-02-27 | B31: 543441 | C31: CMSINFO | D31: THINK INDIA OPPORTUNITIES MASTER FUND LP | E31: BUY | F31: 1,381,667 | G31: 370.05 | H31: BSE
A32: 2024-02-27 | B32: 543441 | C32: CMSINFO | D32: WF ASIAN RECONNAISSANCE FUND LTD | E32: BUY | F32: 2,625,167 | G32: 370.05 | H32: BSE
A33: 2024-02-27 | B33: 543441 | C33: CMSINFO | D33: INDIA ACORN ICAV | E33: BUY | F33: 1,039,700 | G33: 370.05 | H33: BSE
A34: 2024-02-27 | B34: 543441 | C34: CMSINFO | D34: ABU DHABI INVESTMENT AUTHORITY - WAY | E34: BUY | F34: 846,560 | G34: 370.05 | H34: BSE
A35: 2024-02-27 | B35: 543441 | C35: CMSINFO | D35: NOMURA FUNDS IRELAND PUBLIC LTD COINDIA EQUITY FUND | E35: BUY | F35: 4,310,617 | G35: 370.05 | H35: BSE
A36: 2024-02-27 | B36: 543441 | C36: CMSINFO | D36: AIG GLOBAL INVESTMENT CORPORATION (ASIA) A/C AIG GLOBAL FUNDS-AIG INDIA EQ | E36: BUY | F36: 1,250,000 | G36: 370.05 | H36: BSE
A37: 2024-02-27 | B37: 543441 | C37: CMSINFO | D37: ICICI PRUDENTIAL MUTUAL FUND | E37: BUY | F37: 1,500,000 | G37: 370.05 | H37: BSE
A38: 2024-02-27 | B38: 543441 | C38: CMSINFO | D38: ICICI PRUDENTIAL MUTUAL FUND | E38: BUY | F38: 1,216,947 | G38: 370.05 | H38: BSE
A39: 2024-02-27 | B39: 543441 | C39: CMSINFO | D39: ICICI PRUDENTIAL MUTUAL FUND | E39: BUY | F39: 946,514 | G39: 370.05 | H39: BSE
A40: 2024-02-27 | B40: 543441 | C40: CMSINFO | D40: ICICI PRUDENTIAL MUTUAL FUND | E40: BUY | F40: 1,947,116 | G40: 370.05 | H40: BSE
A41: 2024-02-27 | B41: 543441 | C41: CMSINFO | D41: KOTAK MAHINDRA MUTUAL FUND A/C - KOTAK SMALL CAP FUND | E41: BUY | F41: 3,625,712 | G41: 370.05 | H41: BSE
A42: 2024-02-27 | B42: 543921 | C42: COMRADE | D42: DIPTI KRUNAL MAHESHWARI | E42: SELL | F42: 53,000 | G42: 122.02 | H42: BSE
A43: 2024-02-27 | B43: 512379 | C43: CRESSAN | D43: NACIO MULTI TRADERS LLP | E43: BUY | F43: 2,629,755 | G43: 22.64 | H43: BSE
A44: 2024-02-27 | B44: 512379 | C44: CRESSAN | D44: NACIO MULTI TRADERS LLP | E44: SELL | F44: 347,925 | G44: 22.45 | H44: BSE
A45: 2024-02-27 | B45: 512441 | C45: ENBETRD | D45: MANSI SHARE & STOCK ADVISORS PRIVATE LIMITED | E45: SELL | F45: 200,000 | G45: 15.31 | H45: BSE
A46: 2024-02-27 | B46: 512441 | C46: ENBETRD | D46: NILESH TRIMBAK HINGE | E46: BUY | F46: 97,300 | G46: 15.31 | H46: BSE
A47: 2024-02-27 | B47: 540190 | C47: FRANKLININD | D47: MULTIPLIER SHARE & STOCK ADVISORS PRIVATE LIMITED | E47: SELL | F47: 418,000 | G47: 8.09 | H47: BSE
A48: 2024-02-27 | B48: 531911 | C48: GALAGEX | D48: MANUBHAI AMRUTLAL SHAH | E48: SELL | F48: 23,146 | G48: 48.54 | H48: BSE
A49: 2024-02-27 | B49: 512443 | C49: GANONPRO | D49: URVASHI UMESHBHAI PATEL | E49: BUY | F49: 60,134 | G49: 11.79 | H49: BSE
A50: 2024-02-27 | B50: 512443 | C50: GANONPRO | D50: URVASHI UMESHBHAI PATEL | E50: SELL | F50: 27,907 | G50: 11.41 | H50: BSE
A51: 2024-02-27 | B51: 540716 | C51: ICICIGI | D51: BHARTI ENTERPRISES LIMITED | E51: SELL | F51: 6,250,900 | G51: 1666.35 | H51: BSE
A52: 2024-02-27 | B52: 540716 | C52: ICICIGI | D52: ICICI BANK LIMITED | E52: BUY | F52: 6,982,852 | G52: 1666.35 | H52: BSE
A53: 2024-02-27 | B53: 543806 | C53: ITCONS | D53: YUGA STOCKS AND COMMODITIES PRIVATE LIMITED . | E53: SELL | F53: 26,000 | G53: 69.85 | H53: BSE
A54: 2024-02-27 | B54: 521238 | C54: KDL | D54: AMEE TUSHAR SHAH | E54: SELL | F54: 5,430 | G54: 104.63 | H54: BSE
A55: 2024-02-27 | B55: 521238 | C55: KDL | D55: SHEKHAR RAMESHCHANDRA VORA | E55: SELL | F55: 7,670 | G55: 104.63 | H55: BSE
A56: 2024-02-27 | B56: 521238 | C56: KDL | D56: SHOBHABEN MANSUKHBHAI BHUT | E56: BUY | F56: 40,898 | G56: 104.63 | H56: BSE
A57: 2024-02-27 | B57: 521238 | C57: KDL | D57: SURESHKUMAR GHORDHANDAS PATEL | E57: SELL | F57: 10,960 | G57: 104.63 | H57: BSE
A58: 2024-02-27 | B58: 521238 | C58: KDL | D58: HEMALBEN SANJAY SHAH | E58: SELL | F58: 6,615 | G58: 104.63 | H58: BSE
A59: 2024-02-27 | B59: 521238 | C59: KDL | D59: NISHIL FINANCIAL ADVISORS LLP . | E59: SELL | F59: 2,926 | G59: 104.63 | H59: BSE
A60: 2024-02-27 | B60: 521238 | C60: KDL | D60: TUSHAR SHASHIKANT SHAH | E60: SELL | F60: 4,010 | G60: 104.63 | H60: BSE
A61: 2024-02-27 | B61: 521238 | C61: KDL | D61: ARUNABEN VINODCHANDRA DHANDHARA | E61: SELL | F61: 10,325 | G61: 104.63 | H61: BSE
A62: 2024-02-27 | B62: 521238 | C62: KDL | D62: SANJAYKUMAR SEVANTILAL SHAH | E62: SELL | F62: 5,440 | G62: 104.63 | H62: BSE
A63: 2024-02-27 | B63: 521238 | C63: KDL | D63: KANTA DEVI SAMDARIA | E63: BUY | F63: 3,000 | G63: 104.63 | H63: BSE
A64: 2024-02-27 | B64: 505523 | C64: MAHACORP | D64: NIKHIL RAJESH SINGH | E64: BUY | F64: 3,622,703 | G64: 1.57 | H64: BSE
A65: 2024-02-27 | B65: 505523 | C65: MAHACORP | D65: MAHADEV MANUBHAI MAKVANA | E65: BUY | F65: 9,438,075 | G65: 1.57 | H65: BSE
A66: 2024-02-27 | B66: 505523 | C66: MAHACORP | D66: BHAVYA DHIMAN | E66: SELL | F66: 5,000,000 | G66: 1.57 | H66: BSE
A67: 2024-02-27 | B67: 505523 | C67: MAHACORP | D67: NIKHIL RAJESH SINGH | E67: SELL | F67: 4,051,211 | G67: 1.57 | H67: BSE
A68: 2024-02-27 | B68: 505523 | C68: MAHACORP | D68: MAHADEV MANUBHAI MAKVANA | E68: SELL | F68: 9,438,075 | G68: 1.57 | H68: BSE
A69: 2024-02-27 | B69: 505523 | C69: MAHACORP | D69: DIPAK MATHURBHAI SALVI | E69: SELL | F69: 6,433,151 | G69: 1.57 | H69: BSE
A70: 2024-02-27 | B70: 538895 | C70: MIHIKA | D70: THAKOR HANSABEN | E70: BUY | F70: 88,888 | G70: 25.75 | H70: BSE
A71: 2024-02-27 | B71: 538895 | C71: MIHIKA | D71: CHIRAG BHIKHALAL SHAH | E71: BUY | F71: 80,571 | G71: 25.75 | H71: BSE
A72: 2024-02-27 | B72: 539402 | C72: NAKSH | D72: APARNA SAMEER GIRI | E72: BUY | F72: 54,990 | G72: 14.99 | H72: BSE
A73: 2024-02-27 | B73: 531834 | C73: NATHUEC | D73: HAL CLYDE DENISON LIMITED | E73: SELL | F73: 24,690 | G73: 7.6 | H73: BSE
A74: 2024-02-27 | B74: 530557 | C74: NCLRESE | D74: VIBRANT SECURITIES PRIVATE LIMITED | E74: SELL | F74: 5,580,512 | G74: 0.84 | H74: BSE
A75: 2024-02-27 | B75: 530557 | C75: NCLRESE | D75: VIBRANT SECURITIES PRIVATE LIMITED | E75: BUY | F75: 4,477,111 | G75: 0.84 | H75: BSE
A76: 2024-02-27 | B76: 540198 | C76: OSIAJEE | D76: NAVRAAV ELECTRO LIMITED | E76: BUY | F76: 28,740 | G76: 34.9 | H76: BSE
A77: 2024-02-27 | B77: 540198 | C77: OSIAJEE | D77: NIDHI SOOD | E77: SELL | F77: 30,000 | G77: 34.92 | H77: BSE
A78: 2024-02-27 | B78: 531280 | C78: PANKAJPO | D78: PAPITA NANDI | E78: BUY | F78: 43,167 | G78: 9.04 | H78: BSE
A79: 2024-02-27 | B79: 531280 | C79: PANKAJPO | D79: PAPITA NANDI | E79: SELL | F79: 10 | G79: 8.7 | H79: BSE
A80: 2024-02-27 | B80: 530095 | C80: PRADHIN | D80: GUJARAT TOOLROOM LIMITED | E80: BUY | F80: 63,500 | G80: 55.05 | H80: BSE
A81: 2024-02-27 | B81: 530095 | C81: PRADHIN | D81: AJAY CHAUDHARI | E81: SELL | F81: 63,500 | G81: 55.05 | H81: BSE
A82: 2024-02-27 | B82: 526773 | C82: PRESSURS | D82: MULTIPLIER SHARE & STOCK ADVISORS PRIVATE LIMITED | E82: SELL | F82: 1,777,861 | G82: 12.44 | H82: BSE
A83: 2024-02-27 | B83: 526773 | C83: PRESSURS | D83: MULTIPLIER SHARE & STOCK ADVISORS PRIVATE LIMITED | E83: BUY | F83: 1,000,000 | G83: 12.44 | H83: BSE
A84: 2024-02-27 | B84: 526773 | C84: PRESSURS | D84: BIJAL KIRAN PATEL | E84: SELL | F84: 844,500 | G84: 12.44 | H84: BSE
A85: 2024-02-27 | B85: 526773 | C85: PRESSURS | D85: TOPGAIN FINANCE PRIVATE LIMITED | E85: BUY | F85: 1,255,974 | G85: 12.42 | H85: BSE
A86: 2024-02-27 | B86: 526773 | C86: PRESSURS | D86: TOPGAIN FINANCE PRIVATE LIMITED | E86: SELL | F86: 1,255,974 | G86: 12.44 | H86: BSE
A87: 2024-02-27 | B87: 538452 | C87: QUASAR | D87: MADHESWARAN | E87: SELL | F87: 30,472 | G87: 16.79 | H87: BSE
A88: 2024-02-27 | B88: 541703 | C88: RACONTEUR | D88: PRAVINBHAI MANCHHUBHAI PATEL | E88: SELL | F88: 14,400 | G88: 26.58 | H88: BSE
A89: 2024-02-27 | B89: 541703 | C89: RACONTEUR | D89: PRAVINBHAI MANCHHUBHAI PATEL | E89: BUY | F89: 16,000 | G89: 25.9 | H89: BSE
A90: 2024-02-27 | B90: 541703 | C90: RACONTEUR | D90: ANNAYA MANAGEMENT CONSULTANCY PRIVATE LIMITED . | E90: SELL | F90: 126,400 | G90: 27.14 | H90: BSE
A91: 2024-02-27 | B91: 541703 | C91: RACONTEUR | D91: ANILKUMAR | E91: BUY | F91: 57,600 | G91: 27.47 | H91: BSE
A92: 2024-02-27 | B92: 541601 | C92: RAJNISH | D92: NACIO MULTI TRADERS LLP | E92: SELL | F92: 5,938,396 | G92: 10.01 | H92: BSE
A93: 2024-02-27 | B93: 541601 | C93: RAJNISH | D93: NACIO MULTI TRADERS LLP | E93: BUY | F93: 777,376 | G93: 10.08 | H93: BSE
A94: 2024-02-27 | B94: 539435 | C94: RFSL | D94: AMIT SINGH | E94: SELL | F94: 20,000 | G94: 29.62 | H94: BSE
A95: 2024-02-27 | B95: 539435 | C95: RFSL | D95: MULTIPLIER SHARE & STOCK ADVISORS PRIVATE LIMITED | E95: BUY | F95: 20,000 | G95: 29.62 | H95: BSE
A96: 2024-02-27 | B96: 539669 | C96: RGF | D96: KARVA AUTOMART LIMITED | E96: SELL | F96: 887,834 | G96: 0.76 | H96: BSE
A97: 2024-02-27 | B97: 539669 | C97: RGF | D97: SUDIP AMAR BHATTACHARYA | E97: BUY | F97: 1,100,000 | G97: 0.75 | H97: BSE
A98: 2024-02-27 | B98: 519191 | C98: RGRL | D98: ABHISHEK BANERJEE | E98: BUY | F98: 54,500 | G98: 11.92 | H98: BSE
A99: 2024-02-27 | B99: 519191 | C99: RGRL | D99: SANJAY ARUNKUMAR CHOKSI | E99: SELL | F99: 110,000 | G99: 11.92 | H99: BSE
A100: 2024-02-27 | B100: 519191 | C100: RGRL | D100: HEMA JAYPRAKASH BHAVSAR | E100: BUY | F100: 120,000 | G100: 11.92 | H100: BSE
A101: 2024-02-27 | B101: 530251 | C101: RISAINTL | D101: MANISH GYANDCHAND MEHTA | E101: SELL | F101: 1,480,261 | G101: 0.64 | H101: BSE
A102: 2024-02-27 | B102: 530251 | C102: RISAINTL | D102: MANJUDEVIMEENA | E102: BUY | F102: 810,000 | G102: 0.64 | H102: BSE
A103: 2024-02-27 | B103: 532699 | C103: ROHLTD | D103: THE JUPITER GLOBAL FUND-JUPITER INDIA SELECT | E103: BUY | F103: 183,116 | G103: 413.6 | H103: BSE
A104: 2024-02-27 | B104: 532699 | C104: ROHLTD | D104: JUPITER SOUTH ASIA INVESTMENT COMPANY LIMITED | E104: SELL | F104: 183,116 | G104: 413.6 | H104: BSE
A105: 2024-02-27 | B105: 540072 | C105: SHIVAEXPO | D105: LAXMI GUPTA | E105: SELL | F105: 70,000 | G105: 10.2 | H105: BSE
A106: 2024-02-27 | B106: 540072 | C106: SHIVAEXPO | D106: PROFITOUS CAPITAL MARKETS PRIVATE LIMITED | E106: SELL | F106: 80,000 | G106: 10.2 | H106: BSE
A107: 2024-02-27 | B107: 540072 | C107: SHIVAEXPO | D107: BASAVARAJ CHANNAPPA MAHASHETTI | E107: SELL | F107: 290,000 | G107: 10.19 | H107: BSE
A108: 2024-02-27 | B108: 538975 | C108: SHREESEC | D108: HARPREET SINGH GREWAL | E108: SELL | F108: 4,430,419 | G108: 0.39 | H108: BSE
A109: 2024-02-27 | B109: 538975 | C109: SHREESEC | D109: FABER TREXIM PRIVATE LIMITED | E109: SELL | F109: 5,800,000 | G109: 0.39 | H109: BSE
A110: 2024-02-27 | B110: 538975 | C110: SHREESEC | D110: HARPREET SINGH GREWAL | E110: SELL | F110: 4,470,419 | G110: 0.39 | H110: BSE
A111: 2024-02-27 | B111: 540079 | C111: SPRAYKING | D111: BLACKBERRY SAREES PRIVATE LIMITED | E111: SELL | F111: 55,000 | G111: 269 | H111: BSE
A112: 2024-02-27 | B112: 540079 | C112: SPRAYKING | D112: GEMZAR ENTERPRISES PRIVATE LIMITED | E112: SELL | F112: 55,000 | G112: 269 | H112: BSE
A113: 2024-02-27 | B113: 540079 | C113: SPRAYKING | D113: SANJAY POPATLAL JAIN | E113: SELL | F113: 113,467 | G113: 268.81 | H113: BSE
A114: 2024-02-27 | B114: 530565 | C114: SSLFINANCE | D114: MULTIPLIER SHARE & STOCK ADVISORS PRIVATE LIMITED | E114: SELL | F114: 38,138 | G114: 128.84 | H114: BSE
A115: 2024-02-27 | B115: 539310 | C115: THINKINK | D115: NIKHIL RAJESH SINGH | E115: SELL | F115: 252,768 | G115: 78.16 | H115: BSE
A116: 2024-02-27 | B116: 539310 | C116: THINKINK | D116: NIKHIL RAJESH SINGH | E116: SELL | F116: 267,838 | G116: 76.75 | H116: BSE
A117: 2024-02-27 | B117: 533629 | C117: TIJARIA | D117: MULTIPLIER SHARE & STOCK ADVISORS PRIVATE LIMITED | E117: SELL | F117: 500,263 | G117: 9.95 | H117: BSE
A118: 2024-02-27 | B118: 533629 | C118: TIJARIA | D118: VISHAL BIPINCHANDRA DOSHI | E118: SELL | F118: 200,000 | G118: 10.05 | H118: BSE
A119: 2024-02-27 | B119: 533629 | C119: TIJARIA | D119: VISHAL BIPINCHANDRA DOSHI | E119: SELL | F119: 100,002 | G119: 10.04 | H119: BSE
A120: 2024-02-27 | B120: 533629 | C120: TIJARIA | D120: RAMAN CHAWLA & SONS (HUF) | E120: SELL | F120: 297,710 | G120: 9.95 | H120: BSE
A121: 2024-02-27 | B121: 533629 | C121: TIJARIA | D121: MAHALAXMI WOOLEN COMPANY PRIVATE LIMITED | E121: SELL | F121: 150,000 | G121: 9.95 | H121: BSE
A122: 2024-02-27 | B122: 533629 | C122: TIJARIA | D122: DB (INTL) OWN TRADING | E122: SELL | F122: 507,627 | G122: 10.04 | H122: BSE
A123: 2024-02-27 | B123: 533629 | C123: TIJARIA | D123: RAMAN CHAWLA & SONS (HUF) | E123: SELL | F123: 38,986 | G123: 9.84 | H123: BSE
A124: 2024-02-27 | B124: 533629 | C124: TIJARIA | D124: MAHALAXMI WOOLEN COMPANY PRIVATE LIMITED | E124: SELL | F124: 6,669 | G124: 9.97 | H124: BSE
A125: 2024-02-27 | B125: 533629 | C125: TIJARIA | D125: DINESH KUMAR HUF | E125: SELL | F125: 300,000 | G125: 10.05 | H125: BSE
A126: 2024-02-27 | B126: 533629 | C126: TIJARIA | D126: GREEN PEAKS ENTERPRISES LLP | E126: SELL | F126: 233,340 | G126: 9.97 | H126: BSE
A127: 2024-02-27 | B127: 533629 | C127: TIJARIA | D127: GREEN PEAKS ENTERPRISES LLP | E127: SELL | F127: 25,156 | G127: 9.76 | H127: BSE
A128: 2024-02-27 | B128: 542923 | C128: TRANWAY | D128: PUSHPA BHAJU | E128: SELL | F128: 60,000 | G128: 8.14 | H128: BSE
A129: 2024-02-27 | B129: 542923 | C129: TRANWAY | D129: SUNIL KUMAR CHHAJER | E129: SELL | F129: 70,000 | G129: 8.17 | H129: BSE
A130: 2024-02-27 | B130: 511523 | C130: VEERHEALTH | D130: DHWAJA SHARES & SECURITIES PVT LTD | E130: SELL | F130: 225,000 | G130: 23.41 | H130: BSE
A131: 2024-02-27 | B131: 511523 | C131: VEERHEALTH | D131: SHUBHAM FINANCIAL SERVICES | E131: SELL | F131: 183,268 | G131: 23.17 | H131: BSE
A132: 2024-02-27 | B132: AARTECH | C132: Aartech Solonics Limited | D132: VEENA RAJESH SHAH | E132: BUY | F132: 60,000 | G132: 160.73 | H132: NSE
A133: 2024-02-27 | B133: AILIMITED | C133: Abhishek Integrations Ltd | D133: SATYA PRAKASH MITTAL | E133: BUY | F133: 36,000 | G133: 40.84 | H133: NSE
A134: 2024-02-27 | B134: AKSHARCHEM | C134: AksharChem India Limited | D134: NK SECURITIES RESEARCH PRIVATE LIMITED | E134: BUY | F134: 44,036 | G134: 354.33 | H134: NSE
A135: 2024-02-27 | B135: AKSHARCHEM | C135: AksharChem India Limited | D135: SILVER LINE VENTURES PRIVATE LIMITED | E135: BUY | F135: 51,598 | G135: 360.25 | H135: NSE
A136: 2024-02-27 | B136: ANTGRAPHIC | C136: Antarctica Graphics Ltd | D136: SHREEDA TECHNOLOGY SERVICES PRIVATE LIMITED | E136: BUY | F136: 950,000 | G136: 1.49 | H136: NSE
A137: 2024-02-27 | B137: ATALREAL | C137: Atal Realtech Limited | D137: SANTOSH SRINIVASULU SIDDAM SETTY | E137: BUY | F137: 529,991 | G137: 15.01 | H137: NSE
A138: 2024-02-27 | B138: ATALREAL | C138: Atal Realtech Limited | D138: KAUSHIK MAHESH WAGHELA | E138: BUY | F138: 706,101 | G138: 16.02 | H138: NSE
A139: 2024-02-27 | B139: AVG | C139: AVG Logistics Limited | D139: GRAVITON RESEARCH CAPITAL LLP | E139: BUY | F139: 60,654 | G139: 628.81 | H139: NSE
A140: 2024-02-27 | B140: AVROIND | C140: AVRO INDIA LIMITED | D140: SUVRIDHI CAPITAL MARKETS LTD | E140: BUY | F140: 62,500 | G140: 166.01 | H140: NSE
A141: 2024-02-27 | B141: BGRENERGY | C141: BGR Energy Systems Ltd | D141: NIKUNJ KAUSHIK SHAH | E141: BUY | F141: 625,010 | G141: 61.69 | H141: NSE
A142: 2024-02-27 | B142: BGRENERGY | C142: BGR Energy Systems Ltd | D142: QE SECURITIES LLP | E142: BUY | F142: 452,855 | G142: 67.17 | H142: NSE
A143: 2024-02-27 | B143: BGRENERGY | C143: BGR Energy Systems Ltd | D143: HRTI PRIVATE LIMITED | E143: BUY | F143: 465,604 | G143: 69.37 | H143: NSE
A144: 2024-02-27 | B144: BGRENERGY | C144: BGR Energy Systems Ltd | D144: SAHASTRAA ADVISORS PRIVATE LIMITED | E144: BUY | F144: 705,417 | G144: 61.55 | H144: NSE
A145: 2024-02-27 | B145: BGRENERGY | C145: BGR Energy Systems Ltd | D145: MANSI SHARE AND STOCK ADVISORS PVT LTD | E145: BUY | F145: 535,510 | G145: 61.54 | H145: NSE
A146: 2024-02-27 | B146: BGRENERGY | C146: BGR Energy Systems Ltd | D146: CITADEL SECURITIES INDIA MARKETS PRIVATE LIMITED | E146: BUY | F146: 880,288 | G146: 67.02 | H146: NSE
A147: 2024-02-27 | B147: BGRENERGY | C147: BGR Energy Systems Ltd | D147: SHARE INDIA SECURITIES LIMITED | E147: BUY | F147: 518,900 | G147: 62 | H147: NSE
A148: 2024-02-27 | B148: BGRENERGY | C148: BGR Energy Systems Ltd | D148: TOPGAIN FINANCE PRIVATE LIMITED | E148: BUY | F148: 641,905 | G148: 62.06 | H148: NSE
A149: 2024-02-27 | B149: BLS | C149: BLS Intl Servs Ltd | D149: COLUMBIA PETRO CHEM PRIVATE LIMITED | E149: BUY | F149: 2,100,000 | G149: 373.1 | H149: NSE
A150: 2024-02-27 | B150: BTML | C150: Bodhi Tree Multimedia Ltd | D150: LEADING LIGHT FUND VCC THE TRIUMPH FUND | E150: BUY | F150: 98,404 | G150: 175 | H150: NSE
A151: 2024-02-27 | B151: CHAVDA | C151: Chavda Infra Limited | D151: TOPGAIN FINANCE PRIVATE LIMITED | E151: BUY | F151: 130,000 | G151: 130.54 | H151: NSE
A152: 2024-02-27 | B152: CMMIPL | C152: CMM Infraprojects Limited | D152: BIMAN BHANJA | E152: BUY | F152: 102,000 | G152: 2.6 | H152: NSE
A153: 2024-02-27 | B153: CMMIPL | C153: CMM Infraprojects Limited | D153: GAURAV CHETANKUMAR MANEK | E153: BUY | F153: 114,000 | G153: 2.6 | H153: NSE
A154: 2024-02-27 | B154: CMSINFO | C154: CMS Info Systems Limited | D154: GRAVITON RESEARCH CAPITAL LLP | E154: BUY | F154: 836,705 | G154: 385.99 | H154: NSE
A155: 2024-02-27 | B155: DEEM | C155: Deem Roll Tech Limited | D155: VINEY EQUITY MARKET LLP | E155: BUY | F155: 50,000 | G155: 194.2 | H155: NSE
A156: 2024-02-27 | B156: DEEM | C156: Deem Roll Tech Limited | D156: MANSI SHARE AND STOCK ADVISORS PVT LTD | E156: BUY | F156: 100,000 | G156: 195.05 | H156: NSE
A157: 2024-02-27 | B157: DEEM | C157: Deem Roll Tech Limited | D157: JAIN SANJAY POPATLAL | E157: BUY | F157: 70,000 | G157: 200 | H157: NSE
A158: 2024-02-27 | B158: EASEMYTRIP | C158: Easy Trip Planners Ltd | D158: HRTI PRIVATE LIMITED | E158: BUY | F158: 9,578,645 | G158: 50.15 | H158: NSE
A159: 2024-02-27 | B159: GSTL | C159: Globesecure Techno Ltd | D159: LATABEN NANDLAL VASAVANI | E159: BUY | F159: 50,000 | G159: 66 | H159: NSE
A160: 2024-02-27 | B160: HEADSUP | C160: Heads UP Ventures Limited | D160: SABALE HARSHAWARDHAN HANMANT | E160: BUY | F160: 200,000 | G160: 17.55 | H160: NSE
A161: 2024-02-27 | B161: IREDA | C161: Indian Renewable Energy | D161: MANSI SHARE AND STOCK ADVISORS PVT LTD | E161: BUY | F161: 16,371,699 | G161: 151.6 | H161: NSE
A162: 2024-02-27 | B162: KELLTONTEC | C162: Kellton Tech Sol Ltd | D162: GRAVITON RESEARCH CAPITAL LLP | E162: BUY | F162: 862,241 | G162: 116.97 | H162: NSE
A163: 2024-02-27 | B163: KELLTONTEC | C163: Kellton Tech Sol Ltd | D163: HRTI PRIVATE LIMITED | E163: BUY | F163: 840,814 | G163: 118.62 | H163: NSE
A164: 2024-02-27 | B164: KELLTONTEC | C164: Kellton Tech Sol Ltd | D164: QE SECURITIES LLP | E164: BUY | F164: 899,211 | G164: 118.63 | H164: NSE
A165: 2024-02-27 | B165: KELLTONTEC | C165: Kellton Tech Sol Ltd | D165: CITADEL SECURITIES INDIA MARKETS PRIVATE LIMITED | E165: BUY | F165: 647,648 | G165: 118.6 | H165: NSE
A166: 2024-02-27 | B166: KNAGRI | C166: KN Agri Resources Limited | D166: YUGA DOSHI | E166: BUY | F166: 140,000 | G166: 144 | H166: NSE
A167: 2024-02-27 | B167: KNAGRI | C167: KN Agri Resources Limited | D167: YUGA STOCKS AND COMMODITIES PRIVATE LIMITED . | E167: BUY | F167: 14,400 | G167: 139.91 | H167: NSE
A168: 2024-02-27 | B168: MOKSH | C168: Moksh Ornaments Limited | D168: NK SECURITIES RESEARCH PRIVATE LIMITED | E168: BUY | F168: 302,906 | G168: 27.98 | H168: NSE
A169: 2024-02-27 | B169: MOKSH | C169: Moksh Ornaments Limited | D169: RAMESH TARSHIBHAI DOBARIYA | E169: BUY | F169: 325,555 | G169: 28 | H169: NSE
A170: 2024-02-27 | B170: MTNL | C170: Maha Tel Nigam Ltd. | D170: HRTI PRIVATE LIMITED | E170: BUY | F170: 1,249,830 | G170: 45.53 | H170: NSE
A171: 2024-02-27 | B171: RAILTEL | C171: Railtel Corp of Ind Ltd | D171: SW CAPITAL PRIVATE LIMITED | E171: BUY | F171: 2,843,379 | G171: 463.96 | H171: NSE
A172: 2024-02-27 | B172: RAILTEL | C172: Railtel Corp of Ind Ltd | D172: QE SECURITIES LLP | E172: BUY | F172: 1,827,568 | G172: 464.89 | H172: NSE
A173: 2024-02-27 | B173: RAILTEL | C173: Railtel Corp of Ind Ltd | D173: GRAVITON RESEARCH CAPITAL LLP | E173: BUY | F173: 2,184,855 | G173: 459.26 | H173: NSE
A174: 2024-02-27 | B174: SABAR | C174: Sabar Flex India Limited | D174: SOMANI VENTURES AND INNOVATIONS LIMITED | E174: BUY | F174: 95,000 | G174: 18.9 | H174: NSE
A175: 2024-02-27 | B175: SOUTHBANK | C175: South Indian Bank Ltd. | D175: HRTI PRIVATE LIMITED | E175: BUY | F175: 12,916,200 | G175: 32.99 | H175: NSE
A176: 2024-02-27 | B176: SUNDARAM | C176: Sundaram Multi Pap Ltd | D176: HI GROWTH CORPORATE SERVICES PVT LTD | E176: BUY | F176: 2,275,238 | G176: 3.44 | H176: NSE
A177: 2024-02-27 | B177: SWANENERGY | C177: Swan Energy Limited | D177: JAINAM BROKING LIMITED | E177: BUY | F177: 2,360,464 | G177: 766.39 | H177: NSE
A178: 2024-02-27 | B178: TARMAT | C178: Tarmat Limited | D178: HRTI PRIVATE LIMITED | E178: BUY | F178: 89,446 | G178: 144.58 | H178: NSE
A179: 2024-02-27 | B179: TARMAT | C179: Tarmat Limited | D179: MUDUPULAVEMULA SURENDRANADHA REDDY | E179: BUY | F179: 147,740 | G179: 145.01 | H179: NSE
A180: 2024-02-27 | B180: TARMAT | C180: Tarmat Limited | D180: JALIYAN COMMODITY | E180: BUY | F180: 157,664 | G180: 146.79 | H180: NSE
A181: 2024-02-27 | B181: TARMAT | C181: Tarmat Limited | D181: QE SECURITIES LLP | E181: BUY | F181: 126,004 | G181: 144.09 | H181: NSE
A182: 2024-02-27 | B182: TIJARIA | C182: Tijaria Polypipes Ltd | D182: RAMAN CHAWLA & SONS (HUF) | E182: BUY | F182: 38,986 | G182: 9.79 | H182: NSE
A183: 2024-02-27 | B183: TIJARIA | C183: Tijaria Polypipes Ltd | D183: SAMEER VASANT MORDE | E183: BUY | F183: 150,363 | G183: 10 | H183: NSE
A184: 2024-02-27 | B184: TIJARIA | C184: Tijaria Polypipes Ltd | D184: MAHALAXMI WOOLEN COMPANY PRIVATE LIMITED | E184: BUY | F184: 6,669 | G184: 9.94 | H184: NSE
A185: 2024-02-27 | B185: TIJARIA | C185: Tijaria Polypipes Ltd | D185: DB INTERNATIONAL STOCK BROKERS LIMITED | E185: BUY | F185: 507,627 | G185: 9.99 | H185: NSE
A186: 2024-02-27 | B186: TIJARIA | C186: Tijaria Polypipes Ltd | D186: GREEN PEAKS ENTERPRISES LLP | E186: BUY | F186: 250,006 | G186: 10 | H186: NSE
A187: 2024-02-27 | B187: TIJARIA | C187: Tijaria Polypipes Ltd | D187: MULTIPLIER SHARE & STOCK ADVISORS PRIVATE LIMITED | E187: BUY | F187: 400,000 | G187: 9.98 | H187: NSE
A188: 2024-02-27 | B188: TIJARIA | C188: Tijaria Polypipes Ltd | D188: DINESH KUMAR HUF | E188: BUY | F188: 300,000 | G188: 10 | H188: NSE
A189: 2024-02-27 | B189: TIJARIA | C189: Tijaria Polypipes Ltd | D189: F3 ADVISORS PRIVATE LIMITED | E189: BUY | F189: 250,000 | G189: 10 | H189: NSE
A190: 2024-02-27 | B190: TIJARIA | C190: Tijaria Polypipes Ltd | D190: RAHUL UPPAL | E190: BUY | F190: 121,643 | G190: 9.88 | H190: NSE
A191: 2024-02-27 | B191: TTL | C191: T T Limited | D191: SILVER LINE VENTURES PRIVATE LIMITED | E191: BUY | F191: 241,772 | G191: 126.96 | H191: NSE
A192: 2024-02-27 | B192: TTL | C192: T T Limited | D192: RAJESH KOLEKAR HUF | E192: BUY | F192: 132,377 | G192: 127.4 | H192: NSE
A193: 2024-02-27 | B193: UMANGDAIRY | C193: Umang Dairies Limited | D193: SILVER LINE VENTURES PRIVATE LIMITED | E193: BUY | F193: 222,751 | G193: 97.5 | H193: NSE
A194: 2024-02-27 | B194: VSTL | C194: Vibhor Steel Tubes Ltd | D194: MANSI SHARE AND STOCK ADVISORS PVT LTD | E194: BUY | F194: 250,000 | G194: 345.4 | H194: NSE
A195: 2024-02-27 | B195: ZENITHDRUG | C195: Zenith Drugs Limited | D195: MULTIPLIER SHARE & STOCK ADVISORS PRIVATE LIMITED | E195: BUY | F195: 304,000 | G195: 106.01 | H195: NSE
A196: 2024-02-27 | B196: AARTECH | C196: Aartech Solonics Limited | D196: VEENA RAJESH SHAH | E196: SELL | F196: 75,000 | G196: 149.09 | H196: NSE
A197: 2024-02-27 | B197: ADROITINFO | C197: Adroit Infotech Limited | D197: EPITOME TRADING AND INVESTMENTS | E197: SELL | F197: 115,000 | G197: 17.45 | H197: NSE
A198: 2024-02-27 | B198: AILIMITED | C198: Abhishek Integrations Ltd | D198: SATYA PRAKASH MITTAL | E198: SELL | F198: 18,000 | G198: 41.75 | H198: NSE
A199: 2024-02-27 | B199: AKSHARCHEM | C199: AksharChem India Limited | D199: NK SECURITIES RESEARCH PRIVATE LIMITED | E199: SELL | F199: 44,036 | G199: 354.74 | H199: NSE
A200: 2024-02-27 | B200: AKSHARCHEM | C200: AksharChem India Limited | D200: SILVER LINE VENTURES PRIVATE LIMITED | E200: SELL | F200: 46,110 | G200: 359.83 | H200: NSE
A201: 2024-02-27 | B201: ANTGRAPHIC | C201: Antarctica Graphics Ltd | D201: JYOTI KUTHARI | E201: SELL | F201: 2,000,000 | G201: 1.55 | H201: NSE
A202: 2024-02-27 | B202: ATALREAL | C202: Atal Realtech Limited | D202: YELLOWSTONE VENTURES LLP | E202: SELL | F202: 800,000 | G202: 15.02 | H202: NSE
A203: 2024-02-27 | B203: AVG | C203: AVG Logistics Limited | D203: ARNOLD HOLDINGS LTD | E203: SELL | F203: 73,736 | G203: 628.46 | H203: NSE
A204: 2024-02-27 | B204: AVG | C204: AVG Logistics Limited | D204: GRAVITON RESEARCH CAPITAL LLP | E204: SELL | F204: 60,654 | G204: 628.57 | H204: NSE
A205: 2024-02-27 | B205: AVROIND | C205: AVRO INDIA LIMITED | D205: SUVRIDHI CAPITAL MARKETS LTD | E205: SELL | F205: 250 | G205: 157.75 | H205: NSE
A206: 2024-02-27 | B206: BGRENERGY | C206: BGR Energy Systems Ltd | D206: NIKUNJ KAUSHIK SHAH | E206: SELL | F206: 535,585 | G206: 61 | H206: NSE
... 50 more rows

Sheet Call Tracker (Equity & F&O)
M5: Back To Main Page
A6: Retail Research Technical Calls & Fundamental Performance Report for the month of February-2024
M7: =Main!B10 -> 2024-02-28
B8: Positional Call
A9: Sr.no | B9: Date | D9: Company | E9: Rec | F9: Rec Price | G9: Stop Loss*** | H9: Call Closed At | I9: Target | J9: Remark | K9: Profit / Loss per Share | L9: All charges | M9: Net Gain / Loss % | N9: Status | O9: Closed Date | P9: Market Closing Price | Q9: Second Buying Date
A10: 1 | B10: 2023-12-18 | D10: SBIN | E10: Accu | F10: 632 | G10: 593 | H10: 670 | I10: 680-720 | J10: Profit of Rs.38/- | K10: =H10-F10 -> 38 | L10: =(F10*-0.3)/100 -> -1.90 | M10: =(K10+L10)/F10 -> 5.71% | N10: Successful | O10: 2024-02-07 | S10: H
A11: 2 | B11: 2023-12-28 | D11: VINATIORGA | E11: Accu | F11: 1725 | G11: 1645 | H11: 1645 | I11: 1860-1960 | J11: Loss of Rs.80/- | K11: -80 | L11: -5.18 | M11: -4.94% | N11: Unsuccessful | O11: 2024-02-09 | S11: H
A12: 3 | B12: 2024-01-03 | D12: MARUTI | E12: Accu | F12: 9937.5 | G12: 9340 | H12: 10410 | I12: 10700-11200 | J12: Profit of Rs.472.5/- | K12: 472.5 | L12: -29.81 | M12: =(K12+L12)/F12 -> 4.45% | N12: Successful | O12: 2024-02-01 | S12: H
A13: 4 | B13: 2024-01-12 | D13: JUBLFOOD | E13: Accu | F13: 521.5 | G13: 490 | H13: 487 | I13: 555-575 | J13: Loss of Rs.34.5/- | K13: -34.5 | L13: -1.56 | M13: =(K13+L13)/F13 -> -6.92% | N13: Unsuccessful | O13: 2024-02-05 | S13: K
A14: 5 | B14: 2024-01-16 | D14: CAPACITE | E14: Accu | F14: 267.5 | G14: 237 | H14: 282.5 | I14: 300-330 | J14: Profit of Rs.15/- | K14: 15 | L14: -0.80 | M14: 5.31% | N14: Successful | O14: 2024-02-08 | S14: H
A15: 6 | B15: 2024-01-25 | D15: FLUOROCHEM | E15: Accu | F15: 3485 | G15: 3280 | H15: 3685 | I15: 3900-4200 | J15: Profit of Rs.200/- | K15: 200 | L15: -10.46 | M15: =(K15+L15)/F15 -> 5.44% | N15: Successful | O15: 2024-02-26 | S15: H
A16: 7 | B16: 2024-01-25 | D16: VGUARD | E16: Accu | F16: 288 | G16: 267 | H16: 305 | I16: 305-325 | J16: Profit of Rs.17/- | K16: 17 | L16: -0.86 | M16: =(K16+L16)/F16 -> 5.60% | N16: Successful | O16: 2024-02-01 | S16: H
A17: 8 | B17: 2024-01-29 | D17: GMMPFAUDLR | E17: Accu | F17: 1502.5 | G17: 1415 | H17: 1400 | I17: 1650-1750 | J17: Loss of Rs.102.5/- | K17: -102.5 | L17: -4.51 | M17: -7.12% | N17: Unsuccessful | O17: 2024-02-09 | S17: H
A18: 9 | B18: 2024-01-30 | D18: RELIANCE | E18: Accu | F18: 2870-2790 | G18: 2640 | I18: 3100-3200 | J18: Open | P18: =VLOOKUP(D18,'MidCap Intra'!$B$11:$C$568,2,0) -> 2971.30 | S18: H
A19: 10 | B19: 2024-01-30 | D19: JAMNAAUTO | E19: Accu | F19: 115.5 | G19: 106 | H19: 123 | I19: 124-130 | J19: Profit of Rs.7.5/- | K19: =H19-F19 -> 7.5 | L19: =(F19*-0.3)/100 -> -0.35 | M19: =(K19+L19)/F19 -> 6.19% | N19: Successful | O19: 2024-02-05 | S19: H
A20: 11 | B20: 2024-02-02 | D20: DATAPATTNS | E20: Accu | F20: 1880 | G20: 1790 | H20: 1990 | I20: 2040-2140 | J20: Profit of Rs.110/- | K20: =H20-F20 -> 110 | L20: =(F20*-0.3)/100 -> -5.64 | M20: =(K20+L20)/F20 -> 5.55% | N20: Successful | O20: 2024-02-16 | S20: H
A21: 12 | B21: 2024-02-05 | D21: UBL | E21: Accu | F21: 1740-1800 | G21: 1660 | I21: 2000-2100 | J21: Open | P21: =VLOOKUP(D21,'MidCap Intra'!$B$11:$C$568,2,0) -> 1688.50 | S21: H
A22: 13 | B22: 2024-02-06 | D22: CARBORUNIV | E22: Accu | F22: 1065-1105 | G22: 1030 | I22: 1200-1280 | J22: Open | P22: =VLOOKUP(D22,'MidCap Intra'!$B$11:$C$568,2,0) -> 1037.00 | S22: H
A23: 14 | B23: 2024-02-08 | D23: LTIM | E23: Accu | F23: 5200-5400 | G23: 4990 | I23: 5750-6050 | J23: Open | P23: =VLOOKUP(D23,'MidCap Intra'!$B$11:$C$568,2,0) -> 5442.70 | S23: H
A24: 15 | B24: 2024-02-09 | D24: CAPACITE | E24: Accu | F24: 266 | G24: 248 | H24: 247 | I24: 295-320 | J24: Loss of Rs.19/- | K24: =H24-F24 -> -19 | L24: =(F24*-0.3)/100 -> -0.80 | M24: =(K24+L24)/F24 -> -7.44% | N24: Unsuccessful | O24: 2024-02-13 | S24: H
A25: 16 | B25: 2024-02-09 | D25: HDFCBANK | E25: Accu | F25: 1350-1400 | G25: 1290 | I25: 1500-1600 | J25: Open | P25: =VLOOKUP(D25,'MidCap Intra'!$B$11:$C$568,2,0) -> 1420.15 | S25: H
A26: 17 | B26: 2024-02-13 | D26: CAMS | E26: Accu <> | F26: 2788 | G26: 2578 | H26: 2960 | I26: 3000-3200 | J26: Profit of Rs.172/- | K26: =H26-F26 -> 172 | L26: =(F26*-0.3)/100 -> -8.36 | M26: =(K26+L26)/F26 -> 5.87% | N26: Successful | O26: 2024-02-21 | S26: H
A27: 18 | B27: 2024-02-16 | D27: ARE&M | E27: Accu | F27: 842-864 | G27: 805 | I27: 920-960 | J27: Open | P27: =VLOOKUP(D27,'MidCap Intra'!$B$11:$C$568,2,0) -> 834.35 | S27: K
A28: 19 | B28: 2024-02-21 | D28: WHIRLPOOL | E28: Accu | F28: 1242-1282 | G28: 1195 | I28: 1380-1480 | J28: Open | P28: =VLOOKUP(D28,'MidCap Intra'!$B$11:$C$568,2,0) -> 1263.20 | S28: H
A29: 20 | B29: 2024-02-21 | D29: IBULHSGFIN | E29: Accu | F29: 171-189 | G29: 164 | I29: 215-230 | J29: Open | P29: =VLOOKUP(D29,'MidCap Intra'!$B$11:$C$568,2,0) -> 193.75 | S29: H
A30: 21 | B30: 2024-02-22 | D30: JAMNAAUTO | E30: Accu | F30: 112.5 | G30: 104 | H30: 119.3 | I30: 122-130 | J30: Profit of Rs.6.8/- | K30: =H30-F30 -> 6.8 | L30: =(F30*-0.3)/100 -> -0.34 | M30: =(K30+L30)/F30 -> 5.74% | N30: Successful | O30: 2024-02-27 | S30: H
A31: 22 | B31: 2024-02-23 | D31: CAPACITE | E31: Accu | F31: 266-251.50 | G31: 238 | I31: 300-330 | J31: Open
A35: CLBS = Closing Basis ***
A36: Dividend adjusted <> | F36: Reinitiated $
A37: Part book {} | D37: s | F37: Revised stoploss #
A41: Master Trade High Risk
A42: Sr.no | B42: Date | D42: Company | E42: Rec | F42: Rec Price | G42: Stop Loss | H42: Call Closed At | I42: Target | J42: Remark | K42: Profit / Loss per share | L42: All charges | M42: Gain / Loss per Lot | N42: Lot | O42: Status | P42: Closed Date
A43: 1 | B43: 2024-02-02 | D43: FEDERALBNK FEB FUT | E43: Buy | F43: 146.6 | G43: 144.5 | H43: 148.35 | I43: 149-151 | J43: Profit of Rs.1.75/- | K43: =H43-F43 -> 1.75 | L43: =(H43*N43)*0.03% -> 222.53 | M43: =(K43*N43)-L43 -> 8527.5 | N43: 5000 | O43: Successful | P43: 2024-02-06 | S43: K
A44: 2 | B44: 2024-02-06 | D44: CIPLA FEB FUT | E44: Buy | F44: 1428.5 | G44: 1410 | H44: 1453 | I44: 1445-1461 | J44: Profit of Rs.24.5/- | K44: =H44-F44 -> 24.5 | L44: =(H44*N44)*0.03% -> 283.34 | M44: =(K44*N44)-L44 -> 15641.7 | N44: 650 | O44: Successful | P44: 2024-02-06 | S44: K
A45: 3 | B45: 2024-02-08 | D45: NIFTY FEB FUT | E45: Buy | F45: 22035 | G45: 22200 | H45: 21925 | I45: 21800-21700 | J45: Profit of Rs.110/- | K45: =F45-H45 -> 110 | L45: =(H45*N45)*0.03% -> 328.88 | M45: =(K45*N45)-L45 -> 5171.1 | N45: 50 | O45: Successful | P45: 2024-02-08 | S45: H
A46: 4 | B46: 2024-02-12 | D46: PIDILITIND FEB FUT | E46: Buy | F46: 2660 | G46: 2610 | H46: 2694 | I46: 2702-2744 | J46: Profit of Rs.34/- | K46: =H46-F46 -> 34 | L46: =(H46*N46)*0.03% -> 202.05 | M46: =(K46*N46)-L46 -> 8298.0 | N46: 250 | O46: Successful | P46: 2024-02-16 | S46: N
A47: 4 | B47: 2024-02-12 | D47: LAURUSLABS FEB FUT | E47: Buy | F47: 393.5 | G47: 387 | H47: 392.75 | I47: 400-406 | J47: Loss of Rs.0.75/- | K47: =H47-F47 -> -0.75 | L47: =(H47*N47)*0.03% -> 200.30 | M47: =(K47*N47)-L47 -> -1475.3 | N47: 1700 | O47: Unsuccessful | P47: 2024-02-13 | S47: N
A48: 5 | B48: 2024-02-13 | D48: BAJFINANCE FEB FUT | E48: Buy | F48: 6620 | G48: 6520 | H48: 6677.5 | I48: 6720-6820 | J48: Profit of Rs.57.5/- | K48: =H48-F48 -> 57.5 | L48: 250.41 | M48: 6937.1 | N48: 125 | O48: Successful | P48: 2024-02-19 | S48: H
A49: 6 | B49: 2024-02-13 | D49: HINDUNILVR FEB FUT | E49: Buy | F49: 2400 | G49: 2360 | H49: 2360 | I49: 2438-2473 | J49: Loss of Rs.40/- | K49: =H49-F49 -> -40 | L49: =(H49*N49)*0.03% -> 212.40 | M49: =(K49*N49)-L49 -> -12212.4 | N49: 300 | O49: Unsuccessful | P49: 2024-02-15 | S49: K
A50: 7 | B50: 2024-02-14 | D50: NIFTY FUT 29-FEB | E50: Buy | F50: 21915 | G50: 21690 | H50: 21935 | J50: Profit of Rs.61.5/- | K50: =H50-F50 -> 20 | L50: =(H50*N50)*0.03% -> 329.03 | M50: 2696.0 | N50: 50 | O50: Successful | P50: 2024-02-15 | S50: H
D51: NIFTY 21900 CE 15-FEB | E51: Sell | F51: 69 | H51: 27.5 | K51: =F51-H51 -> 41.5 | L51: 50.00 | N51: 50 | S51: H
A52: 8 | B52: 2024-02-16 | D52: RELIANCE FEB FUT | E52: Buy | F52: 2933.5 | G52: 2890 | H52: 2969 | I52: 2975-3017 | J52: Profit of Rs.35.5/- | K52: =H52-F52 -> 35.5 | L52: =(H52*N52)*0.03% -> 222.68 | M52: =(K52*N52)-L52 -> 8652.3 | N52: 250 | O52: Successful | P52: 2024-02-19 | S52: N
A53: 9 | B53: 2024-02-16 | D53: METROPOLIS FEB FUT | E53: Buy | F53: 1780 | G53: 1752 | H53: 1802 | I53: 1805-1832 | J53: Profit of Rs.22/- | K53: 22 | L53: =(H53*N53)*0.03% -> 216.24 | M53: =(K53*N53)-L53 -> 8583.8 | N53: 400 | O53: Successful | P53: 2024-02-19 | S53: N
A54: 10 | B54: 2024-02-16 | D54: SBILIFE FEB FUT | E54: Buy | F54: 1508 | G54: 1490 | H54: 1521 | I54: 1530-1550 | J54: Profit of Rs.13/- | K54: 13 | L54: =(H54*N54)*0.03% -> 342.23 | M54: =(K54*N54)-L54 -> 9407.8 | N54: 750 | O54: Successful | P54: 2024-02-19 | S54: H
A55: 11 | B55: 2024-02-19 | D55: WIPRO FEB FUT | E55: Buy | F55: 535.5 | G55: 528 | H55: 541.5 | I55: 545-555 | J55: Profit of Rs.6/- | K55: 6 | L55: =(H55*N55)*0.03% -> 243.68 | M55: =(K55*N55)-L55 -> 8756.3 | N55: 1500 | O55: Successful | P55: 2024-02-19 | S55: H
A56: 12 | B56: 2024-02-19 | D56: LT FEB FUT | E56: Buy | F56: 3348 | G56: 3315 | H56: 3353.5 | I56: 3380-3400 | J56: Profit of Rs.5.5/- | K56: 5.5 | L56: =(H56*N56)*0.03% -> 301.82 | M56: =(K56*N56)-L56 -> 1348.2 | N56: 300 | O56: Neutral | P56: 2024-02-20 | S56: H
A57: 13 | B57: 2024-02-19 | D57: ASIANPAINT FEB FUT | E57: Buy | F57: 3015.5 | G57: 2960 | H57: 3020 | I57: 3068-3121 | J57: Profit of Rs.4.5/- | K57: 4.5 | L57: =(H57*N57)*0.03% -> 181.20 | M57: =(K57*N57)-L57 -> 718.8 | N57: 200 | O57: Neutral | P57: 2024-02-20 | S57: N
A58: 14 | B58: 2024-02-19 | D58: CIPLA FEB FUT | E58: Buy | F58: 1461.5 | G58: 1444 | H58: 1439 | I58: 1478-1494 | J58: Loss of Rs.22.5/- | K58: -22.5 | L58: =(H58*N58)*0.03% -> 280.61 | M58: =(K58*N58)-L58 -> -14905.6 | N58: 650 | O58: Unsuccessful | P58: 2024-02-20 | S58: K
A59: 15 | B59: 2024-02-20 | D59: BANKNIFTY FEB FUT | E59: Buy | F59: 47175 | G59: 46800 | H59: 47305 | I59: 48000 | J59: Profit of Rs.130/- | K59: 130 | L59: 212.87 | M59: 1737.1 | N59: 15 | O59: Successful | P59: 2024-02-21 | S59: H
A60: 16 | B60: 2024-02-20 | D60: SIEMENS FEB FUT | E60: Buy | F60: 4430 | G60: 4394 | H60: 4522.5 | I60: 4468-4506 | J60: Profit of Rs.92.5/- | K60: 92.5 | L60: =(H60*N60)*0.03% -> 203.51 | M60: =(K60*N60)-L60 -> 13671.5 | N60: 150 | O60: Successful | P60: 2024-02-21 | S60: K
A61: 17 | B61: 2024-02-21 | D61: LT FEB FUT | E61: Buy | F61: 3329.5 | G61: 3292 | H61: 3290 | I61: 3368-3405 | J61: Loss of Rs.39.5/- | K61: =H61-F61 -> -39.5 | L61: 296.10 | M61: -12146.1 | N61: 300 | O61: Unsuccessful | P61: 2024-02-22 | S61: N
A62: 18 | B62: 2024-02-22 | D62: NIFTY FEB FUT | E62: Sell | F62: 22090 | G62: 22270 | H62: 21980 | I62: 21850-21700 | J62: Profit of Rs.110/- | K62: =F62-H62 -> 110 | L62: =(H62*N62)*0.03% -> 329.70 | M62: =(K62*N62)-L62 -> 5170.3 | N62: 50 | O62: Successful | P62: 2024-02-22 | S62: H
A63: 19 | B63: 2024-02-22 | D63: NIFTY FEB FUT | E63: Sell | F63: 22095 | G63: 22270 | H63: 22205 | I63: 21850-21700 | J63: Loss of Rs.110/- | K63: =F63-H63 -> -110 | L63: =(H63*N63)*0.03% -> 333.08 | M63: =(K63*N63)-L63 -> -5833.1 | N63: 50 | O63: Unsuccessful | P63: 2024-02-22 | S63: H
A64: 20 | B64: 2024-02-23 | D64: BAJAJ-AUTO FEB FUT | E64: Buy | F64: 8335 | G64: 8320 | H64: 8425 | I64: 8450-8550 | J64: Profit of Rs.90/- | K64: =H64-F64 -> 90 | L64: 315.94 | M64: 10934.1 | N64: 125 | O64: Successful | P64: 2024-02-26
A65: 21 | B65: 2024-02-23 | D65: COLPAL FEB FUT | E65: Buy | F65: 2553.5 | G65: 2522 | H65: 2522 | I65: 2590-2620 | J65: Loss of Rs.31.5/- | K65: =H65-F65 -> -31.5 | L65: =(H65*N65)*0.03% -> 264.81 | M65: =(K65*N65)-L65 -> -11289.8 | N65: 350 | O65: Unsuccessful | P65: 2024-02-26
A66: 22 | B66: 2024-02-26 | D66: NIFTY FEB FUT | E66: Buy | F66: 22135 | G66: 21990 | H66: 22185 | I66: 22300-22400 | J66: Profit of Rs.50/- | K66: =H66-F66 -> 50 | L66: 332.78 | M66: 2167.2 | N66: 50 | O66: Successful | P66: 2024-02-26
A67: 23 | B67: 2024-02-26 | D67: JSWSTEEL MAR FUT | E67: Buy | F67: 811-814 | G67: 795 | I67: 831-847 | J67: Open
A68: 24 | B68: 2024-02-26 | D68: BAJAJ-AUTO MAR FUT | E68: Buy | F68: 8290-8310 | G68: 8295 | I68: 8420-8500 | J68: Open
A74: Master Trade Medium Risk
A75: Sr.no | B75: Date | D75: Company | E75: Rec | F75: Rec Price | G75: Stop Loss | H75: Call Closed At | I75: Target | J75: Remark | K75: Profit/ Loss per lot | L75: All charges | M75: Gain / Loss per Lot | N75: Lot | O75: Status | P75: Closed Date
A76: 1 | B76: 2024-01-31 | D76: NIFTY 21700 PE 08 FEB | E76: Buy | F76: 220 | G76: 82.5 | H76: 82.5 | J76: Loss of Rs.103.5/- | K76: =H76-F76 -> -137.5 | L76: 50.00 | M76: =(K76*N76)-L76 -> -6925.0 | N76: 50 | O76: Unsuccessful | P76: 2024-02-02 | S76: H
D77: NIFTY 21450 PE 01 FEB | E77: Sell | F77: 34 | H77: 0 | K77: =F77-H77 -> 34 | L77: 25.00 | M77: =(K77*N77)-L77 -> 1675.0 | N77: 50
A78: 2 | B78: 2024-02-01 | D78: NIFTY 22500 CE 29 FEB | E78: Sell | F78: 122.5 | G78: 210 | H78: 87 | I78: 0.1 | J78: Profit of Rs.35.5/- | K78: =F78-H78 -> 35.5 | L78: 50.00 | M78: =(K78*N78)-L78 -> 1725.0 | N78: 50 | O78: Successful | P78: 2024-02-01 | S78: H
A79: 3 | B79: 2024-02-02 | D79: NIFTY 22500 CE 29 FEB | E79: Sell | F79: 127 | G79: 220 | H79: 197.5 | I79: 5 | J79: Loss of Rs.70.5/- | K79: =F79-H79 -> -70.5 | L79: 50.00 | M79: =(K79*N79)-L79 -> -3575.0 | N79: 50 | O79: Unsuccessful | P79: 2024-02-02 | S79: H
A80: 4 | B80: 2024-02-02 | D80: NIFTY 21900 PE 29 FEB | E80: Buy | F80: 262.5 | I80: 422.5 | J80: Profit of Rs.60/- | K80: =I80-F80 -> 160 | L80: 50.00 | M80: 2900.0 | N80: 50 | O80: Successful | P80: 2024-02-09 | S80: H
D81: NIFTY 21600 PE 29 FEB | E81: Sell | F81: 167.5 | I81: 267.5 | K81: =F81-I81 -> -100 | L81: 50.00 | N81: 50
A82: 5 | B82: 2024-02-02 | D82: SBIN 680 CE FEB | E82: Buy | F82: 12.5 | G82: 9 | H82: 11.25 | I82: 16-19 | J82: Loss of Rs.1.25/- | K82: =H82-F82 -> -1.25 | L82: 50.00 | M82: =(K82*N82)-L82 -> -1925.0 | N82: 1500 | O82: Unsuccessful | P82: 2024-02-02 | S82: H
A83: 6 | B83: 2024-02-05 | D83: NIFTY 22500 CE 29 FEB | E83: Sell | F83: 145 | G83: 235 | H83: 95 | I83: 5 | J83: Profit of Rs.50/- | K83: =F83-H83 -> 50 | L83: 50.00 | M83: 2450.0 | N83: 50 | O83: Successful | P83: 2024-02-05 | S83: H
A84: 7 | B84: 2024-02-05 | D84: NIFTY 21750 PE 08 FEB | E84: Buy | F84: 72.5 | G84: 18 | H84: 96 | I84: 140-200 | J84: Profit of Rs.23.5/- | K84: =H84-F84 -> 23.5 | L84: 50.00 | M84: =(K84*N84)-L84 -> 1125.0 | N84: 50 | O84: Successful | P84: 2024-02-05 | S84: H
A85: 8 | B85: 2024-02-05 | D85: BANKNIFTY 45700 PE 07 FEB | E85: Buy | F85: 290 | G85: 190 | H85: 325 | I85: 400-500 | J85: Profit of Rs.35/- | K85: =H85-F85 -> 35 | L85: 50.00 | M85: =(K85*N85)-L85 -> 475.0 | N85: 15 | O85: Successful | P85: 2024-02-05 | S85: H
A86: 9 | B86: 2024-02-05 | D86: FINNIFTY 20200 PE 06 FEB | E86: Sell | F86: 54 | H86: 47.5 | J86: Profit of Rs.29.5/- | K86: =F86-H86 -> 6.5 | L86: 50.00 | M86: 1080.0 | N86: 40 | O86: Successful | P86: 2024-02-06 | S86: H
D87: FINNIFTY 20400 CE 06 FEB | E87: Sell | F87: 44 | H87: 21 | K87: =F87-H87 -> 23 | L87: 50.00 | N87: 40
A88: 10 | B88: 2024-02-06 | D88: NIFTY 22500 CE 29 FEB | E88: Sell | F88: 101 | G88: 158 | H88: 94 | I88: 5 | J88: Profit of Rs.7/- | K88: =F88-H88 -> 7 | L88: 50.00 | M88: =(K88*N88)-L88 -> 300.0 | N88: 50 | O88: Successful | P88: 2024-02-06 | S88: H
A89: 11 | B89: 2024-02-06 | D89: NIFTY 21800 PE 08 FEB | E89: Buy | F89: 65 | G89: 25 | H89: 85 | I89: 110-150 | J89: Profit of Rs.20/- | K89: =H89-F89 -> 20 | L89: 50.00 | M89: =(K89*N89)-L89 -> 950.0 | N89: 50 | O89: Successful | P89: 2024-02-06 | S89: H
A90: 12 | B90: 2024-02-08 | D90: NIFTY 21750 PE 08 FEB | E90: Buy | F90: 41.5 | G90: 9 | H90: 67.5 | I90: 70-90 | J90: Profit of Rs.26/- | K90: =H90-F90 -> 26 | L90: 50.00 | M90: =(K90*N90)-L90 -> 1250.0 | N90: 50 | O90: Successful | P90: 2024-02-08 | S90: K
A91: 13 | B91: 2024-02-08 | D91: FINNIFTY 20150 CE 13 FEB | E91: Sell | F91: 146 | H91: 102.5 | J91: Profit of Rs.21/- | K91: =F91-H91 -> 43.5 | L91: 50.00 | M91: 740.0 | N91: 40 | O91: Successful | P91: 2024-02-09 | S91: N
D92: FINNIFTY 20050 PE 13 FEB | E92: Sell | F92: 110 | H92: 132.5 | K92: =F92-H92 -> -22.5 | L92: 50.00 | N92: 40
A93: 14 | B93: 2024-02-09 | D93: HDFCBANK 1420 CE 29 FEB | E93: Buy | F93: 31.5 | H93: 28 | J93: Profit of Rs.2/- | K93: =H93-F93 -> -3.5 | L93: 50.00 | M93: 1000.0 | N93: 550 | O93: Successful | P93: 2024-02-20 | S93: H
D94: HDFCBANK 1460 CE 29 FEB | E94: Sell | F94: 16 | H94: 10.5 | K94: =F94-H94 -> 5.5 | L94: 50.00 | N94: 550
A95: 15 | B95: 2024-02-09 | D95: NIFTY 21500 PE 15 FEB | E95: Buy | F95: 86 | H95: 108.5 | J95: Profit of Rs.25.5/- | K95: =H95-F95 -> 22.5 | L95: 50.00 | M95: 1175.0 | N95: 50 | O95: Successful | P95: 2024-02-12 | S95: H
D96: NIFTY 21200 PE 15 FEB | E96: Sell | F96: 34 | H96: 31 | K96: =F96-H96 -> 3 | L96: 50.00 | N96: 50
A97: 16 | B97: 2024-02-09 | D97: FINNIFTY 20200 CE 13 FEB | E97: Sell | F97: 80 | H97: 119 | J97: Loss of Rs.3/- | K97: -39 | L97: 50.00 | M97: -220.0 | N97: 40 | O97: Unsuccessful | P97: 2024-02-09 | S97: N
D98: FINNIFTY 20000 PE 13 FEB | E98: Sell | F98: 66 | H98: 30 | K98: 36 | L98: 50.00 | N98: 40 | S98: N
A99: 17 | B99: 2024-02-12 | D99: FINNIFTY 20050 CE 13 FEB | E99: Sell | F99: 44 | H99: 21 | J99: Profit of Rs.48/- | K99: 23 | L99: 50.00 | M99: 1820.0 | N99: 40 | O99: Successful | P99: 1900-01-13T00:28:48 | S99: N
D100: FINNIFTY 19850 PE 13 FEB | E100: Sell | F100: 46 | H100: 21 | K100: 25 | L100: 50.00 | N100: 40 | S100: N
A101: 18 | B101: 2024-02-13 | D101: FINNIFTY 20600 CE 20 FEB | E101: Sell | F101: 61 | H101: 36 | J101: Loss of Rs.2/- | K101: 25 | L101: 50.00 | M101: -180.0 | N101: 40 | O101: Neutral | P101: 2024-02-14 | S101: N
D102: FINNIFTY 19800 PE 20 FEB | E102: Sell | F102: 62 | H102: 89 | K102: -27 | L102: 50.00 | N102: 40 | S102: N
A103: 19 | B103: 2024-02-14 | D103: NIFTY 22200 CE 29-FEB | E103: Sell | F103: 76 | H103: 164 | J103: Loss of Rs.48/- | K103: -88 | L103: 50.00 | M103: -2500.0 | N103: 50 | O103: Unsuccessful | P103: 2024-02-16 | S103: H
D104: NIFTY 21000 PE 29-FEB | E104: Sell | F104: 57 | H104: 17 | K104: 40 | L104: 50.00 | N104: 50 | S104: H
A105: 20 | B105: 2024-02-14 | D105: BANKNIFTY 45700 PE 14-FEB | E105: Buy | F105: 92 | H105: 177.5 | J105: Profit of Rs.35.5/- | K105: =H105-F105 -> 85.5 | L105: 50.00 | M105: 432.5 | N105: 15 | O105: Successful | P105: 2024-02-14 | S105: N
D106: BANKNIFTY 45600 PE 14-FEB | E106: Sell | F106: 60 | H106: 110 | K106: =F106-H106 -> -50 | L106: 50.00 | N106: 15 | S106: N
A107: 21 | B107: 2024-02-16 | D107: FINNIFTY 20500 CE 20 FEB | E107: Buy | F107: 109 | G107: 70 | H107: 138 | I107: 150-180 | J107: Profit of Rs.29/- | K107: =H107-F107 -> 29 | L107: 50.00 | M107: =(K107*N107)-L107 -> 1110.0 | N107: 40 | O107: Successful | P107: 2024-02-16 | S107: N
A108: 22 | B108: 2024-02-16 | D108: FINNIFTY 20300 PE 20 FEB | E108: Sell | F108: 48 | H108: 41 | J108: Profit of Rs.20/- | K108: =F108-H108 -> 7 | L108: 50.00 | M108: 700.0 | N108: 40 | O108: Successful | P108: 2024-02-19 | S108: N
D109: FINNIFTY 20700 CE 20 FEB | E109: Sell | F109: 49 | H109: 36 | K109: 13 | L109: 50.00 | N109: 40 | S109: N
A110: 23 | B110: 2024-02-19 | D110: BAJAJ-AUTO 9200 CE 29 FEB | E110: Sell | F110: 43 | H110: 10.5 | J110: Profit of Rs.24/- | K110: 32.5 | L110: 50.00 | M110: =(24*125)-100 -> 2900.0 | N110: 125 | O110: Successful | P110: 2024-02-22 | S110: H
D111: BAJAJ-AUTO 8000 PE 29 FEB | E111: Sell | F111: 44 | H111: 52.5 | K111: -8.5 | L111: 50.00 | N111: 125 | S111: H
A112: 24 | B112: 2024-02-19 | D112: NIFTY 22500 CE 29 FEB | E112: Sell | F112: 98 | G112: 130 | H112: 77 | I112: 50 | J112: Profit of Rs.21/- | K112: 21 | L112: 50.00 | M112: =(K112*N112)-L112 -> 1000.0 | N112: 50 | O112: Successful | P112: 2024-02-19 | S112: H
A113: 25 | B113: 2024-02-19 | D113: FINNIFTY 20400 PE 20 FEB | E113: Sell | F113: 28.5 | H113: 24 | J113: Profit of Rs.31/- | K113: 4.5 | L113: 50.00 | M113: =(31*40)-100 -> 1140.0 | N113: 40 | O113: Successful | P113: 2024-02-20 | S113: N
D114: FINNIFTY 20650 CE 20 FEB | E114: Sell | F114: 37 | H114: 10.5 | K114: 26.5 | L114: 50.00 | N114: 40 | S114: N
A115: 26 | B115: 2024-02-20 | D115: NIFTY 22000 PE 29 FEB | E115: Buy | F115: 155 | H115: 181 | J115: Profit of Rs.20/- | K115: =H115-F115 -> 26 | L115: 50.00 | M115: =(20*50)-100 -> 900.0 | N115: 50 | O115: Successful | P115: 2024-02-22 | S115: H
D116: NIFTY 21800 PE 29 FEB | E116: Sell | F116: 95 | H116: 101 | K116: =F116-H116 -> -6 | L116: 50.00 | N116: 50 | S116: H
A117: 27 | B117: 2024-02-20 | D117: FINNIFTY 20700 PE 20 FEB | E117: Buy | F117: 14 | G117: 0 | H117: 0 | I117: 30-40 | J117: Loss of Rs.14/- | K117: =H117-F117 -> -14 | L117: 25.00 | M117: =(K117*N117)-L117 -> -585.0 | N117: 40 | O117: Unsuccessful | P117: 2024-02-20 | S117: N
A118: 28 | B118: 2024-02-21 | D118: BANKNIFTY 47000 CE 21 FEB | E118: Buy | F118: 95 | G118: 15 | H118: 157.5 | I118: 200-300 | J118: Profit of Rs.62.5/- | K118: =H118-F118 -> 62.5 | L118: 50.00 | M118: 887.5 | N118: 15 | O118: Successful | P118: 2024-02-21 | S118: H
A119: 29 | B119: 2024-02-21 | D119: BANKNIFTY 47000 PE 21 FEB | E119: Buy | F119: 32 | G119: 0 | H119: 1 | I119: 70-100 | J119: Loss of Rs.31/- | K119: =H119-F119 -> -31 | L119: 50.00 | M119: =(K119*N119)-L119 -> -515.0 | N119: 15 | O119: Unsuccessful | P119: 2024-02-21 | S119: H
A120: 30 | B120: 2024-02-22 | D120: BAJAJ-AUTO 8900 PE 29 FEB | E120: Sell | F120: 39 | H120: 20 | J120: Profit of Rs.11/- | K120: =F120-H120 -> 19 | L120: 50.00 | M120: =(11*125)-100 -> 1275.0 | N120: 125 | O120: Successful | P120: 2024-02-22 | S120: H
D121: BAJAJ-AUTO 8700 CE 29 FEB | E121: Sell | F121: 26 | H121: 34 | K121: =F121-H121 -> -8 | L121: 50.00 | N121: 125 | S121: H
A122: 31 | B122: 2024-02-22 | D122: NIFTY 22000 PE 29 FEB | E122: Buy | F122: 169 | H122: 110 | J122: Loss of Rs.34.75/- | K122: =H122-F122 -> -59 | L122: 50.00 | M122: =(-34.75*50)-100 -> -1837.5 | N122: 50 | O122: Unsuccessful | P122: 2024-02-22 | S122: H
D123: NIFTY 21900 PE 22 FEB | E123: Sell | F123: 25 | H123: 0.75 | K123: =F123-H123 -> 24.25 | L123: 50.00 | N123: 50 | S123: H
A124: 32 | B124: 2024-02-22 | D124: FINNIFTY 20650 CE 27 FEB | E124: Buy | F124: 123 | G124: 85 | H124: 143.5 | I124: 170-200 | J124: Profit of Rs.20.5/- | K124: =H124-F124 -> 20.5 | L124: 50.00 | M124: =(K124*N124)-L124 -> 770.0 | N124: 40 | O124: Successful | P124: 2024-02-22 | S124: N
A125: 33 | B125: 2024-02-23 | D125: FINNIFTY 20800 CE 27 FEB | E125: Buy | F125: 88 | G125: 50 | H125: 109 | I125: 130-170 | J125: Profit of Rs.21/- | K125: =H125-F125 -> 21 | L125: 50.00 | M125: =(K125*N125)-L125 -> 790.0 | N125: 40 | O125: Successful | P125: 2024-02-23
A126: 34 | B126: 2024-02-23 | D126: ASTRAL 2100 CE 29 FEB | E126: Buy | F126: 39 | H126: 44 | J126: Profit of Rs.3/- | K126: =H126-F126 -> 5 | L126: 50.00 | M126: 1001.0 | N126: 367 | O126: Successful | P126: 2024-02-26
D127: ASTRAL 2160 CE 29 FEB | E127: Sell | F127: 20.5 | H127: 22.5 | K127: =F127-H127 -> -2 | L127: 50.00 | N127: 367
A128: 35 | B128: 2024-02-23 | D128: FINNIFTY 20550 PE 27 FEB | E128: Sell | F128: 51.5 | H128: 75 | J128: Profit of Rs.16.5/- | K128: =F128-H128 -> -23.5 | L128: 50.00 | M128: 560.0 | N128: 40 | O128: Successful | P128: 2024-02-26
D129: FINNIFTY 20850 CE 27 FEB | E129: Sell | F129: 65 | H129: 25 | K129: =F129-H129 -> 40 | L129: 50.00 | N129: 40
A130: 36 | B130: 2024-02-26 | D130: FINNIFTY 20700 CE 27 FEB | E130: Buy | F130: 71.5 | G130: 35 | H130: 93.5 | I130: 100-130 | J130: Profit of Rs.22/- | K130: =H130-F130 -> 22 | L130: 50.00 | M130: =(K130*N130)-L130 -> 830.0 | N130: 40 | O130: Successful | P130: 2024-02-26
A131: 37 | B131: 2024-02-26 | D131: BANKNIFTY 46800 CE 29 FEB | E131: Buy | F131: 345 | G131: 250 | H131: 305 | I131: 470-550 | J131: Loss of Rs.40/- | K131: =H131-F131 -> -40 | L131: 50.00 | M131: -650.0 | N131: 15 | O131: Unsuccessful | P131: 2024-02-26
A132: 38 | B132: 2024-02-26 | D132: FINNIFTY 20700 CE 27 FEB | E132: Sell | F132: 48 | H132: 26 | J132: Profit of Rs.19/- | K132: =F132-H132 -> 22 | L132: 50.00 | M132: 660.0 | N132: 40 | O132: Successful | P132: 2024-02-27
D133: FINNIFTY 20550 PE 27 FEB | E133: Sell | F133: 48 | H133: 51 | K133: =F133-H133 -> -3 | L133: 50.00 | N133: 40
A134: 39 | B134: 2024-02-27 | D134: NIFTY 22300 CE 29 FEB | E134: Sell | F134: 59 | H134: 66 | J134: Profit of Rs.0.50/- | K134: =F134-H134 -> -7 | L134: 50.00 | M134: -75.0 | N134: 50 | O134: Neutral | P134: 2024-02-27
D135: NIFTY 21900 PE 29 FEB | E135: Sell | F135: 35 | H135: 27.5 | K135: =F135-H135 -> 7.5 | L135: 50.00 | N135: 50
A136: 40 | B136: 2024-02-27 | D136: FINNIFTY 20650 CE 27 FEB | E136: Buy | F136: 23 | H136: 0 | J136: Loss of Rs.23/- | K136: =H136-F136 -> -23 | L136: 50.00 | M136: =(K136*N136)-L136 -> -970.0 | N136: 40 | O136: Unsuccessful | P136: 2024-02-27
A139: Techno -Funda (positional)
A140: Sr.no | B140: Date | D140: Company | E140: Rec | F140: Rec Price | G140: Stop Loss*** | H140: Call Closed At | I140: Target | J140: Remark | K140: Profit / Loss per Share/Lot | L140: All charges | M140: Net Gain / Loss % | N140: Status | O140: Closed Date | P140: Market Closing Price | Q140: Second Buying Date
A141: 1 | B141: 2023-11-22 | D141: CAMS | E141: Accu | F141: 2715 | G141: 2480 | H141: 2975 | I141: 3100-3300 | J141: Profit of Rs.260/- | K141: =H141-F141 -> 260 | L141: =(F141*-0.3)/100 -> -8.15 | M141: =(K141+L141)/F141 -> 9.28% | N141: Successful | O141: 2024-02-06 | S141: H
A142: 2 | B142: 2023-12-01 | D142: HLEGLAS | E142: Accu | F142: 522.5 | G142: 477 | H142: 525.5 | I142: 600-650 | J142: Profit of Rs.3/- | K142: =H142-F142 -> 3 | L142: =(F142*-0.3)/100 -> -1.57 | M142: 0.27% | N142: Neutral | O142: 2024-02-16 | S142: H
A143: 3 | B143: 2023-12-11 | D143: LATENTVIEW | E143: Accu | F143: 465 | G143: 390 | H143: 517.5 | I143: 545-625 | J143: Profit of Rs.52.5/- | K143: =H143-F143 -> 52.5 | L143: =(F143*-0.3)/100 -> -1.40 | M143: =(K143+L143)/F143 -> 10.99% | N143: Successful | O143: 2024-02-06 | S143: H
A144: 4 | B144: 2024-02-14 | D144: SANSERA | E144: Accu | F144: 905-975 | G144: 818 | I144: 1100-1180 | J144: Open
A145: 5 | B145: 2024-02-23 | D145: INDUSTOWER | E145: Accu | F145: 240-220 | G145: 205 | I145: 280-320 | J145: Open
A146: CLBS = Closing Basis *** | F146: Reinitiated $
A147: Dividend adjusted <> | F147: Revised stoploss # | H147: .................
B156: Investment Idea
A157: Sr.no | B157: Date | D157: Company | E157: Rec | F157: Rec Price | G157: Point of Review | H157: Close Rate | I157: Target | J157: Remark | K157: Profit / Loss per Share | L157: Gain / Loss % | M157: Status | N157: Closed Date
A158: 1 | B158: 2013-11-01 | D158: L&T Finance Holding | E158: Accu | F158: 82.00 | G158: - | H158: 100 | I158: 100.00 | J158: Target Achieved | K158: =H158-F158 -> 18.00 | L158: =K158/F158 -> 21.95% | M158: Successful | N158: 2016-10-14
A159: 2 | B159: 2014-06-04 | D159: Finolex Inds | E159: Buy | F159: 257.00 | G159: - | H159: 300 | I159: 300.00 | J159: Target Achieved | K159: 43.00 | L159: 16.73% | M159: Successful | N159: 2014-07-02
A160: 3 | B160: 2014-07-08 | D160: JK Cement | E160: Buy | F160: 393.00 | G160: - | H160: 468 | I160: 468.00 | J160: Target Achieved | K160: 75.00 | L160: 19.08% | M160: Successful | N160: 2014-08-12
A161: 4 | B161: 2014-08-06 | D161: Finolex Cables | E161: Buy | F161: 205.00 | G161: - | H161: 275 | I161: 250.00 | J161: Target Achieved | K161: 70.00 | L161: 34.15% | M161: Successful | N161: 2014-11-19
A162: 5 | B162: 2014-09-04 | D162: Exide Inds | E162: Buy | F162: 162.00 | G162: - | H162: 190 | I162: 190.00 | J162: Target Achieved | K162: 28.00 | L162: 17.28% | M162: Successful | N162: 2015-01-02
A163: 6 | B163: 2014-09-04 | D163: Deepak Nitrite | E163: Buy | F163: 75.00 | G163: - | H163: 91.5 | I163: 95-100 | J163: Profit of Rs.16.50/- | K163: 16.50 | L163: 22.00% | M163: Successful | N163: 2014-11-11
A164: 7 | B164: 2014-10-01 | D164: Mercks | E164: Buy | F164: 850.00 | G164: - | H164: 982.5 | I164: 1050.00 | J164: Profit of Rs.132.50/- | K164: 132.50 | L164: 15.59% | M164: Successful | N164: 2015-02-04
A165: 8 | B165: 2014-10-01 | D165: Grindwell Norton | E165: Buy | F165: 475.00 | G165: - | H165: 515 | I165: 600.00 | J165: Profit of Rs.40/- | K165: 40.00 | L165: 8.42% | M165: Successful | N165: 2014-10-27
A166: 9 | B166: 2014-10-01 | D166: Snowman Logistics | E166: Buy | F166: 86.00 | G166: - | H166: 99 | I166: 140.00 | J166: Profit of Rs.13.00/- | K166: 13.00 | L166: 15.12% | M166: Successful | N166: 2014-10-27
A167: 10 | B167: 2014-10-14 | D167: Birla Corp | E167: Buy | F167: 496.60 | G167: - | H167: 621 | I167: 580.00 | J167: Target Achieved | K167: 124.40 | L167: 25.05% | M167: Successful | N167: 2016-08-23
A168: 11 | B168: 2014-10-14 | D168: Ultratech Cem | E168: Buy | F168: 2481.90 | G168: - | H168: 2840 | I168: 2870.00 | J168: Profit of Rs.358.10/- | K168: 358.10 | L168: 14.43% | M168: Successful | N168: 2015-01-13
A169: 12 | B169: 2014-10-16 | D169: Sintex Inds | E169: Buy | F169: 84.50 | G169: - | H169: 93 | I169: 110.00 | J169: Profit of Rs.8.50/- | K169: 8.50 | L169: 10.06% | M169: Successful | N169: 2014-10-27
A170: 13 | B170: 2014-10-16 | D170: HSIL | E170: Buy | F170: 401.00 | G170: - | H170: 428 | I170: 450.00 | J170: Profit of Rs.27.00/- | K170: 27.00 | L170: 6.73% | M170: Successful | N170: 2015-01-16
A171: 14 | B171: 2014-10-16 | D171: Eveready Inds | E171: Buy | F171: 101.00 | G171: - | H171: 112 | I171: 120.00 | J171: Profit of Rs.11.00/- | K171: 11.00 | L171: 10.89% | M171: Successful | N171: 2014-10-27
A172: 15 | B172: 2014-11-11 | D172: Pennar Inds | E172: Buy | F172: 59.00 | G172: - | H172: 76 | I172: 76.00 | J172: Target Achieved | K172: 17.00 | L172: 28.81% | M172: Successful | N172: 2017-10-24
A173: 16 | B173: 2014-11-11 | D173: Snowman Logistics | E173: Buy | F173: 99.00 | G173: - | H173: 120 | I173: 120.00 | J173: Profit of Rs.21/- | K173: 21.00 | L173: 21.21% | M173: Successful | N173: 2014-11-17
A174: 17 | B174: 2014-11-13 | D174: Dharamsi Morarji Chem | E174: Buy | F174: 22.00 | G174: - | H174: 33.55 | I174: 32.00 | J174: Profit of Rs 11.55/- | K174: 11.55 | L174: 52.50% | M174: Successful | N174: 2015-07-03
A175: 18 | B175: 2014-12-03 | D175: Tatachem | E175: Buy | F175: 440.00 | G175: - | H175: 520 | I175: 520.00 | J175: Profit of Rs 80.00/- | K175: 80.00 | L175: 18.18% | M175: Successful | N175: 2015-07-23
A176: 19 | B176: 2014-12-03 | D176: Advanta | E176: Buy | F176: 360.00 | G176: - | H176: 427 | I176: 425.00 | J176: Profit of Rs.67.00/- | K176: 67.00 | L176: 18.61% | M176: Successful | N176: 2015-02-23
A177: 20 | B177: 2015-01-08 | D177: GDL | E177: Buy | F177: 360.00 | G177: - | H177: 455 | I177: 420.00 | J177: Profit of Rs.95.00/- | K177: 95.00 | L177: 26.39% | M177: Successful | N177: 2015-01-20
A178: 21 | B178: 2015-01-08 | D178: NRB Bearing | E178: Buy | F178: 130.00 | H178: 175.5 | I178: 165.00 | J178: Profit of Rs 45.50/- | K178: 45.50 | L178: 35.00% | M178: Successful | N178: 2017-12-19
A179: 22 | B179: 2015-02-05 | D179: GSFC | E179: Accu | F179: 98.00 | H179: 120 | I179: 120.00 | J179: Target Achieved | K179: 22.00 | L179: 22.45% | M179: Successful | N179: 2017-01-18
A180: 23 | B180: 2015-02-05 | D180: Sundrmfast | E180: Accu | F180: 196.00 | H180: 262 | I180: 255.00 | J180: Target Achieved | K180: 66.00 | L180: 33.67% | M180: Successful | N180: 2016-08-17
A181: 24 | B181: 2015-03-04 | D181: GPPL | E181: Accu | F181: 235 | H181: 77.00 | I181: 280-285 | J181: Loss of Rs.158/- | K181: -158.00 | L181: -67.23% | M181: Unsuccessful | N181: 2019-02-26
A182: 25 | B182: 2015-03-04 | D182: ORIENTCEM | E182: Accu | F182: 185.00 | H182: 224 | I182: 220-225 | J182: Target Achieved | K182: 39.00 | L182: 21.08% | M182: Successful | N182: 2016-10-04
A183: 26 | B183: 2015-03-27 | D183: PFS | E183: Accu | F183: 49.5 | H183: 15.85 | I183: 67.00 | J183: Loss of Rs.33.65/- | K183: -33.65 | L183: -68% | M183: Unsuccessful | N183: 2019-06-11
A184: 27 | B184: 2015-03-30 | D184: Walchandnagar Ind Ltd | E184: Accu | F184: 183.50 | H184: 219 | I184: 218.00 | J184: Profit of Rs.35.50/- | K184: 35.50 | L184: 19.35% | M184: Successful | N184: 2015-04-09
A185: 28 | B185: 2015-04-20 | D185: Kalpataru Power Transmission Ltd | E185: Accu | F185: =(227+237)/2 -> 232.00 | H185: 298 | I185: 298.00 | J185: Target Achieved | K185: 66.00 | L185: 28.45% | M185: Successful | N185: 2017-03-29
A186: 29 | B186: 2015-05-04 | D186: Mastek Ltd | E186: Buy | F186: 385.00 | H186: =212.5+331 -> 543.5 | I186: 510.00 | J186: Profit of Rs 158.50/- | K186: 158.50 | L186: 41.17% | M186: Successful | N186: 2015-08-19
A187: 30 | B187: 2015-05-04 | D187: Suprajit Eng | E187: Buy | F187: 115.50 | H187: 146 | I187: 142.00 | J187: Profit of Rs 30.50/- | K187: 30.50 | L187: 26.41% | M187: Successful | N187: 2015-07-17
A188: 31 | B188: 2015-05-27 | D188: TCI | E188: Buy | F188: 237.50 | H188: 279.5 | I188: 278.00 | J188: Target Achieved | K188: 42.00 | L188: 17.68% | M188: Successful | N188: 2015-08-06
A189: 32 | B189: 2015-06-19 | D189: HSIL | E189: Accu | F189: 340.00 | H189: 448 | I189: 448.00 | J189: Target Achieved | K189: 108.00 | L189: 31.76% | M189: Successful | N189: 2017-10-10
A190: 33 | B190: 2015-07-06 | D190: Capital First | E190: Accu | F190: 390.00 | H190: 460 | I190: 460.00 | J190: Target Achieved | K190: 70.00 | L190: 17.95% | M190: Successful | N190: 2016-04-18
A191: 34 | B191: 2015-07-10 | D191: Dolphin OffShore | E191: Accu | F191: 122.5 | H191: 61.00 | I191: 172.00 | J191: Loss of Rs.61.50/- | K191: -61.50 | L191: -50.20% | M191: Unsuccessful | N191: 2018-08-21
A192: 35 | B192: 2015-08-03 | D192: Allcargo logistics | E192: Accu | F192: 297.50 | H192: 350 | I192: 360.00 | J192: Profit of Rs 52.50/- | K192: 52.50 | L192: 17.65% | M192: Successful | N192: 2015-08-16
A193: 36 | B193: 2015-08-03 | D193: Camline Fine | E193: Accu | F193: 115.50 | H193: 149 | I193: 140.00 | J193: Profit of Rs 33.50/- | K193: 33.50 | L193: 29.00% | M193: Successful | N193: 2017-01-05
A194: 37 | B194: 2015-09-04 | D194: TCI | E194: Accu | F194: 226.00 | H194: 292 | I194: 292.00 | J194: Target Achieved | K194: 66.00 | L194: 29.20% | M194: Successful | N194: 2015-10-09
A195: 38 | B195: 2015-09-07 | D195: Kalpataru Power Transmission Ltd | E195: Accu | F195: 232.50 | H195: 312.5 | I195: 310.00 | J195: Target Achieved | K195: 80.00 | L195: 34.41% | M195: Successful | N195: 2017-03-29
A196: 39 | B196: 2015-09-21 | D196: LLOYD ELECTRIC & ENG LTD | E196: Accu | F196: 196.50 | H196: 238 | I196: 238.00 | J196: Target Achieved | K196: 41.50 | L196: 21.12% | M196: Successful | N196: 2015-10-14
A197: 40 | B197: 2015-09-24 | D197: L&T Finance Holding | E197: Accu | F197: 65.00 | H197: 82 | I197: 82.00 | J197: Target Achieved | K197: 17.00 | L197: 26.15% | M197: Successful | N197: 2016-07-27
A198: 41 | B198: 2015-10-14 | D198: KEC International ltd | E198: Accu | F198: 144.00 | H198: 182.5 | I198: 181.00 | J198: Target Achieved | K198: 38.50 | L198: 26.74% | M198: Successful | N198: 2017-03-23
A199: 42 | B199: 2015-10-14 | D199: Gruh Finance | E199: Accu | F199: 264.00 | H199: 311 | I199: 311.00 | J199: Target Achieved | K199: 47.00 | L199: 17.80% | M199: Successful | N199: 2016-08-22
A200: 43 | B200: 2015-11-10 | D200: Pidilitind | E200: Buy | F200: 549.50 | H200: 630 | I200: 630.00 | J200: Target Achieved | K200: 80.50 | L200: 14.65% | M200: Successful | N200: 2016-02-19
A201: 44 | B201: 2015-12-04 | D201: Zensar Technology | E201: Accu | F201: 1027.50 | H201: 1315 | I201: 1250.00 | J201: Target Achieved | K201: 287.50 | L201: 27.98% | M201: Successful | N201: 2018-05-24
A202: 45 | B202: 2015-12-29 | D202: Vinati Organics Ltd | E202: Accu | F202: 465.00 | H202: 540 | I202: 540.00 | J202: Target Achieved | K202: 75.00 | L202: 16.13% | M202: Successful | N202: 2016-06-09
A203: 46 | B203: 2016-01-11 | D203: GSFC | E203: Buy | F203: 81.00 | H203: 110 | I203: 110.00 | J203: Target Achieved | K203: 29.00 | L203: 35.80% | M203: Successful | N203: 2017-01-10
A204: 47 | B204: 2016-01-13 | D204: SSWL | E204: Buy | F204: 417.50 | H204: 547 | I204: 535.00 | J204: Target Achieved | K204: 129.50 | L204: 31.02% | M204: Successful | N204: 2016-07-27
A205: 48 | B205: 2016-02-08 | D205: Persistent System Ltd | E205: Accu | F205: 650.00 | H205: 800 | I205: 800.00 | J205: Target Achieved | K205: 150.00 | L205: 23.08% | M205: Successful | N205: 2018-02-23
A206: 49 | B206: 2016-03-04 | D206: UPL | E206: Accu | F206: 437.50 | H206: 504.5 | I206: 522.00 | J206: Profit of Rs.67/- | K206: 67.00 | L206: 15.31% | M206: Successful | N206: 2016-04-20
A207: 50 | B207: 2016-03-09 | D207: Ashoka Buildcon Ltd | E207: Accu | F207: 189.50 | H207: 218 | I207: 218.00 | J207: Target Achieved | K207: 28.50 | L207: 15.04% | M207: Successful | N207: 2017-10-26
A208: 51 | B208: 2016-04-11 | D208: PTC INDIA FIN SERV LTD | E208: Accu | F208: 36.5 | H208: 15.85 | I208: 60.00 | J208: Loss of Rs.20.65/- | K208: -20.65 | L208: -56.58% | M208: Unsuccessful | N208: 2019-06-11
A209: 52 | B209: 2016-04-12 | D209: CAMLINFINE $ | E209: Accu | F209: 93.00 | H209: 149 | I209: 140.00 | J209: Profit of Rs 56/- | K209: 56.00 | L209: 60.22% | M209: Successful | N209: 2017-01-05
A210: 53 | B210: 2016-04-12 | D210: Greaves Cotton Ltd. | E210: Accu | F210: 130.00 | H210: 150 | I210: 150-155 | J210: Target Achieved | K210: 20.00 | L210: 15.38% | M210: Successful | N210: 2016-07-13
A211: 54 | B211: 2016-04-13 | D211: DHFL | E211: Accu | F211: 196.00 | H211: 299 | I211: 299.00 | J211: Target Achieved | K211: 103.00 | L211: 52.55% | M211: Successful | N211: 2016-09-07
A212: 55 | B212: 2016-04-13 | D212: Magma | E212: Accu | F212: 88.00 | H212: 103 | I212: 103.00 | J212: Target Achieved | K212: 15.00 | L212: 17.05% | M212: Successful | N212: 2016-06-09
A213: 56 | B213: 2016-05-02 | D213: KEC International ltd $ | E213: Accu | F213: 127.50 | H213: 148 | I213: 148-150 | J213: Target Achieved | K213: =H213-F213 -> 20.50 | L213: =K213/F213 -> 16.08% | M213: Successful | N213: 2016-07-13
A214: 57 | B214: 2016-05-03 | D214: Mindtree | E214: Accu | F214: 675.00 | H214: 815 | I214: 790-800 | J214: Target Achieved | K214: 140.00 | L214: 20.74% | M214: Successful | N214: 2018-02-23
A215: 58 | B215: 2016-06-01 | D215: Atulauto | E215: Accu | F215: 500 | H215: 232.50 | I215: 565-570 | J215: Loss of Rs.267.50 /- | K215: -267.50 | L215: -53.50% | M215: Unsuccessful | N215: 2019-09-27
A216: 59 | B216: 2016-06-06 | D216: TRITURBINE | E216: Accu | F216: 110.00 | H216: 126.5 | I216: 125.00 | J216: Profit of Rs.16.50/- | K216: 16.50 | L216: 15.00% | M216: Successful | N216: 2016-07-01
A217: 60 | B217: 2016-06-17 | D217: Pennar Industries Ltd | E217: Accu | F217: 44.00 | H217: 69.5 | I217: 69.50 | J217: Profit of Rs.25.50/- | K217: 25.50 | L217: 57.95% | M217: Successful | N217: 2017-08-30
A218: 61 | B218: 2016-06-28 | D218: EVEREADY | E218: Accu | F218: 262.50 | H218: 340 | I218: 333.00 | J218: Profit of Rs.77.50/- | K218: 77.50 | L218: 29.52% | M218: Successful | N218: 2017-10-09
A219: 62 | B219: 2016-06-28 | D219: FIEMIND | E219: Accu | F219: 840.00 | H219: 1230 | I219: 1230.00 | J219: Target Achieved | K219: 390.00 | L219: 46.43% | M219: Successful | N219: 2016-10-06
A220: 63 | B220: 2016-07-05 | D220: Bajaj Corp Ltd | E220: Accu | F220: 395 | H220: =(468.5+342.5)/2 -> 405.50 | I220: 510.00 | J220: Profit of Rs.10.50/- | K220: =H220-F220 -> 10.50 | L220: =K220/F220 -> 3% | M220: Neutral | N220: 2019-05-21
A221: 64 | B221: 2016-08-02 | D221: GPPL $ | E221: Buy | F221: =169.5-12.8 -> 156.7 | H221: 77.00 | I221: 198-200 | J221: Loss of Rs.79.7/- | K221: -79.70 | L221: -50.86% | M221: Unsuccessful | N221: 2019-02-26
A222: 65 | B222: 2016-08-04 | D222: WONDERLA HOLIDAYS LTD | E222: Accu | F222: 400 | H222: 305.00 | I222: 475.00 | J222: Loss of Rs.95/- | K222: -95.00 | L222: -23.75% | M222: Unsuccessful | N222: 2019-05-21
A223: 66 | B223: 2016-08-11 | D223: CAMLINFINE | E223: Accu | F223: 86.50 | H223: 130 | I223: 130.00 | J223: Profit of Rs.43.50/- | K223: 43.50 | L223: 50.29% | M223: Successful | N223: 2017-12-22
A224: 67 | B224: 2016-08-18 | D224: GRANULES | E224: Accu | F224: 133.5 | H224: 126.50 | I224: 178.00 | J224: Exit | K224: -7.00 | L224: -5.24% | M224: Unsuccessful | N224: 2016-09-02
A225: 68 | B225: 2016-08-31 | D225: VA TECH WABAG | E225: Accu | F225: 560.00 | H225: 725 | I225: 725.00 | J225: Target Achieved | K225: 165.00 | L225: 29.46% | M225: Successful | N225: 2016-03-27
... 141 more rows
